Workbook

Sheet Language

Sheet Exh 1
D1: Exhibit 1. ABC. P&L and Balance sheet
B3: Profit and Loss Statement (€m) | D3: 2020 | E3: =D3+1 -> 2021 | F3: =E3+1 -> 2022 | G3: =F3+1 -> 2023
B4: Sales | D4: 690 | E4: =D4*(1+E19) -> 703.8 | F4: =E4*(1+F19) -> 746.028 | G4: 798.24996
B5: COGS | D5: =D4-D6 -> 528 | E5: =E4-E6 -> 548.3895349 | F5: =F4-F6 -> 574.44156 | G5: =G4-G6 -> 614.6524692
B6: Gross Margin | D6: 162 | E6: =E4*E20 -> 155.4104651 | F6: =F4*F20 -> 171.58644 | G6: 183.5974908
B7: Salaries | D7: 75 | E7: 70 | F7: 72 | G7: 71
B8: Overhead | D8: 39 | E8: 35 | F8: 42 | G8: 38
B9: Opex | D9: =D7+D8 -> 114 | E9: =E7+E8 -> 105 | F9: =F7+F8 -> 114 | G9: =G7+G8 -> 109
B10: EBITDA | D10: =D6-D9 -> 48 | E10: =E6-E9 -> 50.41046512 | F10: =F6-F9 -> 57.58644 | G10: =G6-G9 -> 74.5974908
B11: Depreciation & provisions | D11: 25 | E11: =10%*D54 -> 20 | F11: =10%*E54 -> 22 | G11: =10%*F54 -> 30
B12: EBIT | D12: =D10-D11 -> 23 | E12: =E10-E11 -> 30.41046512 | F12: =F10-F11 -> 35.58644 | G12: =G10-G11 -> 44.5974908
B13: Financial expenses | D13: 4 | E13: =E27*D59 -> 6 | F13: =F27*E59 -> 14.17976047 | G13: =G27*F59 -> 19.47911992
B14: EBT | D14: =D12-D13 -> 19 | E14: =E12-E13 -> 24.41046512 | F14: =F12-F13 -> 21.40667953 | G14: =G12-G13 -> 25.11837088
B15: Taxes | D15: =30%*D14 -> 5.7 | E15: =30%*E14 -> 7.323139535 | F15: 6.42200386 | G15: 7.535511263
B16: Net Income | D16: =D14-D15 -> 13.3 | E16: =E14-E15 -> 17.08732558 | F16: =F14-F15 -> 14.98467567 | G16: =G14-G15 -> 17.58285961
B18: P&L Ratios | D18: =D3 -> 2020 | E18: =E3 -> 2021 | F18: =F3 -> 2022 | G18: =G3 -> 2023 | H18: Average 3y
B19: Growth of Sales | D19: 0.15 | E19: 0.02 | F19: 0.06 | G19: 0.07 | H19: =AVERAGE(E19:G19) -> 0.05
B20: Gross Margin / Sales | D20: =D6/D4 -> 0.2347826087 | E20: 0.2208162335 | F20: 0.23 | G20: 0.23 | H20: =AVERAGE(E20:G20) -> 0.2269387445
B21: Opex / Sales | D21: =(D7+D8)/D4 -> 0.1652173913 | E21: =(E7+E8)/E4 -> 0.1491901108 | F21: =(F7+F8)/F4 -> 0.1528092779 | G21: =(G7+G8)/G4 -> 0.1365487071 | H21: =AVERAGE(E21:G21) -> 0.1461826986
B22: Increase in Opex | D22: nd | E22: =(E8+E7)/(D8+D7)-1 -> -0.07894736842 | F22: =(F8+F7)/(E8+E7)-1 -> 0.08571428571 | G22: =(G8+G7)/(F8+F7)-1 -> -0.04385964912 | H22: =AVERAGE(E22:G22) -> -0.01236424394
B23: EBITDA / Sales | D23: =D10/D4 -> 0.06956521739 | E23: =E10/E4 -> 0.07162612264 | F23: =F10/F4 -> 0.07719072206 | G23: =G10/G4 -> 0.09345129288 | H23: =AVERAGE(E23:G23) -> 0.08075604586
B24: ROS, Net Income / Sales | D24: =D16/D4 -> 0.01927536232 | E24: =E16/E4 -> 0.02427866664 | F24: =F16/F4 -> 0.02008594272 | G24: =G16/G4 -> 0.02202675915
B25: ROE, Net Income / Equity | D25: nd | E25: =E16/D60 -> 0.1046376337 | F25: =F16/E60 -> 0.08306944862 | G25: =G16/F60 -> 0.08999682401 | H25: =AVERAGE(E25:G25) -> 0.09256796877
B26: RONA, EBIT / Net Assets | D26: nd | E26: =E12/E55 -> 0.07358142011 | F26: =F12/F55 -> 0.06873684617 | G26: =G12/G55 -> 0.08196943091 | H26: =AVERAGE(E26:G26) -> 0.07476256573
B27: Cost of Debt | D27: =D13/D59 -> 0.02 | E27: 0.03 | F27: 0.06 | G27: 0.06
B28: EBIT / Fin expenses | D28: =D12/D13 -> 5.75 | E28: =E12/E13 -> 5.068410853 | F28: =F12/F13 -> 2.509664397 | G28: =G12/G13 -> 2.289502348
B29: Inflation in Germany | D29: 0.0014 | E29: 0.0307 | F29: 0.0687 | G29: 0.062 | H29: =AVERAGE(D29:G29) -> 0.0407
D31: Exhibit 1 cont. ABC. Balance sheet
B33: BALANCE SHEET (€m) | D33: =D3 -> 2020 | E33: =E3 -> 2021 | F33: =F3 -> 2022 | G33: =G3 -> 2023 | H33: Change
B34: Cash | D34: 5 | E34: 3.426666667 | F34: 2.304 | G34: -0.06533333333
B35: Receivables | D35: 155 | E35: 183 | F35: 212 | G35: 245 | H35: =G35-D35 -> 90
B36: Inventory | D36: 44 | E36: 52 | F36: 57 | G36: 59 | H36: =G36-D36 -> 15
B37: Other | D37: 4 | E37: 5.560666667 | F37: 5.128666667 | G37: 3.551333333
B38: Current Assets, CA | D38: =SUM(D34:D37) -> 208 | E38: =SUM(E34:E37) -> 243.9873333 | F38: =SUM(F34:F37) -> 276.4326667 | G38: =SUM(G34:G37) -> 307.486
B39: Fixed Assets net, FA | D39: 200 | E39: 220 | F39: 300 | G39: 300 | H39: =G39-D39 -> 100
B40: Total Assets | D40: =D39+D38 -> 408 | E40: =E39+E38 -> 463.9873333 | F40: =F38+F39 -> 576.4326667 | G40: =G38+G39 -> 607.486
B42: Payable to suppliers | D42: =D5/12 -> 44 | E42: 46 | F42: 54 | G42: 60 | H42: =G42-D42 -> 16
B43: Other payables | D43: 4 | E43: 1.270666667 | F43: 2.408666667 | G43: 3.476666667
B44: Bank line of credit | D44: =IF((D40-D42-D43-D46-D47-D48)>0,(D40-D42-D43-D46-D47-D48),0) -> 0 | E44: =IF((E40-E42-E43-E46-E47-E48)>0,(E40-E42-E43-E46-E47-E48),0) -> 34.32934109 | F44: =IF((F40-F42-F43-F46-F47-F48)>0,(F40-F42-F43-F46-F47-F48),0) -> 114.6519987 | G44: =IF((G40-G42-G43-G46-G47-G48)>0,(G40-G42-G43-G46-G47-G48),0) -> 136.0544725 | H44: =G44-D44 -> 136.0544725
B45: Current liabilities | D45: =SUM(D42:D44) -> 48 | E45: =SUM(E42:E44) -> 81.60000775 | F45: =SUM(F42:F44) -> 171.0606654 | G45: =SUM(G42:G44) -> 199.5311391
B46: Long-term Debt | D46: 200 | E46: 202 | F46: 210 | G46: 195 | H46: =G46-D46 -> -5
B47: Equity | D47: 150 | E47: =D47+D48 -> 163.3 | F47: =E47+E48 -> 180.3873256 | G47: =F47+F48 -> 195.3720013 | H47: =G47-D47 -> 45.37200126
B48: Net income for the year | D48: =D16 -> 13.3 | E48: =E16 -> 17.08732558 | F48: =F16 -> 14.98467567 | G48: =G16 -> 17.58285961 | H48: =G48-D48 -> 4.282859613
B49: Liabilities + Equity | D49: =D45+D46+D47+D48 -> 411.3 | E49: =E45+E46+E47+E48 -> 463.9873333 | F49: =F45+F46+F47+F48 -> 576.4326667 | G49: =G45+G46+G47+G48 -> 607.486
B52: Short Balance Sheet | D52: =D33 -> 2020 | E52: =E33 -> 2021 | F52: =F33 -> 2022 | G52: =G33 -> 2023 | H52: =H33 -> Change
B53: NFO or Current Assets, Net | D53: =D35+D36+D37-D42-D43 -> 155 | E53: =E35+E36+E37-E42-E43 -> 193.29 | F53: =F35+F36+F37-F42-F43 -> 217.72 | G53: =G35+G36+G37-G42-G43 -> 244.0746667 | H53: =G53-D53 -> 89.07466667
B54: FA or Fixed Assets, Net | D54: =D39 -> 200 | E54: =E39 -> 220 | F54: =F39 -> 300 | G54: =G39 -> 300 | H54: 100
B55: NA, Net Assets | D55: =D53+D54 -> 355 | E55: =E53+E54 -> 413.29 | F55: =F53+F54 -> 517.72 | G55: =G53+G54 -> 544.0746667
B57: D-Short. Line of credit | D57: =D44 -> 0 | E57: =E44 -> 34.32934109 | F57: 114.6519987 | G57: 136.0544725 | H57: 136.0544725
B58: D-Long. Loans | D58: =D46 -> 200 | E58: =E46 -> 202 | F58: =F46 -> 210 | G58: 195 | H58: -5
B59: D, Total Debt | D59: =D57+D58 -> 200 | E59: =E57+E58 -> 236.3293411 | F59: 324.6519987 | G59: 331.0544725 | H59: 131.0544725
B60: E, Equity | D60: =D47+D48 -> 163.3 | E60: =E47+E48 -> 180.3873256 | F60: =F47+F48 -> 195.3720013 | G60: =G47+G48 -> 212.9548609 | H60: 49.65486087
B61: Debt + Equity | D61: =D59+D60 -> 363.3 | E61: =E59+E60 -> 416.7166667 | F61: =F59+F60 -> 520.024 | G61: =G59+G60 -> 544.0093333
B62: Cash surplus | D62: =D61-D55 -> 8.3 | E62: =E61-E55 -> 3.426666667 | F62: =F61-F55 -> 2.304 | G62: =G61-G55 -> -0.06533333333 | H62: -8.365333333
B64: Balance Sheet Ratios
B65: NFO / Sales in % | D65: =D53/D4 -> 0.2246376812 | E65: =E53/E4 -> 0.2746376812 | F65: =F53/F4 -> 0.2918389122 | G65: =G53/G4 -> 0.3057622034
B66: Receivables in Days | D66: =D35/D4*365 -> 81.99275362 | E66: 94.90622336 | F66: 103.7226485 | G66: 112.0263132
B67: Inventory in Days | D67: 30.41666667 | E67: 34.61043436 | F67: 36.21778341 | G67: 35.03605871
B68: Payables in Days | D68: =D42/D5*365 -> 30.41666667 | E68: =E42/E5*365 -> 30.6169227 | F68: =F42/F5*365 -> 34.31158428 | G68: =G42/G5*365 -> 35.62989022 | H68: Sum
B69: Capex | D69: 12 | E69: =E39-D39+E11 -> 40 | F69: =F39-E39+F11 -> 102 | G69: 30 | H69: =SUM(D69:G69) -> 184
B70: Debt /EBITDA | D70: =D59/D10 -> 4.166666667 | E70: =E59/E10 -> 4.688100785 | F70: =F59/F10 -> 5.637646619 | G70: =G59/G10 -> 4.437876783
B71: Debt short / NFO | D71: =D57/D53 -> 0 | E71: =E57/E53 -> 0.1776053654 | F71: =F57/F53 -> 0.5266029705 | G71: 0.5574297174
B77: Receivables / Ventas | E77: =E35/E$4 -> 0.2600170503 | F77: 0.2841716397 | G77: 0.3069214059
B78: Inventory / Ventas | E78: 0.07388462631 | F78: 0.07640463897 | G78: 0.07391168551
B79: Payables and other / Ventas | E79: =(E42+E43)/E$4 -> 0.06716491427 | F79: =(F42+F43)/F$4 -> 0.07561199669 | G79: =(G42+G43)/G$4 -> 0.07951978684

Sheet Exh 2-3
F1: Exhibit 2. ABC. P&L and Balance sheet Forecast | K1: © E.M. Abascal. Ag. 2023
E2: Pre M&A | F2: Post M&A | I2: Forecast
B3: P&L (€m) | C3: Assumptions | E3: 0 | F3: 0 | G3: =F3+1 -> 1 | H3: =G3+1 -> 2 | I3: =H3+1 -> 3 | J3: =I3+1 -> 4
B4: Sales | E4: =F4 -> 798.24996 | F4: 798.24996 | G4: =F4*(1+G20) -> 878.074956 | H4: =G4*(1+H20) -> 965.8824516 | I4: =H4*(1+I20) -> 1062.470697 | J4: =I4*(1+J20) -> 1083.720111
B5: COGS | F5: 614.6524692 | G5: =(G4-G6) -> 684.8984657 | H5: =(H4-H6) -> 763.0471368 | I5: =(I4-I6) -> 849.9765574 | J5: =(J4-J6) -> 866.9760886
B6: Gross Margin | F6: =F4-F5 -> 183.5974908 | G6: =G4*G21 -> 193.1764903 | H6: =H4*H21 -> 202.8353148 | I6: =I4*I21 -> 212.4941394 | J6: =J4*J21 -> 216.7440221
B7: Salaries | F7: 71 | G7: 60 | H7: =G7*(1+H23) -> 61.2 | I7: =H7*(1+I23) -> 62.424 | J7: =I7*(1+J23) -> 63.67248
B8: Overhead | F8: 38 | G8: =F8*(1+G23) -> 38.76 | H8: =G8*(1+H23) -> 39.5352 | I8: =H8*(1+I23) -> 40.325904 | J8: =I8*(1+J23) -> 41.13242208
B9: Opex | F9: =F7+F8 -> 109 | G9: 98.76 | H9: 100.7352 | I9: 102.749904 | J9: 104.8049021
B10: EBITDA | E10: =F10 -> 74.5974908 | F10: =F6-F9 -> 74.5974908 | G10: 94.41649032 | H10: 102.1001148 | I10: 109.7442354 | J10: 111.9391201
B11: Depreciation | C11: 0.1 | F11: 30 | G11: =$C11*F33 -> 30 | H11: =$C11*G33 -> 22 | I11: =$C11*H33 -> 22.3 | J11: =$C11*I33 -> 22.57
B12: Amort. of Goodwill | C12: 0.05 | G12: =$C12*$F$34 -> 0 | H12: =$C12*$F$34 -> 0 | I12: =$C12*$F$34 -> 0 | J12: =$C12*$F$34 -> 0
B13: EBIT | E13: =F13 -> 44.5974908 | F13: =F10-F11 -> 44.5974908 | G13: =G10-G11-G12 -> 64.41649032 | H13: =H10-H11-H12 -> 80.10011484 | I13: =I10-I11-I12 -> 87.44423535 | J13: =J10-J11-J12 -> 89.36912006
B14: Financial expenses | C14: 0.06 | F14: 19.47911992 | G14: =$C14*F39 -> 28.86718835 | H14: =$C14*G39 -> 23.73498687 | I14: =$C14*H39 -> 23.12818642 | J14: =$C14*I39 -> 22.32750078
B15: EBT | F15: =F13-F14 -> 25.11837088 | G15: 35.54930197 | H15: 56.36512796 | I15: 64.31604893 | J15: 67.04161928
B16: Taxes | C16: 0.3 | F16: =0.3*F15 -> 7.535511263 | G16: =$C$16*G15 -> 10.66479059 | H16: =$C$16*H15 -> 16.90953839 | I16: =$C$16*I15 -> 19.29481468 | J16: =$C$16*J15 -> 20.11248578 | K16: Suma
B17: Net Income | E17: =F17 -> 17.58285961 | F17: =F15-F16 -> 17.58285961 | G17: 24.88451138 | H17: 39.45558957 | I17: 45.02123425 | J17: 46.9291335 | K17: =SUM(G17:J17) -> 156.2904687
B19: P&L Ratios | I19: Assumptions (in bold and green)
B20: Growth of Sales | C20: 0.1 | F20: 0.07 | G20: =C20 -> 0.1 | H20: =G20 -> 0.1 | I20: =H20 -> 0.1 | J20: 0.02
B21: Gross Margin / Sales | C21: -0.01 | F21: =F6/F4 -> 0.23 | G21: =F21+$C21 -> 0.22 | H21: =G21+$C21 -> 0.21 | I21: =H21+$C21 -> 0.2 | J21: 0.2
B22: Opex / Sales | F22: =(F9)/F4 -> 0.1365487071 | G22: 0.1124733137 | H22: 0.1042934364 | I22: 0.09670845917 | J22: 0.09670845917
B23: Increase in Opex | C23: 0.02 | F23: -0.04385964912 | G23: =$C$23 -> 0.02 | H23: =G23 -> 0.02 | I23: =C23 -> 0.02 | J23: =I23 -> 0.02
B24: EBITDA / Sales | F24: =F10/F4 -> 0.09345129288 | G24: 0.1075266863 | H24: 0.1057065636 | I24: 0.1032915408 | J24: 0.1032915408
B25: ROS, Net Income / Sales | F25: =F17/F4 -> 0.02202675915 | G25: 0.02833984868 | H25: 0.0408492664 | I25: 0.04237409501 | J25: 0.04330373962 | K25: Media
B26: ROE, Net Income / Equity | F26: =F17/F40 -> 0.2792931216 | G26: =G17/F40 -> 0.3952754567 | H26: =H17/G40 -> 0.4491788655 | I26: =I17/H40 -> 0.3536764818 | J26: =J17/I40 -> 0.2723431376 | K26: =AVERAGE(G26:J26) -> 0.3676184854
B27: RONA, EBIT / Net Assets | F27: =F13/F35 -> 0.08196943091 | G27: 0.1332509184 | H27: 0.1562122145 | I27: 0.1606128153 | J27: 0.1615359437 | K27: =AVERAGE(G27:J27) -> 0.152902973
B28: Debt /EBITDA | E28: =E39/F10 -> 4.437876783 | F28: =F39/F10 -> 6.449544088 | G28: 4.189767203 | H28: 3.775409795 | I28: 3.390838815 | J28: 2.983771031
E30: Pre M&A | F30: Post M&A | I30: =I2 -> Forecast
B31: Balance (€m) | C31: =C3 -> Assumptions | E31: =E3 -> 0 | F31: 0 | G31: 1 | H31: 2 | I31: 3 | J31: 4
B32: NFO | C32: 0.3 | E32: 244.0746667 | F32: 244.0746667 | G32: =$C32*G4 -> 263.4224868 | H32: =$C32*H4 -> 289.7647355 | I32: =$C32*I4 -> 318.741209 | J32: =$C32*J4 -> 325.1160332
B33: FA or Fixed Assets, Net | E33: 300 | F33: 300 | G33: =F33-G11+G45 -> 220 | H33: =G33-H11+H45 -> 223 | I33: =H33-I11+I45 -> 225.7 | J33: =I33-J11+J45 -> 228.13
B34: Goodwill | E34: 0 | F34: =IF((F63-E40)>0,(F63-E40),0) -> 0 | G34: =F34-G12 -> 0 | H34: =G34-H12 -> 0 | I34: =H34-I12 -> 0 | J34: =I34-J12 -> 0
B35: NA, Net Assets | E35: =E32+E33+E34 -> 544.0746667 | F35: 544.0746667 | G35: 483.4224868 | H35: 512.7647355 | I35: 544.441209 | J35: 553.2460332
B37: D-Short. Line of credit | C37: 0.8 | E37: 136.0544725 | F37: =$C37*F32 -> 195.2597333 | G37: =$C37*G32 -> 210.7379894 | H37: 231.8117884 | I37: 254.9929672 | J37: 260.0928266
B38: D-Long. Loans | E38: 195 | F38: =F39-F37 -> 285.8600725 | G38: =G39-G37 -> 184.8451251 | H38: 153.6579853 | I38: 117.1320457 | J38: 73.90787707
B39: D, Total Debt | E39: =E37+E38 -> 331.0544725 | F39: =IF(F40>F35,0,F35-F40) -> 481.1198058 | G39: =IF(G40>G35,0,G35-G40) -> 395.5831146 | H39: 385.4697737 | I39: 372.125013 | J39: 334.0007036
B40: E, Equity | E40: 212.9548609 | F40: =IF(F63>E40,0,E40-F63)+J63 -> 62.95486087 | G40: =F40+G17-G42 -> 87.83937225 | H40: =G40+H17-H42 -> 127.2949618 | I40: =H40+I17-I42 -> 172.3161961 | J40: =I40+J17-J42 -> 219.2453296
B41: Debt + Equity | E41: =E39+E40 -> 544.0093333 | F41: =F39+F40 -> 544.0746667 | G41: =G40+G39 -> 483.4224868 | H41: =H40+H39 -> 512.7647355 | I41: =I40+I39 -> 544.441209 | J41: =J40+J39 -> 553.2460332
C42: Dividends paid | D42: 0 | F42: nd | G42: =$D42*F17 -> 0 | H42: =$D42*G17 -> 0 | I42: =$D42*H17 -> 0 | J42: =$D42*I17 -> 0
D43: Cash surplus (+) | F43: =F41-F35 -> 0 | G43: =G41-G35 -> 0 | H43: =H41-H35 -> 0 | I43: =I41-I35 -> 0 | J43: =J41-J35 -> 0
D44: Cash flow for the shareholder | F44: nd | G44: =G43-F43+G42 -> 0 | H44: =H43-G43+H42 -> 0 | I44: =I43-H43+I42 -> 0 | J44: =J43-I43+J42 -> 0
D45: Capex | F45: nd | G45: -50 | H45: 25 | I45: =H45 -> 25 | J45: =I45 -> 25
B47: All assumptions in green and bold. | F47: Fill in cells F63 and J63 with the price to pay and the equity to invest.
B48: Read the notes inside each cell | F48: Yellow cells mean be careful with the calculation or main results.
F50: Exhibit 3. ABC. CF Calculation, Valuation, Return and Risks
B52: CF Calculation | F52: =F31 -> 0 | G52: =G31 -> 1 | H52: =H31 -> 2 | I52: =I31 -> 3 | J52: =J31 -> 4
B53: ± Change in NA, net assets | G53: =F35-G35 -> 60.65217987 | H53: =G35-H35 -> -29.34224868 | I53: =H35-I35 -> -31.67647355 | J53: =I35-J35 -> -8.804824181
B54: ± Change in Debt | G54: =G39-F39 -> -85.53669125 | H54: -10.11334089 | I54: -13.3447607 | J54: -38.12430932
B55: ± Net Income | G55: =G40-F40 -> 24.88451138 | H55: 39.45558957 | I55: 45.02123425 | J55: =J40-I40 -> 46.9291335
B56: Final Value, Perpetuity | J56: =E60 -> 312.86089
B57: Initial Equity invested | F57: =-J63 -> -50
B58: CF shareholder | F58: =SUM(F53:F57) -> -50 | G58: =SUM(G53:G57) -> 2.842170943e-14 | H58: =SUM(H53:H57) -> 0 | I58: =SUM(I53:I57) -> 0 | J58: =SUM(J53:J57) -> 312.86089
D60: Final value with Perpetuity & (K-g) = | E60: =J17/D62 -> 312.86089 | H60: Final value, EBITDA multiple | I60: 6 | J60: =I60*J10-J39 -> 337.6340167
C62: Required return K = | D62: 0.15 | E62: PV= | F62: =NPV(D62,G58:J58) -> 178.8792293 | G62: NPV = | H62: =F62+F58 -> 128.8792293 | I62: IRR = | J62: =IRR(F58:J58) -> 0.5815951263
E63: Price to pay = | F63: 200 | I63: Equity to invest = | J63: 50
B65: Equity Valuations
B66: Buyer, max price with DCF and all equity | F66: 205
B67: With EBITDA multiple = | C67: 7 | F67: =C67*F10-E39 -> 191.1279631
B68: With P/E multiple = | C68: 10.9 | F68: =C68*E17 -> 191.6531698
B69: Book Value | F69: =E40 -> 212.9548609
B70: Seller, asking price | F70: nd
B71: Seller, using DCF | F71: 63
B73: Risks. Sensitivity Analysis
B75: Biggest risk? | C75: Base | D75: Worst | E75: Best | F75: Range pp | H75: Worst & Best case | J75: IRR | K75: NPV
B76: g Sales | C76: 0.1 | D76: 0.05 | E76: 0.15 | F76: =(E76-D76)*100 -> 10 | H76: Base case | J76: 0.58 | K76: 129
B77: IRR shareholder | C77: 0.58 | D77: 0.38 | E77: 0.74 | F77: =(E77-D77)*100 -> 36 | H77: Worst case | J77: 0.26 | K77: 23
B78: NPV | C78: 129 | D78: 54 | E78: 211 | F78: =E78-D78 -> 157 | H78: Best case | J78: 0.79 | K78: 241
B79: Margin decline | C79: -0.01 | D79: -0.02 | E79: 0 | F79: =(E79-D79)*100 -> 2 | H79: Range | J79: =J78-J77 -> 0.53 | K79: =K78-K77 -> 218
B80: =B77 -> IRR shareholder | C80: =C77 -> 0.58 | D80: 0.57 | E80: 0.6 | F80: =(E80-D80)*100 -> 3
B81: =B78 -> NPV | C81: =C78 -> 129 | D81: 122 | E81: 136 | F81: =E81-D81 -> 14
B82: Opex increase | C82: 0.02 | D82: 0.04 | E82: 0 | F82: =(E82-D82)*100 -> -4 | H82: Leverage & Return. Price paid = €200
B83: =B80 -> IRR shareholder | C83: =C80 -> 0.58 | D83: 0.54 | E83: 0.62 | F83: =(E83-D83)*100 -> 8 | H83: Debt | I83: Equity | J83: IRR | K83: NPV
B84: =B81 -> NPV | C84: =C81 -> 129 | D84: 109 | E84: 148 | F84: =E84-D84 -> 39 | H84: 0% ó 0€ | I84: 200 | J84: 0.16 | K84: 6
B85: Purchase Price | C85: 200 | D85: 220 | E85: 180 | F85: =E85-D85 -> -40 | H85: 25% ó 50€ | I85: 150 | J85: 0.23 | K85: 47
B86: =B83 -> IRR shareholder | C86: =C83 -> 0.58 | D86: 0.57 | E86: 0.59 | F86: =(E86-D86)*100 -> 2 | H86: 50% ó 100€ | I86: 100 | J86: 0.35 | K86: 88
B87: =B84 -> NPV | C87: =C84 -> 129 | D87: 123 | E87: 133 | F87: =E87-D87 -> 10 | H87: 75% ó 150€ | I87: 50 | J87: 0.58 | K87: 129
K89: =K1 -> © E.M. Abascal. Ag. 2023
B90: Valuation with FCF and with CF shareholder
B92: Companies | D92: A | F92: B
B93: NA Net assets | D93: 100 | F93: 100 | G93: Assume always constant
B94: D Debt | D94: 0 | F94: 70 | G94: Assume always constant
B95: E Equity | D95: =D93-D94 -> 100 | F95: =F93-F94 -> 30
B96: EBIT | D96: 14.286 | F96: =D96 -> 14.286
B97: Finex, financial expenses | D97: =D94*D101 -> 0 | F97: =F94*F101 -> 8.4
B98: EBT | D98: =D96-D97 -> 14.286 | F98: =F96-F97 -> 5.886
B99: Taxes | D99: =D103*D98 -> 4.2858 | F99: =F103*F98 -> 1.7658
B100: Net Income | D100: =D98-D99 -> 10.0002 | F100: =F98-F99 -> 4.1202
B101: Kd | D101: 0.05 | F101: 0.12 | G101: Not rational for A & B to have same Kd, because B has mor debt
B102: Ke | D102: 0.1 | F102: 0.15 | G102: Not rational for A & B to have same Ke, because B has mor debt
B103: t | D103: 0.3 | F103: 0.3
B104: WACC | D104: =D94/D93*D101*(1-D103)+D95/D93*D102 -> 0.1 | F104: =F94/F93*F101*(1-F103)+F95/F93*F102 -> 0.1038
B105: (1) FCF (1-t) = EBIT (1-t) | D105: =D96*(1-$D$103) -> 10.0002 | F105: =F96*(1-$F$103) -> 10.0002
B106: (2) Finex | D106: =D97 -> 0 | F106: =F97 -> 8.4
B107: (3) Finex x t | D107: =D106*D103 -> 0 | F107: =F106*F103 -> 2.52 | G107: Tax shield due to finex
B108: NI = (1) - (2) + (3) | D108: =D105-D106+D107 -> 10.0002 | F108: =F105-F106+F107 -> 4.1202
B109: (1) VA (FCF (1-t) | D109: =D105/D104 -> 100.002 | F109: =F105/F104 -> 96.34104046 | G109: Value of the Net Assets | I109: Using perpetuity
B110: (2) VA (Finex) | D110: =D106/D101 -> 0 | F110: =F106/F101 -> 70 | G110: Value of Debt
B111: (3) VA (Finex x t) | D111: =D107/D102 -> 0 | F111: =F107/F102 -> 16.8 | G111: Value of tax shield
B112: VA (NI) = (1) - (2) + (3) | D112: =D109-D110+D111 -> 100.002 | F112: =F109-F110+F111 -> 43.14104046 | G112: Value of Equity
B113: VA (NI) | D113: =D100/D102 -> 100.002 | F113: =F100/F102 -> 27.468
B115: Conclusions (coteries paribus)
B116: a) VA of NA and E increases with Debt, if discounted at WACC (it doesn't make sense, VA of NA should be always the same regardless the financial structure; wrong influence of WACC)
B117: b) The VA of E calculated as VA NA - Debt is abnormally high
B118: c)

Sheet Exh 2-3 TO DO
E1: Exhibit 2. ABC. P&L and Balance sheet Forecast TO DO | K1: © E.M. Abascal. Ag. 2023
E2: Pre M&A | F2: Post M&A | I2: Forecast
B3: P&L (€m) | C3: Assumptions | E3: 0 | F3: 0 | G3: =F3+1 -> 1 | H3: =G3+1 -> 2 | I3: =H3+1 -> 3 | J3: =I3+1 -> 4
B4: Sales | E4: =F4 -> 798.24996 | F4: 798.24996
B5: COGS | F5: 614.6524692
B6: Gross Margin | F6: =F4-F5 -> 183.5974908 | G6: =G4*G21 -> 0 | H6: =H4*H21 -> 0 | I6: =I4*I21 -> 0 | J6: =J4*J21 -> 0
B7: Salaries | F7: 71 | G7: 60
B8: Overhead | F8: 38
B9: Opex | F9: =F7+F8 -> 109
B10: EBITDA | E10: =F10 -> 74.5974908 | F10: =F6-F9 -> 74.5974908 | G10: 0 | H10: 0 | I10: 0 | J10: 0
B11: Depreciation | C11: 0.1 | F11: 30
B12: Amort. of Goodwill | C12: 0.05
B13: EBIT | E13: =F13 -> 44.5974908 | F13: =F10-F11 -> 44.5974908 | G13: =G10-G11-G12 -> 0 | H13: =H10-H11-H12 -> 0 | I13: =I10-I11-I12 -> 0 | J13: =J10-J11-J12 -> 0
B14: Financial expenses | C14: 0.06 | F14: 19.47911992
B15: EBT | F15: =F13-F14 -> 25.11837088 | G15: 0 | H15: 0 | I15: 0 | J15: 0
B16: Taxes | C16: 0.3 | F16: =0.3*F15 -> 7.535511263 | K16: Suma
B17: Net Income | E17: =F17 -> 17.58285961 | F17: =F15-F16 -> 17.58285961 | G17: 0 | H17: 0 | I17: 0 | J17: 0 | K17: =SUM(G17:J17) -> 0
B19: P&L Ratios | I19: Assumptions (in bold and green)
B20: Growth of Sales | C20: 0.1 | F20: 0.07 | G20: =C20 -> 0.1 | H20: =G20 -> 0.1 | I20: =H20 -> 0.1 | J20: 0.02
B21: Gross Margin / Sales | C21: -0.01 | F21: =F6/F4 -> 0.23 | G21: =F21+$C21 -> 0.22 | H21: =G21+$C21 -> 0.21 | I21: =H21+$C21 -> 0.2 | J21: 0.2
B22: Opex / Sales | F22: =(F9)/F4 -> 0.1365487071
B23: Increase in Opex | C23: 0.02 | F23: -0.04385964912 | G23: =$C$23 -> 0.02 | H23: =G23 -> 0.02 | I23: =C23 -> 0.02 | J23: =I23 -> 0.02
B24: EBITDA / Sales | F24: =F10/F4 -> 0.09345129288
B25: ROS, Net Income / Sales | F25: =F17/F4 -> 0.02202675915 | K25: Media
B26: ROE, Net Income / Equity | F26: =F17/F40 -> 0.2792931216 | G26: =G17/F40 -> 0 | H26: =H17/G40 ->  | I26: =I17/H40 ->  | J26: =J17/I40 ->  | K26: =AVERAGE(G26:J26) -> 
B27: RONA, EBIT / Net Assets | F27: =F13/F35 ->  | K27: =AVERAGE(G27:K27) -> 
B28: Debt /EBITDA | E28: =E39/F10 -> 4.437876783 | F28: =F39/F10 -> 0
E30: Pre M&A | F30: Post M&A | I30: =I2 -> Forecast
B31: Balance (€m) | C31: =C3 -> Assumptions | E31: =E3 -> 0 | F31: 0 | G31: 1 | H31: 2 | I31: 3 | J31: 4
B32: NFO | C32: 0.3 | E32: 244.0746667
B33: FA or Fixed Assets, Net | E33: 300
B34: Goodwill | E34: 0 | F34: =IF((F63-E40)>0,(F63-E40),0) -> 0
B35: NA, Net Assets | E35: =E32+E33+E34 -> 544.0746667 | F35: 0 | G35: 0 | H35: 0 | I35: 0 | J35: 0
B37: D-Short. Line of credit | C37: 0.8 | E37: 136.0544725
B38: D-Long. Loans | E38: 195
B39: D, Total Debt | E39: =E37+E38 -> 331.0544725 | F39: =IF(F40>F35,0,F35-F40) -> 0 | G39: =IF(G40>G35,0,G35-G40) -> 0 | H39: 0 | I39: 0 | J39: 0
B40: E, Equity | E40: 212.9548609 | F40: =IF(F63>E40,0,E40-F63)+J63 -> 62.95486087
B41: Debt + Equity | E41: =E39+E40 -> 544.0093333 | F41: =F39+F40 -> 62.95486087 | G41: =G40+G39 -> 0 | H41: =H40+H39 -> 0 | I41: =I40+I39 -> 0 | J41: =J40+J39 -> 0
C42: Dividends paid | D42: 0 | F42: nd
D43: Cash surplus (+)
D44: Cash flow for the shareholder | F44: nd
D45: Capex | F45: nd | G45: -50 | H45: 25 | I45: =H45 -> 25 | J45: =I45 -> 25
B47: All assumptions in green and bold. | F47: Fill in cells F63 and J63 with the price to pay and the equity to invest.
B48: Read the notes inside each cell | F48: Yellow cells mean be careful with the calculation or main results.
F50: Exhibit 3. ABC. CF Calculation, Valuation, Return and Risks
B52: CF Calculation | F52: =F31 -> 0 | G52: =G31 -> 1 | H52: =H31 -> 2 | I52: =I31 -> 3 | J52: =J31 -> 4
B53: ± Change in NA, net assets
B54: ± Change in Debt
B55: ± Net Income
B56: Final Value, Perpetuity
B57: Initial Equity invested
B58: CF shareholder
D60: Final value with Perpetuity & (K-g) = | E60: =J17/D62 -> 0 | H60: Final value, EBITDA multiple | I60: 6 | J60: =I60*J10-J39 -> 0
C62: Required return K = | D62: 0.15 | E62: PV= | F62: =NPV(D62,G58:J58) -> 0 | G62: NPV = | H62: =F62+F58 -> 0 | I62: IRR = | J62: =IRR(F58:J58) -> 
E63: Price to pay = | F63: 200 | I63: Equity to invest = | J63: 50
B65: Equity Valuations
B66: Buyer, max price with DCF and all equity
B67: With EBITDA multiple = | C67: 7
B68: With P/E multiple = | C68: 10.9
B69: Book Value
B70: Seller, asking price | F70: nd
B71: Seller, using DCF
B73: Risks. Sensitivity Analysis
B75: Biggest risk? | C75: Base | D75: Worst | E75: Best | F75: Range pp | H75: Worst & Best case | J75: TIR | K75: VAN
B76: g Sales | C76: 0.1 | D76: 0.05 | E76: 0.15 | F76: =(E76-D76)*100 -> 10 | H76: Base case
B77: IRR shareholder | F77: =(E77-D77)*100 -> 0 | H77: Worst case
B78: NPV | F78: =E78-D78 -> 0 | H78: Best case
B79: Margin decline | C79: -0.01 | D79: -0.02 | E79: 0 | F79: =(E79-D79)*100 -> 2 | H79: Range | J79: =J78-J77 -> 0 | K79: =K78-K77 -> 0
B80: =B77 -> IRR shareholder | F80: =(E80-D80)*100 -> 0
B81: =B78 -> NPV | F81: =E81-D81 -> 0
B82: Opex increase | C82: 0.02 | D82: 0.04 | E82: 0 | F82: =(E82-D82)*100 -> -4 | H82: Leverage & Return. Price paid = €200
B83: =B80 -> IRR shareholder | F83: =(E83-D83)*100 -> 0 | H83: Debt | I83: Equity | J83: IRR | K83: NPV
B84: =B81 -> NPV | F84: =E84-D84 -> 0 | H84: 0% ó 0€ | I84: 200
B85: Purchase Price | C85: 200 | D85: 220 | E85: 180 | F85: =E85-D85 -> -40 | H85: 25% ó 50€ | I85: 150
B86: =B83 -> IRR shareholder | F86: =(E86-D86)*100 -> 0 | H86: 50% ó 100€ | I86: 100
B87: =B84 -> NPV | F87: =E87-D87 -> 0 | H87: 75% ó 150€ | I87: 50
K89: =K1 -> © E.M. Abascal. Ag. 2023
B90: Valuation with FCF and with CF shareholder
B92: Companies | D92: A | F92: B
B93: NA Net assets | D93: 100 | F93: 100 | G93: Assume always constant
B94: D Debt | D94: 0 | F94: 70 | G94: Assume always constant
B95: E Equity | D95: =D93-D94 -> 100 | F95: =F93-F94 -> 30
B96: EBIT | D96: 14.286 | F96: =D96 -> 14.286
B97: Finex, financial expenses | D97: =D94*D101 -> 0 | F97: =F94*F101 -> 8.4
B98: EBT | D98: =D96-D97 -> 14.286 | F98: =F96-F97 -> 5.886
B99: Taxes | D99: =D103*D98 -> 4.2858 | F99: =F103*F98 -> 1.7658
B100: Net Income | D100: =D98-D99 -> 10.0002 | F100: =F98-F99 -> 4.1202
B101: Kd | D101: 0.05 | F101: 0.12 | G101: Not rational for A & B to have same Kd, because B has mor debt
B102: Ke | D102: 0.1 | F102: 0.15 | G102: Not rational for A & B to have same Ke, because B has mor debt
B103: t | D103: 0.3 | F103: 0.3
B104: WACC | D104: =D94/D93*D101*(1-D103)+D95/D93*D102 -> 0.1 | F104: =F94/F93*F101*(1-F103)+F95/F93*F102 -> 0.1038
B105: (1) FCF (1-t) = EBIT (1-t) | D105: =D96*(1-$D$103) -> 10.0002 | F105: =F96*(1-$F$103) -> 10.0002
B106: (2) Finex | D106: =D97 -> 0 | F106: =F97 -> 8.4
B107: (3) Finex x t | D107: =D106*D103 -> 0 | F107: =F106*F103 -> 2.52 | G107: Tax shield due to finex
B108: NI = (1) - (2) + (3) | D108: =D105-D106+D107 -> 10.0002 | F108: =F105-F106+F107 -> 4.1202
B109: (1) VA (FCF (1-t) | D109: =D105/D104 -> 100.002 | F109: =F105/F104 -> 96.34104046 | G109: Value of the Net Assets | I109: Using perpetuity
B110: (2) VA (Finex) | D110: =D106/D101 -> 0 | F110: =F106/F101 -> 70 | G110: Value of Debt
B111: (3) VA (Finex x t) | D111: =D107/D102 -> 0 | F111: =F107/F102 -> 16.8 | G111: Value of tax shield
B112: VA (NI) = (1) - (2) + (3) | D112: =D109-D110+D111 -> 100.002 | F112: =F109-F110+F111 -> 43.14104046 | G112: Value of Equity
B113: VA (NI) | D113: =D100/D102 -> 100.002 | F113: =F100/F102 -> 27.468
B115: Conclusions (coteries paribus)
B116: a) VA of NA and E increases with Debt, if discounted at WACC (it doesn't make sense, VA of NA should be always the same regardless the financial structure; wrong influence of WACC)
B117: b) The VA of E calculated as VA NA - Debt is abnormally high
B118: c)

Sheet Questions
B1: CAP 10. SELF-ASSESSMENT QUESTIONS. VALUATION OF COMPANIES. | D1: © IESE. Abascal. 2023
B2: Answer T or F, true or false in Col C, to the questions below (Col B).
B3: Each correct answer is 1 point. Incorrect is -1. No answer = 0 points. Leave blank if you don't know. | C3: -1
B4: The correct answers are in Col. D. Click the 2 in the upper left corner, or click the + sign above col. E
B5: Many of the technical questions, about the K, the CF, the IRR have already been formulated in previous chapters. I will repeat some.
B6: Unless otherwise indicated, in this questionnaire, company value = equity value.
B7: If you find errors, please contact eabascal@iese.edu
B8: Time required: 30 min.
B9: Questions on Valuation (40) | C9: Your answer | D9: Correct Answer | E9: Grade
A10: 1 | B10: Analysis of past P&L and Balance sheets. Ideally use 7-10 years with the full business cycle. | D10: T | E10: =IF(C10="",0,IF(C10=D10,1,$C$3)) -> 0 | G10: 1 | H10: =G10+1 -> 2 | I10: =H10+1 -> 3 | J10: 4 | K10: 5 | L10: 6 | M10: 7 | N10: 8 | O10: 9 | P10: 10
A11: =A10+1 -> 2 | B11: Timing. Better to buy after 5 or 6 very good years, to ensure that the target company makes money and is doing well. | D11: F | E11: 0 | G11: T | H11: F | I11: T | J11: T | K11: T | L11: F | M11: T | N11: F | O11: T | P11: F
A12: =A11+1 -> 3 | B12: Be clear about what I buy, customer, product, competitor, assets to sell, etc. | D12: T | E12: 0 | G12: =G10+10 -> 11 | H12: =G12+1 -> 12 | I12: 13 | J12: 14 | K12: 15 | L12: 16 | M12: 17 | N12: 18 | O12: 19 | P12: 20
A13: 4 | B13: After the merger with the target company, the equity of the target company disappears. I will only have as equity the one that I have put in the acquisition. | D13: T | E13: 0 | G13: T | H13: T | I13: T | J13: F | K13: T | L13: T | M13: T | N13: T | O13: F | P13: T
A14: 5 | B14: After the merger, the assets and debts of the 2 companies are added. | D14: T | E14: 0 | G14: =G12+10 -> 21 | H14: =G14+1 -> 22 | I14: 23 | J14: 24 | K14: 25 | L14: 26 | M14: 27 | N14: 28 | O14: 29 | P14: 30
A15: 6 | B15: Goodwill is the value of the customers, the product portfolio, brands, etc. | D15: F | E15: 0 | G15: F | H15: T | I15: T | J15: F | K15: T | L15: F | M15: T | N15: F | O15: F | P15: F
A16: 7 | B16: I need a hypothesis of the price to pay for the shares to make the forecast of P&L and Balance. | D16: T | E16: 0 | G16: =G14+10 -> 31 | H16: =G16+1 -> 32 | I16: 33 | J16: 34 | K16: 35 | L16: 36 | M16: 37 | N16: 38 | O16: 39 | P16: 40
A17: 8 | B17: With an acquisition I almost always improve my company, because the Opex in % goes down. | D17: F | E17: 0 | G17: T | H17: F | I17: F | J17: T | K17: T | L17: T | M17: T | N17: T | O17: F | P17: T
A18: 9 | B18: If I don't improve the business (product, customers, etc.) I won't create value, unless I buy at an abnormally cheap price. | D18: T | E18: 0
A19: 10 | B19: Opex reduction is usually the main value creation factor. | D19: F | E19: 0
A20: 11 | B20: If you buy, it is because you have an action plan, and that action plan must be reflected in the P&L and Balances forecast. | D20: T | E20: 0
A21: 12 | B21: For the forecast, it is better to situate yourself in the year you are in, at the moment of the economic cycle you are in, with the possibilities of growth, margin% that you have now. | D21: T | E21: 0
A22: 13 | B22: The value of a company (and of anything) is always subjective. | D22: T | E22: 0
A23: 14 | B23: The value, that is, the price, of a company can be calculated quite accurately. | D23: F | E23: 0
A24: 15 | B24: The three elements of the value formula (CF, K, g) are subjective, but not arbitrary. | D24: T | E24: 0
A25: 16 | B25: The perpetuity is an estimate of the company's value in the 5th (or 7th or 10th) or last year of our forecast. | D25: T | E25: 0
A26: 17 | B26: The perpetuity value can be very sensitive to the (K-g) we use. | D26: T | E26: 0
A27: 18 | B27: The market capitalization is equal to the last price of the share on the stock market x number of shares of the company. | D27: T | E27: 0
A28: 19 | B28: Market capitalization truly reflects the value of the company. | D28: F | E28: 0
A29: 20 | B29: The NPV is the difference between what a company is worth to me and what I have paid out of pocket for it (invested equity). | D29: T | E29: 0
A30: 21 | B30: Valuation by multiples almost always gives similar results to valuation by cash flow discount. | D30: F | E30: 0
A31: 22 | B31: A shortcut for valuation is PV = CF/(K-g) where CF = sustainable profit of the next few years. | D31: T | E31: 0
A32: 23 | B32: In current financial language enterprise value = asset value = debt + equity. | D32: T | E32: 0
A33: 24 | B33: Enterprise value is the same as the market value of the company, that is, of the shares. | D33: F | E33: 0
A34: 25 | B34: It is very difficult to break away from the prevailing multiples in the market, even if they are disproportionately high or low.. | D34: T | E34: 0
A35: 26 | B35: The maximum price to pay will depend on the financing you obtain via debt. | D35: F | E35: 0
A36: 27 | B36: The maximum price to pay is defined by the present value for you of the equity cash flows you expect as a shareholder. | D36: T | E36: 0
A37: 28 | B37: The EBITDA multiple is usually quite stable over time within the same sector. | D37: F | E37: 0
A38: 29 | B38: In the valuation by EBITDA multiple, what is relevant is the size of the EBITDA, whatever the sector. That is why the sector does not affect the valuation. | D38: F | E38: 0
A39: 30 | B39: The value of the shares for the seller is irrelevant because in the end you will pay only the price that is attractive to you and not the one attractive for the seller. | D39: F | E39: 0
A40: 31 | B40: It is important to know why the seller wants to sell and what he is looking for. | D40: T | E40: 0
A41: 32 | B41: The NPV is what the company you buy is worth to you. | D41: F | E41: 0
A42: 33 | B42: Value creation levers are different from risk factors. Risk is one thing and value creation another. | D42: F | E42: 0
A43: 34 | B43: If I buy cheap, even if the business does not improve anything, I am creating value. | D43: T | E43: 0
A44: 35 | B44: If I'm not listed on the stock market and I'm not planning to sell the company, the topic of value creation doesn't contribute much. | D44: T | E44: 0
A45: 36 | B45: The levers for creating value for the shareholder are: improving the business of the target company, financing the acquisition well, or buying it cheap. | D45: T | E45: 0
A46: 37 | B46: It is important to be clear about what I buy (customers, product, technology, etc.), and how much it would cost me to get it on my own. | D46: T | E46: 0
A47: 38 | B47: In financial jargon, inorganic growth is achieved through acquisitions and organic is the normal growth of the company. | D47: T | E47: 0
A48: 39 | B48: If the company is good, the timing of the acquisition is irrelevant, because sooner or later the company will pay off because it is good. | D48: F | E48: 0
A49: 40 | B49: The price to pay depends a lot on the moment of the economic and stock market cycle, since the stock market is always a reference | D49: T | E49: 0
C51: Your grade | E51: =SUM(E10:E49) -> 0
C52: highest possible grade | E52: 40
B54: More questions on Valuation (grammar review pending) another 65 questions | C54: =C9 -> Your answer | D54: =D9 -> Correct Answer | E54: Grade
A55: 41 | B55: Many acquisitions are justified by synergies (reduction in Opex%). | D55: T | E55: =IF(C55="",0,IF(C55=D55,1,$C$3)) -> 0 | H55: Many acquisitions are justified by synergies (reduction in Opex%).
A56: =A55+1 -> 42 | B56: If you are listed on the stock market, you must anticipate what the effect of the acquisition will be on the stock price. | D56: T | E56: 0 | H56: If you are listed on the stock market, you must anticipate what the effect of the acquisition will be on the stock price.
A57: 43 | B57: But with these criteria you are likely to miss out on many acquisition opportunities. | D57: T | E57: 0 | H57: But with these criteria you are likely to miss out on many acquisition opportunities.
A58: 44 | B58: Be clear why you buy. Reinforce strengths, reduce weaknesses or risks. | D58: T | E58: 0 | H58: Be clear why you buy. Reinforce strengths, reduce weaknesses or risks.
A59: 45 | B59: The reasons for the purchase must be reflected in the P&L and future Balances. | D59: T | E59: 0 | H59: The reasons for the purchase must be reflected in the P&L and future Balances.
A60: 46 | B60: The main value creation lever in an acquisition is the reduction in Opex%, or expected synergies. | D60: F | E60: 0 | H60: The main value creation lever in an acquisition is the reduction in Opex%, or expected synergies.
A61: 47 | B61: The value creation/destruction levers are the assumptions you have used for the P&L forecast and Balance Sheet and price paid. | D61: T | E61: 0 | H61: The value creation/destruction levers are the assumptions you have used for the P&L forecast and Balance Sheet and price paid.
A62: 48 | B62: The VAN is the extra benefit obtained, above the expected benefit. | D62: F | E62: 0 | H62: The VAN is the extra benefit obtained, above the expected benefit.
A63: 49 | B63: The VAN is the extra profitability obtained, above the required profitability K. | D63: F | E63: 0 | H63: The VAN is the extra profitability obtained, above the required profitability K.
A64: 50 | B64: Often the company is worth more to you than to the seller because you can improve it. | D64: T | E64: 0 | H64: Often the company is worth more to you than to the seller because you can improve it.
A65: 51 | B65: The EBITDA multiple is obtained from similar and recent transactions in the sector and also from listed companies. | D65: T | E65: 0 | H65: The EBITDA multiple is obtained from similar and recent transactions in the sector and also from listed companies.
A66: 52 | B66: These three multiples give very similar valuations, within the same sector. | D66: F | E66: 0 | H66: These three multiples give very similar valuations, within the same sector.
A67: 53 | B67: Multiples that are used in the market are: Price / Sales, PER, EBITDA multiple. | D67: T | E67: 0 | H67: Multiples that are used in the market are: Price / Sales, PER, EBITDA multiple.
A68: 54 | B68: The value created is measured (rather estimated) with the VAN. | D68: T | E68: 0 | H68: The value created is measured (rather estimated) with the VAN.
A69: 55 | B69: As the valuation sometimes gives very different numbers (and nothing indicative), make numbers with the price that seems reasonable to you and see if the shareholder return is good and the company's profit is acceptable and the debt can be repaid. | D69: T | E69: 0 | H69: As the valuation sometimes gives very different numbers (and nothing indicative), make numbers with the price that seems reasonable to you and see if the shareholder return is good and the company's profit is acceptable and the debt can be repaid.
A70: =A69+1 -> 56 | B70: The IRR is more subjective than the Present Value (VA) and the VAN (net present value). | D70: F | E70: 0 | H70: The IRR is more subjective than the Present Value (VA) and the VAN (net present value).
A71: 57 | B71: For the forecast it is better to use the average margin and g Sales of good, bad and normal years. | D71: F | E71: 0 | H71: For the forecast it is better to use the average margin and g Sales of good, bad and normal years.
A72: 58 | B72: If I buy a competitor, my growth potential increases. | D72: F | E72: 0 | H72: If I buy a competitor, my growth potential increases.
A73: 59 | B73: Timing. Better to buy when the future looks better than the present. | D73: T | E73: 0 | H73: Timing. Better to buy when the future looks better than the present.
A74: 60 | B74: Valuation has many tricks and therefore valuation is an art and not a technique. | D74: F | E74: 0 | H74: Valuation has many tricks and therefore valuation is an art and not a technique.
A75: 61 | B75: The value of a company depends exclusively on the flows it promises, and therefore it is the same for everyone. True or false. | D75: F | E75: =IF(C75="",0,IF(C75=D75,1,$C$3)) -> 0 | H75: The value of a company depends exclusively on the flows it promises, and therefore it is the same for everyone. True or false.
A76: 62 | B76: The valuation of companies serves to set a price range that is reasonable in order to buy/sell, and to be well prepared for the purchase/sale negotiation. True or false. | D76: T | E76: 0 | H76: The valuation of companies serves to set a price range that is reasonable in order to buy/sell, and to be well prepared for the purchase/sale negotiation. True or false.
A77: 63 | B77: The first step in valuation is to directly calculate the CF. The income statement and the balance sheet are not necessary, since they are already seen in the CF. True or false. | D77: F | E77: 0 | H77: The first step in valuation is to directly calculate the CF. The income statement and the balance sheet are not necessary, since they are already seen in the CF. True or false.
A78: 64 | B78: As a discountable flow, we will use the "cash flow" for the shareholder (CFacc), that is, the cash that the shareholder can take home: what is in the cash plus the dividends paid. True or false. | D78: T | E78: 0 | H78: As a discountable flow, we will use the "cash flow" for the shareholder (CFacc), that is, the cash that the shareholder can take home: what is in the cash plus the dividends paid. True or false.
A79: 65 | B79: CFacc = + Net profit − Change in net asset AN. True or false. | D79: F | E79: 0 | H79: CFacc = + Net profit − Change in net asset AN. True or false.
A80: 66 | B80: The perpetuity in year 5, 10 or 15 is calculated as EBITDA /Ke-g. True or false. | D80: F | E80: 0 | H80: The perpetuity in year 5, 10 or 15 is calculated as EBITDA /Ke-g. True or false.
A81: 67 | B81: If we use net profit as CFacc, we are assuming that the investment will be equal to the amortization or will be financed with debt. True or false. | D81: T | E81: 0 | H81: If we use net profit as CFacc, we are assuming that the investment will be equal to the amortization or will be financed with debt. True or false.
A82: 68 | B82: If we use EBITDA as CFacc, we are assuming that the company will not make any more investments. You will not pay taxes or interest. True or false. | D82: T | E82: 0 | H82: If we use EBITDA as CFacc, we are assuming that the company will not make any more investments. You will not pay taxes or interest. True or false.
A83: 69 | B83: From the cash flow discount formula it can be deduced that the value of a company depends on the CF that the company promises to the shareholder next year, on the profitability K that the shareholder wants to obtain from his investment and on the growth g that is expected for the CF in the next years. True or false. | D83: T | E83: 0 | H83: From the cash flow discount formula it can be deduced that the value of a company depends on the CF that the company promises to the shareholder next year, on the profitability K that the shareholder wants to obtain from his investment and on the growth g that is expected for the CF in the next years. True or false.
A84: 70 | B84: Once the CF of the shareholder and its current value have been calculated, the valuation process is complete. True or false. | D84: F | E84: 0 | H84: Once the CF of the shareholder and its current value have been calculated, the valuation process is complete. True or false.
A85: 71 | B85: Company A promises 10 CFs of €10 and a final CF of 100. Company B promises 10 CFs of €2 and a final value of €132 in year 10. A and B should have the same value since they promise the same CFs , 140 in total. | D85: F | E85: 0 | J85: Company A promises 10 CFs of €10 and a final CF of 100. Company B promises 10 CFs of €2 and a final value of €132 in year 10. A and B should have the same value since they promise the same CFs , 140 in total.
A86: 72 | B86: By risk, we understand the variability in the profitability that the company promises, due to changes in the CFacc that we expect. True or false. | D86: T | E86: 0 | J86: By risk, we understand the variability in the profitability that the company promises, due to changes in the CFacc that we expect. True or false.
A87: 73 | B87: The risk factors of a company are always present, even if the company changes owners, since the risk depends on the business and not on the owner. True or false. | D87: F | E87: 0 | J87: The risk factors of a company are always present, even if the company changes owners, since the risk depends on the business and not on the owner. True or false.
A88: 74 | B88: In the long term, a company with more risk should give higher returns and therefore should be worth more. True or false. | D88: F | E88: 0 | J88: In the long term, a company with more risk should give higher returns and therefore should be worth more. True or false.
A89: 75 | B89: The Ke at which we discount the CFacc is the return that we ask for the assets that we buy. True or false. | D89: F | E89: 0 | J89: The Ke at which we discount the CFacc is the return that we ask for the assets that we buy. True or false.
A90: 76 | B90: The Ke that we must use to buy a company can be accurately calculated using modern portfolio theory. True or false. | D90: F | E90: 0 | J90: The Ke that we must use to buy a company can be accurately calculated using modern portfolio theory. True or false.
A91: 77 | B91: The shareholders of company A ask for a return Ke of 10%. Company A buys company B, which also promises a return of 10% and has the same risk as A. As a consequence, A's shares will be worth more, since A's size is now larger and therefore has less risk. True or false. | D91: F | E91: 0 | J91: The shareholders of company A ask for a return Ke of 10%. Company A buys company B, which also promises a return of 10% and has the same risk as A. As a consequence, A's shares will be worth more, since A's size is now larger and therefore has less risk. True or false.
A92: 78 | B92: The shareholders of company A ask for a return Ke of 10%. Company A buys company B, which also promises a return of 10%, but decreases the joint risk of A+B. As a consequence, A's shares will be worth more, since A now has less risk than before. True or false. | D92: T | E92: 0 | J92: The shareholders of company A ask for a return Ke of 10%. Company A buys company B, which also promises a return of 10%, but decreases the joint risk of A+B. As a consequence, A's shares will be worth more, since A now has less risk than before. True or false.
A93: 79 | B93: Before buying a company, it is convenient to see the consequences of the acquisition in the stakeholders of our company. True or false. | D93: T | E93: 0 | J93: Before buying a company, it is convenient to see the consequences of the acquisition in the stakeholders of our company. True or false.
A94: 80 | B94: If the acquiring company is listed on the stock market, it will be convenient to anticipate the consequences of the acquisition on the market price. True or false. | D94: T | E94: 0 | J94: If the acquiring company is listed on the stock market, it will be convenient to anticipate the consequences of the acquisition on the market price. True or false.
A95: 81 | B95: The PER tells us how many euros we pay for each euro of profit that the company promises (it is the inverse of the profitability of the share). True or false. | D95: T | E95: 0 | J95: The PER tells us how many euros we pay for each euro of profit that the company promises (it is the inverse of the profitability of the share). True or false.
A96: 82 | B96: A high PER necessarily means that the return that the shareholder will receive is low. True or false. | D96: F | E96: 0 | J96: A high PER necessarily means that the return that the shareholder will receive is low. True or false.
A97: 83 | B97: The greater the growth expectations of a company, the higher the PER of the market at which it is traded. True or false. | D97: T | E97: 0 | J97: The greater the growth expectations of a company, the higher the PER of the market at which it is traded. True or false.
A98: 84 | B98: The PER depends on a company depends on the (Ke-g) that the market applies to it. True or false. | D98: T | E98: 0 | J98: The PER depends on a company depends on the (Ke-g) that the market applies to it. True or false.
A99: 85 | B99: Company A trades at a PER of 10. Its EBITDA is €10, therefore its market value must be 10 x €10 = €100. True or false. | D99: F | E99: 0 | J99: Company A trades at a PER of 10. Its EBITDA is €10, therefore its market value must be 10 x €10 = €100. True or false.
A100: 86 | B100: The book value always gives us a very low price for the company and therefore should not be used in valuation. True or false. | D100: F | E100: 0 | J100: The book value always gives us a very low price for the company and therefore should not be used in valuation. True or false.
A101: 87 | B101: Company A's expected ROE is 10%. Its book value is €100. The shareholders of A ask for a return Ke of 10%. The market value of A should be around €100. True or false. | D101: T | E101: 0 | J101: Company A's expected ROE is 10%. Its book value is €100. The shareholders of A ask for a return Ke of 10%. The market value of A should be around €100. True or false.
A102: 88 | B102: When buying, it is necessary to see how the acquired company will influence the growth and risk expectations of the acquiring company. True or false. | D102: T | E102: 0 | J102: When buying, it is necessary to see how the acquired company will influence the growth and risk expectations of the acquiring company. True or false.
A103: 89 | B103: The results of the risk analysis (its quantification) depends on the company's risk factors and not on the person carrying out the analysis. True or false. | D103: F | E103: 0 | J103: The results of the risk analysis (its quantification) depends on the company's risk factors and not on the person carrying out the analysis. True or false.
A104: 90 | B104: The risk is symmetrical: if you win 30% in the optimal scenario, you lose 30% in the worst. True or false. | D104: F | E104: 0 | J104: The risk is symmetrical: if you win 30% in the optimal scenario, you lose 30% in the worst. True or false.
A105: 91 | B105: If you leverage an acquisition with debt, you can pay a higher price, since having put in less money, the shareholder return will continue to be very high. True or false. | D105: F | E105: 0 | J105: If you leverage an acquisition with debt, you can pay a higher price, since having put in less money, the shareholder return will continue to be very high. True or false.
A106: 92 | B106: The fair value payable by a company is the present value of cash flows to the shareholder, assuming that the acquisition is financed with debt and equity. True or false. | D106: F | E106: 0 | J106: The fair value payable by a company is the present value of cash flows to the shareholder, assuming that the acquisition is financed with debt and equity. True or false.
A107: 93 | B107: Sometimes the market price does not reflect the value of the company. True or false. | D107: T | E107: 0 | J107: Sometimes the market price does not reflect the value of the company. True or false.
A108: 94 | B108: The markets are efficient because they reflect all the available information: fundamentals of the company, of the economy and psychological attitude of the investor. True or false. | D108: T | E108: 0 | J108: The markets are efficient because they reflect all the available information: fundamentals of the company, of the economy and psychological attitude of the investor. True or false.
A109: 95 | B109: Usually, listed companies are more valuable than their unlisted counterparts. True or false. | D109: T | E109: 0 | J109: Usually, listed companies are more valuable than their unlisted counterparts. True or false.
A110: 96 | B110: Holding companies (conglomerates) have less risk due to diversification. For this reason, its price on the stock market is usually higher than that of its competitors that are not diversified. True or false. | D110: F | E110: 0 | J110: Holding companies (conglomerates) have less risk due to diversification. For this reason, its price on the stock market is usually higher than that of its competitors that are not diversified. True or false.
A111: 97 | B111: The enterprise value (EV) is the value of the company and therefore the value of its shares. True or false. | D111: F | E111: 0 | J111: The enterprise value (EV) is the value of the company and therefore the value of its shares. True or false.
A112: 98 | B112: The enterprise value (EV) is usually calculated with a multiple x EBITDA. True or false. | D112: T | E112: 0 | J112: The enterprise value (EV) is usually calculated with a multiple x EBITDA. True or false.
A113: 99 | B113: At the peak of the economic cycle, company A had an EBITDA of €100, the best in its history. Similar companies were trading at an EBITDA multiple of 7 times. Therefore we can say that €700 was the fair value of company A at that time. True or false. | D113: F | E113: 0 | J113: At the peak of the economic cycle, company A had an EBITDA of €100, the best in its history. Similar companies were trading at an EBITDA multiple of 7 times. Therefore we can say that €700 was the fair value of company A at that time. True or false.
A114: 100 | B114: Company B has a sustained EBITDA of €10. Its debt is €20. B trades on the stock market at an EBITDA multiple of 5 times. Therefore we can say that the market value of the shares is €30. True or false. | D114: T | E114: 0 | J114: Company B has a sustained EBITDA of €10. Its debt is €20. B trades on the stock market at an EBITDA multiple of 5 times. Therefore we can say that the market value of the shares is €30. True or false.
A115: 101 | B115: You invest €100. Your required return is K =10%. After one year, the retrun obtained is IRR = 10%. You have earned money, but you have not generated value | D115: T | E115: 0
A116: 102 | B116: You invest €100. Your K is 10%. After one year, the profitability obtained is IRR = 5%. You've made money, but you've destroyed value | D116: T | E116: 0
A117: 103 | B117: The NPV is the additional return, in euros, that you obtain above the required rate of return K. | D117: F | E117: 0
A118: 104 | B118: Projects A and B have the same IRR. The initial investment in A was 100 and in B 1,000. Surely B has a higher NPV | D118: F | E118: 0
A119: 105 | B119: A project adds value to the company when the IRR of the project is greater than the required return K. | D119: T | E119: 0
C121: =C51 -> Your grade | E121: =SUM(E55:E119) -> 0
C122: =C52 -> highest possible grade | E122: 65

Sheet Anx 1 (hidden)
D1: Anexo 1. ABC. Cuenta de Resultados y Balances recientes
B3: CUENTA DE RDOS. (Millón €) | D3: 2020 | E3: =D3+1 -> 2021 | F3: =E3+1 -> 2022 | G3: =F3+1 -> 2023
B4: Ventas | D4: 690 | E4: =D4*(1+E19) -> 703.8 | F4: =E4*(1+F19) -> 746.028 | G4: 798.24996
B5: CMV | D5: =D4-D6 -> 528 | E5: =E4-E6 -> 548.3895349 | F5: =F4-F6 -> 574.44156 | G5: =G4-G6 -> 614.6524692
B6: Margen bruto | D6: 162 | E6: =E4*E20 -> 155.4104651 | F6: =F4*F20 -> 171.58644 | G6: 183.5974908
B7: Salarios | D7: 75 | E7: 70 | F7: 72 | G7: 71
B8: Gastos generales | D8: 39 | E8: 35 | F8: 42 | G8: 38
B9: Opex | D9: =D7+D8 -> 114 | E9: =E7+E8 -> 105 | F9: =F7+F8 -> 114 | G9: =G7+G8 -> 109
B10: EBITDA | D10: =D6-D9 -> 48 | E10: =E6-E9 -> 50.41046512 | F10: =F6-F9 -> 57.58644 | G10: =G6-G9 -> 74.5974908
B11: Amortización y provisiones | D11: 25 | E11: =10%*D54 -> 20 | F11: =10%*E54 -> 22 | G11: =10%*F54 -> 30
B12: EBIT benef antes de int e imp. | D12: =D10-D11 -> 23 | E12: =E10-E11 -> 30.41046512 | F12: =F10-F11 -> 35.58644 | G12: =G10-G11 -> 44.5974908
B13: Gastos financieros, neto | D13: 4 | E13: =E27*D59 -> 6 | F13: =F27*E59 -> 14.17976047 | G13: =G27*F59 -> 19.47911992
B14: EBT benef ant de impuestos | D14: =D12-D13 -> 19 | E14: =E12-E13 -> 24.41046512 | F14: =F12-F13 -> 21.40667953 | G14: =G12-G13 -> 25.11837088
B15: Impuestos | D15: =30%*D14 -> 5.7 | E15: =30%*E14 -> 7.323139535 | F15: 6.42200386 | G15: 7.535511263
B16: Beneficio neto | D16: =D14-D15 -> 13.3 | E16: =E14-E15 -> 17.08732558 | F16: =F14-F15 -> 14.98467567 | G16: =G14-G15 -> 17.58285961
B18: Ratios de Cuenta de Resultados | D18: =D3 -> 2020 | E18: =E3 -> 2021 | F18: =F3 -> 2022 | G18: =G3 -> 2023 | H18: Promedio 3a
B19: Crecimiento de ventas | D19: 0.15 | E19: 0.02 | F19: 0.06 | G19: 0.07 | H19: =AVERAGE(E19:G19) -> 0.05
B20: Margen bruto / Ventas | D20: =D6/D4 -> 0.2347826087 | E20: 0.2208162335 | F20: 0.23 | G20: 0.23 | H20: =AVERAGE(E20:G20) -> 0.2269387445
B21: Opex / Ventas | D21: =(D7+D8)/D4 -> 0.1652173913 | E21: =(E7+E8)/E4 -> 0.1491901108 | F21: =(F7+F8)/F4 -> 0.1528092779 | G21: =(G7+G8)/G4 -> 0.1365487071 | H21: =AVERAGE(E21:G21) -> 0.1461826986
B22: Incremento de Opex | D22: nd | E22: =(E8+E7)/(D8+D7)-1 -> -0.07894736842 | F22: =(F8+F7)/(E8+E7)-1 -> 0.08571428571 | G22: =(G8+G7)/(F8+F7)-1 -> -0.04385964912 | H22: =AVERAGE(E22:G22) -> -0.01236424394
B23: EBITDA /Ventas | D23: =D10/D4 -> 0.06956521739 | E23: =E10/E4 -> 0.07162612264 | F23: =F10/F4 -> 0.07719072206 | G23: =G10/G4 -> 0.09345129288 | H23: =AVERAGE(E23:G23) -> 0.08075604586
B24: ROS (Beneficio/Ventas) | D24: =D16/D4 -> 0.01927536232 | E24: =E16/E4 -> 0.02427866664 | F24: =F16/F4 -> 0.02008594272 | G24: =G16/G4 -> 0.02202675915
B25: ROE (Beneficio / Equity) | D25: nd | E25: =E16/D60 -> 0.1046376337 | F25: =F16/E60 -> 0.08306944862 | G25: =G16/F60 -> 0.08999682401 | H25: =AVERAGE(E25:G25) -> 0.09256796877
B26: RONA (EBIT/ Activo neto) | D26: nd | E26: =E12/E55 -> 0.07358142011 | F26: =F12/F55 -> 0.06873684617 | G26: =G12/G55 -> 0.08196943091 | H26: =AVERAGE(E26:G26) -> 0.07476256573
B27: Tipo de interés efectivo | D27: =D13/D59 -> 0.02 | E27: 0.03 | F27: 0.06 | G27: 0.06
B28: EBIT / Gastos financieros | D28: =D12/D13 -> 5.75 | E28: =E12/E13 -> 5.068410853 | F28: =F12/F13 -> 2.509664397 | G28: =G12/G13 -> 2.289502348
B29: Inflación en Alemania | D29: 0.0014 | E29: 0.0307 | F29: 0.0687 | G29: 0.062 | H29: =AVERAGE(D29:G29) -> 0.0407
D31: Anexo 1 cont. ABC. Balances recientes
B33: BALANCE (Millón €) | D33: =D3 -> 2020 | E33: =E3 -> 2021 | F33: =F3 -> 2022 | G33: =G3 -> 2023 | H33: Cambios
B34: Caja | D34: 5 | E34: 3.426666667 | F34: 2.304 | G34: -0.06533333333
B35: Clientes | D35: 155 | E35: 183 | F35: 212 | G35: 245 | H35: =G35-D35 -> 90
B36: Existencias | D36: 44 | E36: 52 | F36: 57 | G36: 59 | H36: =G36-D36 -> 15
B37: Otros | D37: 4 | E37: 5.560666667 | F37: 5.128666667 | G37: 3.551333333
B38: Activo circulante | D38: =SUM(D34:D37) -> 208 | E38: =SUM(E34:E37) -> 243.9873333 | F38: =SUM(F34:F37) -> 276.4326667 | G38: =SUM(G34:G37) -> 307.486
B39: Activo fijo, neto | D39: 200 | E39: 220 | F39: 300 | G39: 300 | H39: =G39-D39 -> 100
B40: Activo total | D40: =D39+D38 -> 408 | E40: =E39+E38 -> 463.9873333 | F40: =F38+F39 -> 576.4326667 | G40: =G38+G39 -> 607.486
B42: Proveedores | D42: =D5/12 -> 44 | E42: 46 | F42: 54 | G42: 60 | H42: =G42-D42 -> 16
B43: Otros acreedores (no comerciales) | D43: 4 | E43: 1.270666667 | F43: 2.408666667 | G43: 3.476666667
B44: Crédito bancario | D44: =IF((D40-D42-D43-D46-D47-D48)>0,(D40-D42-D43-D46-D47-D48),0) -> 0 | E44: =IF((E40-E42-E43-E46-E47-E48)>0,(E40-E42-E43-E46-E47-E48),0) -> 34.32934109 | F44: =IF((F40-F42-F43-F46-F47-F48)>0,(F40-F42-F43-F46-F47-F48),0) -> 114.6519987 | G44: =IF((G40-G42-G43-G46-G47-G48)>0,(G40-G42-G43-G46-G47-G48),0) -> 136.0544725 | H44: =G44-D44 -> 136.0544725
B45: Pasivo circulante | D45: =SUM(D42:D44) -> 48 | E45: =SUM(E42:E44) -> 81.60000775 | F45: =SUM(F42:F44) -> 171.0606654 | G45: =SUM(G42:G44) -> 199.5311391
B46: Deuda a largo | D46: 200 | E46: 202 | F46: 210 | G46: 195 | H46: =G46-D46 -> -5
B47: Patrimonio | D47: 150 | E47: =D47+D48 -> 163.3 | F47: =E47+E48 -> 180.3873256 | G47: =F47+F48 -> 195.3720013 | H47: =G47-D47 -> 45.37200126
B48: Beneficio del año | D48: =D16 -> 13.3 | E48: =E16 -> 17.08732558 | F48: =F16 -> 14.98467567 | G48: =G16 -> 17.58285961 | H48: =G48-D48 -> 4.282859613
B49: Pasivo y Patrimonio | D49: =D45+D46+D47+D48 -> 411.3 | E49: =E45+E46+E47+E48 -> 463.9873333 | F49: =F45+F46+F47+F48 -> 576.4326667 | G49: =G45+G46+G47+G48 -> 607.486
B52: BALANCE RESUMIDO | D52: =D33 -> 2020 | E52: =E33 -> 2021 | F52: =F33 -> 2022 | G52: =G33 -> 2023 | H52: =H33 -> Cambios
B53: NOF (con caja mínima = 0) | D53: =D35+D36+D37-D42-D43 -> 155 | E53: =E35+E36+E37-E42-E43 -> 193.29 | F53: =F35+F36+F37-F42-F43 -> 217.72 | G53: =G35+G36+G37-G42-G43 -> 244.0746667 | H53: =G53-D53 -> 89.07466667
B54: AF, activo fijo neto | D54: =D39 -> 200 | E54: =E39 -> 220 | F54: =F39 -> 300 | G54: =G39 -> 300 | H54: 100
B55: AN, activo neto | D55: =D53+D54 -> 355 | E55: =E53+E54 -> 413.29 | F55: =F53+F54 -> 517.72 | G55: =G53+G54 -> 544.0746667
B57: D-Corto. Líneas de crédito | D57: =D44 -> 0 | E57: =E44 -> 34.32934109 | F57: 114.6519987 | G57: 136.0544725 | H57: 136.0544725
B58: D-Largo. Préstamos | D58: =D46 -> 200 | E58: =E46 -> 202 | F58: =F46 -> 210 | G58: 195 | H58: -5
B59: D Deuda a corto y largo | D59: =D57+D58 -> 200 | E59: =E57+E58 -> 236.3293411 | F59: 324.6519987 | G59: 331.0544725 | H59: 131.0544725
B60: E Equity o Patrimonio | D60: =D47+D48 -> 163.3 | E60: =E47+E48 -> 180.3873256 | F60: =F47+F48 -> 195.3720013 | G60: =G47+G48 -> 212.9548609 | H60: 49.65486087
B61: Financiación | D61: =D59+D60 -> 363.3 | E61: =E59+E60 -> 416.7166667 | F61: =F59+F60 -> 520.024 | G61: =G59+G60 -> 544.0093333
B62: Caja excedente (+) | D62: =D61-D55 -> 8.3 | E62: =E61-E55 -> 3.426666667 | F62: =F61-F55 -> 2.304 | G62: =G61-G55 -> -0.06533333333 | H62: -8.365333333
B64: RATIOS DE BALANCE
B65: NOF / Ventas | D65: =D53/D4 -> 0.2246376812 | E65: =E53/E4 -> 0.2746376812 | F65: =F53/F4 -> 0.2918389122 | G65: =G53/G4 -> 0.3057622034
B66: Clientes en días | D66: =D35/D4*365 -> 81.99275362 | E66: 94.90622336 | F66: 103.7226485 | G66: 112.0263132
B67: Existencias en días | D67: 30.41666667 | E67: 34.61043436 | F67: 36.21778341 | G67: 35.03605871
B68: Proveedores en días | D68: =D42/D5*365 -> 30.41666667 | E68: =E42/E5*365 -> 30.6169227 | F68: =F42/F5*365 -> 34.31158428 | G68: =G42/G5*365 -> 35.62989022 | H68: Suma
B69: Capex | D69: 12 | E69: =E39-D39+E11 -> 40 | F69: =F39-E39+F11 -> 102 | G69: 30 | H69: =SUM(D69:G69) -> 184
B70: Deuda /EBITDA | D70: =D59/D10 -> 4.166666667 | E70: =E59/E10 -> 4.688100785 | F70: =F59/F10 -> 5.637646619 | G70: =G59/G10 -> 4.437876783
B71: Deuda a corto / NOF | D71: =D57/D53 -> 0 | E71: =E57/E53 -> 0.1776053654 | F71: =F57/F53 -> 0.5266029705 | G71: 0.5574297174
B77: Receivables / Ventas | E77: =E35/E$4 -> 0.2600170503 | F77: 0.2841716397 | G77: 0.3069214059
B78: Inventory / Ventas | E78: 0.07388462631 | F78: 0.07640463897 | G78: 0.07391168551
B79: Payables and other / Ventas | E79: =(E42+E43)/E$4 -> 0.06716491427 | F79: =(F42+F43)/F$4 -> 0.07561199669 | G79: =(G42+G43)/G$4 -> 0.07951978684

Sheet Anx 2-3 (hidden)
F1: Anexo 2 . ABC. Previsión de Cta Rdos y Balance | K1: © E.M. Abascal. Ag. 2023
E2: Pre M&A | F2: Post M&A | I2: Previsión
B3: Cta Rdos (mill €) | C3: Hipótesis | E3: 0 | F3: 0 | G3: =F3+1 -> 1 | H3: =G3+1 -> 2 | I3: =H3+1 -> 3 | J3: =I3+1 -> 4
B4: Ventas | E4: =F4 -> 798.24996 | F4: 798.24996 | G4: =F4*(1+G20) -> 878.074956 | H4: =G4*(1+H20) -> 965.8824516 | I4: =H4*(1+I20) -> 1062.470697 | J4: =I4*(1+J20) -> 1083.720111
B5: CMV | F5: 614.6524692 | G5: =(G4-G6) -> 684.8984657 | H5: =(H4-H6) -> 763.0471368 | I5: =(I4-I6) -> 849.9765574 | J5: =(J4-J6) -> 866.9760886
B6: Margen bruto | F6: =F4-F5 -> 183.5974908 | G6: =G4*G21 -> 193.1764903 | H6: =H4*H21 -> 202.8353148 | I6: =I4*I21 -> 212.4941394 | J6: =J4*J21 -> 216.7440221
B7: Salarios | F7: 71 | G7: 60 | H7: =G7*(1+H23) -> 61.2 | I7: =H7*(1+I23) -> 62.424 | J7: =I7*(1+J23) -> 63.67248
B8: Gastos Generales | F8: 38 | G8: =F8*(1+G23) -> 38.76 | H8: =G8*(1+H23) -> 39.5352 | I8: =H8*(1+I23) -> 40.325904 | J8: =I8*(1+J23) -> 41.13242208
B9: Opex | F9: =F7+F8 -> 109 | G9: 98.76 | H9: 100.7352 | I9: 102.749904 | J9: 104.8049021
B10: EBITDA | E10: =F10 -> 74.5974908 | F10: =F6-F9 -> 74.5974908 | G10: 94.41649032 | H10: 102.1001148 | I10: 109.7442354 | J10: 111.9391201
B11: Amortización | C11: 0.1 | F11: 30 | G11: =$C11*F33 -> 30 | H11: =$C11*G33 -> 22 | I11: =$C11*H33 -> 22.3 | J11: =$C11*I33 -> 22.57
B12: Amort. Fondo de comercio | C12: 0.05 | G12: =$C12*$F$34 -> 0 | H12: =$C12*$F$34 -> 0 | I12: =$C12*$F$34 -> 0 | J12: =$C12*$F$34 -> 0
B13: EBIT | E13: =F13 -> 44.5974908 | F13: =F10-F11 -> 44.5974908 | G13: =G10-G11-G12 -> 64.41649032 | H13: =H10-H11-H12 -> 80.10011484 | I13: =I10-I11-I12 -> 87.44423535 | J13: =J10-J11-J12 -> 89.36912006
B14: Gastos financieros, neto | C14: 0.06 | F14: 19.47911992 | G14: =$C14*F39 -> 28.86718835 | H14: =$C14*G39 -> 23.73498687 | I14: =$C14*H39 -> 23.12818642 | J14: =$C14*I39 -> 22.32750078
B15: EBT | F15: =F13-F14 -> 25.11837088 | G15: 35.54930197 | H15: 56.36512796 | I15: 64.31604893 | J15: 67.04161928
B16: Impuestos | C16: 0.3 | F16: =0.3*F15 -> 7.535511263 | G16: =$C$16*G15 -> 10.66479059 | H16: =$C$16*H15 -> 16.90953839 | I16: =$C$16*I15 -> 19.29481468 | J16: =$C$16*J15 -> 20.11248578 | K16: Suma
B17: BN, Beneficio neto | E17: =F17 -> 17.58285961 | F17: =F15-F16 -> 17.58285961 | G17: 24.88451138 | H17: 39.45558957 | I17: 45.02123425 | J17: 46.9291335 | K17: =SUM(G17:J17) -> 156.2904687
B19: Ratios de Cuenta de Resultados | I19: Hipótesis (en negrita y verde)
B20: Crecimiento de ventas | C20: 0.1 | F20: 0.07 | G20: =C20 -> 0.1 | H20: =G20 -> 0.1 | I20: =H20 -> 0.1 | J20: 0.02
B21: Margen bruto / Ventas | C21: -0.01 | F21: =F6/F4 -> 0.23 | G21: =F21+$C21 -> 0.22 | H21: =G21+$C21 -> 0.21 | I21: =H21+$C21 -> 0.2 | J21: 0.2
B22: Opex / Ventas | F22: =(F9)/F4 -> 0.1365487071 | G22: 0.1124733137 | H22: 0.1042934364 | I22: 0.09670845917 | J22: 0.09670845917
B23: Incremento de Opex | C23: 0.02 | F23: -0.04385964912 | G23: =$C$23 -> 0.02 | H23: =G23 -> 0.02 | I23: =C23 -> 0.02 | J23: =I23 -> 0.02
B24: EBITDA /Ventas | F24: =F10/F4 -> 0.09345129288 | G24: 0.1075266863 | H24: 0.1057065636 | I24: 0.1032915408 | J24: 0.1032915408
B25: ROS (Beneficio/Ventas) | F25: =F17/F4 -> 0.02202675915 | G25: 0.02833984868 | H25: 0.0408492664 | I25: 0.04237409501 | J25: 0.04330373962 | K25: Media
B26: ROE (Beneficio / Equity) | F26: =F17/F40 -> 0.2792931216 | G26: =G17/F40 -> 0.3952754567 | H26: =H17/G40 -> 0.4491788655 | I26: =I17/H40 -> 0.3536764818 | J26: =J17/I40 -> 0.2723431376 | K26: =AVERAGE(G26:J26) -> 0.3676184854
B27: RONA (Ebit / Activo neto) | F27: =F13/F35 -> 0.08196943091 | G27: 0.1332509184 | H27: 0.1562122145 | I27: 0.1606128153 | J27: 0.1615359437 | K27: =AVERAGE(G27:J27) -> 0.152902973
B28: Deuda /EBITDA | E28: =E39/F10 -> 4.437876783 | F28: =F39/F10 -> 6.449544088 | G28: 4.189767203 | H28: 3.775409795 | I28: 3.390838815 | J28: 2.983771031
E30: Pre M&A | F30: Post M&A | I30: =I2 -> Previsión
B31: Balance (Mill €) | C31: =C3 -> Hipótesis | E31: =E3 -> 0 | F31: 0 | G31: 1 | H31: 2 | I31: 3 | J31: 4
B32: NOF | C32: 0.3 | E32: 244.0746667 | F32: 244.0746667 | G32: =$C32*G4 -> 263.4224868 | H32: =$C32*H4 -> 289.7647355 | I32: =$C32*I4 -> 318.741209 | J32: =$C32*J4 -> 325.1160332
B33: AF, activo fijo neto | E33: 300 | F33: 300 | G33: =F33-G11+G45 -> 220 | H33: =G33-H11+H45 -> 223 | I33: =H33-I11+I45 -> 225.7 | J33: =I33-J11+J45 -> 228.13
B34: Fondo de comercio | E34: 0 | F34: =IF((F63-E40)>0,(F63-E40),0) -> 0 | G34: =F34-G12 -> 0 | H34: =G34-H12 -> 0 | I34: =H34-I12 -> 0 | J34: =I34-J12 -> 0
B35: AN, activo neto | E35: =E32+E33+E34 -> 544.0746667 | F35: 544.0746667 | G35: 483.4224868 | H35: 512.7647355 | I35: 544.441209 | J35: 553.2460332
B37: D-Corto. Línea de crédito | C37: 0.8 | E37: 136.0544725 | F37: =$C37*F32 -> 195.2597333 | G37: =$C37*G32 -> 210.7379894 | H37: 231.8117884 | I37: 254.9929672 | J37: 260.0928266
B38: D-Largo. Préstamos | E38: 195 | F38: =F39-F37 -> 285.8600725 | G38: =G39-G37 -> 184.8451251 | H38: 153.6579853 | I38: 117.1320457 | J38: 73.90787707
B39: D Deuda total | E39: =E37+E38 -> 331.0544725 | F39: =IF(F40>F35,0,F35-F40) -> 481.1198058 | G39: =IF(G40>G35,0,G35-G40) -> 395.5831146 | H39: 385.4697737 | I39: 372.125013 | J39: 334.0007036
B40: E Equity o Patrimonio | E40: 212.9548609 | F40: =IF(F63>E40,0,E40-F63)+J63 -> 62.95486087 | G40: =F40+G17-G42 -> 87.83937225 | H40: =G40+H17-H42 -> 127.2949618 | I40: =H40+I17-I42 -> 172.3161961 | J40: =I40+J17-J42 -> 219.2453296
B41: Financiación | E41: =E39+E40 -> 544.0093333 | F41: =F39+F40 -> 544.0746667 | G41: =G40+G39 -> 483.4224868 | H41: =H40+H39 -> 512.7647355 | I41: =I40+I39 -> 544.441209 | J41: =J40+J39 -> 553.2460332
C42: Dividendos pagados | D42: 0 | F42: nd | G42: =$D42*F17 -> 0 | H42: =$D42*G17 -> 0 | I42: =$D42*H17 -> 0 | J42: =$D42*I17 -> 0
D43: Caja excedente (+) | F43: =F41-F35 -> 0 | G43: =G41-G35 -> 0 | H43: =H41-H35 -> 0 | I43: =I41-I35 -> 0 | J43: =J41-J35 -> 0
D44: Cash flow anual para accionista | F44: nd | G44: =G43-F43+G42 -> 0 | H44: =H43-G43+H42 -> 0 | I44: =I43-H43+I42 -> 0 | J44: =J43-I43+J42 -> 0
D45: Capex o Nuevas inversiones en AF | F45: nd | G45: -50 | H45: 25 | I45: =H45 -> 25 | J45: =I45 -> 25
B47: Directrices. Todas las hipótesis en verde y negrita. | F47: Rellenar las celdas F63 y J63 con el precio a pagar y el equity a invertir.
B48: Leer las notas dentro de cada celda. | F48: Celdas amarillas significa, cuidado con el cálculo o resultados principales.
F50: Anexo 3. ABC. Cálculo de CF, Valoración, Rentabilidad y Riesgos
B52: Cálculo de CF | F52: =F31 -> 0 | G52: =G31 -> 1 | H52: =H31 -> 2 | I52: =I31 -> 3 | J52: =J31 -> 4
B53: − Variación de AN, activo neto | G53: =F35-G35 -> 60.65217987 | H53: =G35-H35 -> -29.34224868 | I53: =H35-I35 -> -31.67647355 | J53: =I35-J35 -> -8.804824181
B54: + Variación de Deuda | G54: =G39-F39 -> -85.53669125 | H54: -10.11334089 | I54: -13.3447607 | J54: -38.12430932
B55: ± Beneficio o Variación de Equity | G55: =G40-F40 -> 24.88451138 | H55: 39.45558957 | I55: 45.02123425 | J55: =J40-I40 -> 46.9291335
B56: Valor final Perpetuidad | J56: =E60 -> 312.86089
B57: Equity invertido inicialmente | F57: =-J63 -> -50
B58: CF accionista | F58: =SUM(F53:F57) -> -50 | G58: =SUM(G53:G57) -> 2.842170943e-14 | H58: =SUM(H53:H57) -> 0 | I58: =SUM(I53:I57) -> 0 | J58: =SUM(J53:J57) -> 312.86089
D60: Valor final con Perpetuidad y (K-g) = | E60: =J17/D62 -> 312.86089 | H60: VF con múltiplo EBITDA | I60: 6 | J60: =I60*J10-J39 -> 337.6340167
C62: Rentabilidad exigida K= | D62: 0.15 | E62: VA = | F62: =NPV(D62,G58:J58) -> 178.8792293 | G62: VAN = | H62: =F62+F58 -> 128.8792293 | I62: TIR = | J62: =IRR(F58:J58) -> 0.5815951263
E63: Precio a pagar = | F63: 200 | I63: Equity a invertir = | J63: 50
B65: Valoraciones de las acciones
B66: Con DCF, todo equity. Max a pagar | F66: 205
B67: Con Múltiplo EBITDA = | C67: 7 | F67: =C67*F10-E39 -> 191.1279631
B68: Con PER de | C68: 10.5 | F68: =C68*E17 -> 184.6200259 | N68: 8
B69: Valor contable | F69: =E40 -> 212.9548609 | N69: =0.8 -> 0.8
B70: Valor para Vendedor, precio pedido | F70: nd | N70: =N68*N69 -> 6.4
B71: Valor para Vendedor con DCF | F71: 63
B73: Riesgos. Análisis de Sensibilidad
B75: Qué riesgo es mayor | C75: Base | D75: Pesim. | E75: Optim. | F75: Rango pp | H75: Worst & Best case | J75: TIR | K75: VAN
B76: g Ventas | C76: 0.1 | D76: 0.05 | E76: 0.15 | F76: =(E76-D76)*100 -> 10 | H76: Escenario Base | J76: 0.58 | K76: 129
B77: TIR inversor | C77: 0.58 | D77: 0.38 | E77: 0.74 | F77: =(E77-D77)*100 -> 36 | H77: Escenario Peor | J77: 0.26 | K77: 23
B78: VAN | C78: 129 | D78: 54 | E78: 211 | F78: =E78-D78 -> 157 | H78: Escenario Optimo | J78: 0.79 | K78: 241
B79: Caída de margen% x año | C79: -0.01 | D79: -0.02 | E79: 0 | F79: =(E79-D79)*100 -> 2 | H79: Rango | J79: =J78-J77 -> 0.53 | K79: =K78-K77 -> 218
B80: =B77 -> TIR inversor | C80: =C77 -> 0.58 | D80: 0.57 | E80: 0.6 | F80: =(E80-D80)*100 -> 3
B81: VAN | C81: =C78 -> 129 | D81: 122 | E81: 136 | F81: =E81-D81 -> 14
B82: Incremento opex x año | C82: 0.02 | D82: 0.04 | E82: 0 | F82: =(E82-D82)*100 -> -4 | H82: Rentabilidad y Deuda. Precio = 200€
B83: =B80 -> TIR inversor | C83: =C80 -> 0.58 | D83: 0.54 | E83: 0.62 | F83: =(E83-D83)*100 -> 8 | H83: Deuda | I83: Equity | J83: TIR | K83: VAN
B84: VAN | C84: =C81 -> 129 | D84: 109 | E84: 148 | F84: =E84-D84 -> 39 | H84: 0% ó 0€ | I84: 200 | J84: 0.16 | K84: 6
B85: Precio de compra | C85: 200 | D85: 220 | E85: 180 | F85: =E85-D85 -> -40 | H85: 25% ó 50€ | I85: 150 | J85: 0.23 | K85: 47
B86: =B83 -> TIR inversor | C86: =C83 -> 0.58 | D86: 0.57 | E86: 0.59 | F86: =(E86-D86)*100 -> 2 | H86: 50% ó 100€ | I86: 100 | J86: 0.35 | K86: 88
B87: VAN | C87: =C84 -> 129 | D87: 123 | E87: 133 | F87: =E87-D87 -> 10 | H87: 75% ó 150€ | I87: 50 | J87: 0.58 | K87: 129
K89: =K1 -> © E.M. Abascal. Ag. 2023
B90: Valuation with FCF and with CF shareholder
B92: Companies | D92: A | F92: B
B93: NA Net assets | D93: 100 | F93: 100 | G93: Assume always constant
B94: D Debt | D94: 0 | F94: 70 | G94: Assume always constant
B95: E Equity | D95: =D93-D94 -> 100 | F95: =F93-F94 -> 30
B96: EBIT | D96: 14.286 | F96: =D96 -> 14.286
B97: Finex, financial expenses | D97: =D94*D101 -> 0 | F97: =F94*F101 -> 8.4
B98: EBT | D98: =D96-D97 -> 14.286 | F98: =F96-F97 -> 5.886
B99: Taxes | D99: =D103*D98 -> 4.2858 | F99: =F103*F98 -> 1.7658
B100: Net Income | D100: =D98-D99 -> 10.0002 | F100: =F98-F99 -> 4.1202
B101: Kd | D101: 0.05 | F101: 0.12 | G101: Not rational for A & B to have same Kd, becasue B has mor edebt
B102: Ke | D102: 0.1 | F102: 0.15 | G102: Not rational for A & B to have same Ke, becasue B has mor edebt
B103: t | D103: 0.3 | F103: 0.3
B104: WACC | D104: =D94/D93*D101*(1-D103)+D95/D93*D102 -> 0.1 | F104: =F94/F93*F101*(1-F103)+F95/F93*F102 -> 0.1038
B105: (1) FCF (1-t) = EBIT (1-t) | D105: =D96*(1-$D$103) -> 10.0002 | F105: =F96*(1-$F$103) -> 10.0002
B106: (2) Finex | D106: =D97 -> 0 | F106: =F97 -> 8.4
B107: (3) Finex x t | D107: =D106*D103 -> 0 | F107: =F106*F103 -> 2.52 | G107: Tax shield due to finex
B108: NI = (1) - (2) + (3) | D108: =D105-D106+D107 -> 10.0002 | F108: =F105-F106+F107 -> 4.1202
B109: (1) VA (FCF (1-t) | D109: =D105/D104 -> 100.002 | F109: =F105/F104 -> 96.34104046 | G109: Value of the Net Assets | I109: Using prepetuity
B110: (2) VA (Finex) | D110: =D106/D101 -> 0 | F110: =F106/F101 -> 70 | G110: Value of Debt
B111: (3) VA (Finex x t) | D111: =D107/D102 -> 0 | F111: =F107/F102 -> 16.8 | G111: Value of tax shield
B112: VA (NI) = (1) - (2) + (3) | D112: =D109-D110+D111 -> 100.002 | F112: =F109-F110+F111 -> 43.14104046 | G112: Value of Equity
B113: VA (NI) | D113: =D100/D102 -> 100.002 | F113: =F100/F102 -> 27.468
B115: Conclussions (coeteris paribus)
B116: a) VA of NA and E increases with Debt, if discounted at WACC (it doesnt make sense, VA of NA should be always the same regardeless the financial strucutre; wrong inlfuence of WACC)
B117: b) The VA of E calculated as VA NA - Debt is abnormally high
B118: c)

Sheet Anx 2-3 HACER (hidden)
E1: Anexo 2 . ABC. Previsión de Cta Rdos y Balance HACER | K1: © E.M. Abascal. Ag. 2023
E2: Pre M&A | F2: Post M&A | I2: Previsión
B3: Cta Rdos (mill €) | C3: Hipótesis | E3: 0 | F3: 0 | G3: =F3+1 -> 1 | H3: =G3+1 -> 2 | I3: =H3+1 -> 3 | J3: =I3+1 -> 4
B4: Ventas | E4: =F4 -> 798.24996 | F4: 798.24996
B5: CMV | F5: 614.6524692
B6: Margen bruto | F6: =F4-F5 -> 183.5974908 | G6: =G4*G21 -> 0 | H6: =H4*H21 -> 0 | I6: =I4*I21 -> 0 | J6: =J4*J21 -> 0
B7: Salarios | F7: 71 | G7: 60
B8: Gastos Generales | F8: 38
B9: Opex | F9: =F7+F8 -> 109
B10: EBITDA | E10: =F10 -> 74.5974908 | F10: =F6-F9 -> 74.5974908 | G10: =G6-G9 -> 0 | H10: 0 | I10: 0 | J10: 0
B11: Amortización | C11: 0.1 | F11: 30
B12: Amort. Fondo de comercio | C12: 0.05
B13: EBIT | E13: =F13 -> 44.5974908 | F13: =F10-F11 -> 44.5974908
B14: Gastos financieros, neto | C14: 0.06 | F14: 19.47911992
B15: EBT | F15: =F13-F14 -> 25.11837088 | G15: 0 | H15: 0 | I15: 0 | J15: 0
B16: Impuestos | C16: 0.3 | F16: =0.3*F15 -> 7.535511263 | K16: Suma
B17: BN, Beneficio neto | E17: =F17 -> 17.58285961 | F17: =F15-F16 -> 17.58285961 | G17: 0 | H17: 0 | I17: 0 | J17: 0 | K17: =SUM(G17:J17) -> 0
B19: Ratios de Cuenta de Resultados | I19: Hipótesis (en negrita y verde)
B20: Crecimiento de ventas | C20: 0.1 | F20: 0.07 | G20: =C20 -> 0.1 | H20: =G20 -> 0.1 | I20: =H20 -> 0.1 | J20: 0.02
B21: Margen bruto / Ventas | C21: -0.01 | F21: =F6/F4 -> 0.23 | G21: =F21+$C21 -> 0.22 | H21: =G21+$C21 -> 0.21 | I21: =H21+$C21 -> 0.2 | J21: 0.2
B22: Opex / Ventas | F22: =(F9)/F4 -> 0.1365487071
B23: Incremento de Opex | C23: 0.02 | F23: -0.04385964912 | G23: =$C$23 -> 0.02 | H23: =G23 -> 0.02 | I23: =C23 -> 0.02 | J23: =I23 -> 0.02
B24: EBITDA /Ventas | F24: =F10/F4 -> 0.09345129288
B25: ROS (Beneficio/Ventas) | F25: =F17/F4 -> 0.02202675915 | K25: Media
B26: ROE (Beneficio / Equity) | F26: =F17/F40 -> 0.2792931216 | G26: =G17/F40 -> 0 | H26: =H17/G40 ->  | I26: =I17/H40 ->  | J26: =J17/I40 ->  | K26: =AVERAGE(G26:J26) -> 
B27: RONA (Ebit / Activo neto) | F27: =F13/F35 ->  | K27: =AVERAGE(G27:J27) -> 
B28: Deuda /EBITDA | E28: =E39/F10 -> 4.437876783 | F28: =F39/F10 -> 0
E30: Pre M&A | F30: Post M&A | I30: =I2 -> Previsión
B31: Balance (Mill €) | C31: =C3 -> Hipótesis | E31: =E3 -> 0 | F31: 0 | G31: 1 | H31: 2 | I31: 3 | J31: 4
B32: NOF | C32: 0.3 | E32: 244.0746667
B33: AF, activo fijo neto | E33: 300
B34: Fondo de comercio | E34: 0 | F34: =IF((F63-E40)>0,(F63-E40),0) -> 0
B35: AN, activo neto | E35: =E32+E33+E34 -> 544.0746667 | F35: 0 | G35: 0 | H35: 0 | I35: 0 | J35: 0
B37: D-Corto. Línea de crédito | C37: 0.8 | E37: 136.0544725
B38: D-Largo. Préstamos | E38: 195
B39: D Deuda total | E39: =E37+E38 -> 331.0544725 | F39: =IF(F40>F35,0,F35-F40) -> 0 | G39: =IF(G40>G35,0,G35-G40) -> 0 | H39: 0 | I39: 0 | J39: 0
B40: E Equity o Patrimonio | E40: 212.9548609 | F40: =IF(F63>E40,0,E40-F63)+J63 -> 62.95486087
B41: Financiación | E41: =E39+E40 -> 544.0093333 | F41: =F39+F40 -> 62.95486087 | G41: =G40+G39 -> 0 | H41: =H40+H39 -> 0 | I41: =I40+I39 -> 0 | J41: =J40+J39 -> 0
C42: Dividendos pagados | D42: 0 | F42: nd | G42: =$D42*F17 -> 0 | H42: =$D42*G17 -> 0 | I42: =$D42*H17 -> 0 | J42: =$D42*I17 -> 0
D43: Caja excedente (+)
D44: Cash flow anual para accionista | F44: nd
D45: Capex o Nuevas inversiones en AF | F45: nd | G45: -50 | H45: 25 | I45: =H45 -> 25 | J45: =I45 -> 25
B47: Directrices. Todas las hipótesis en verde y negrita. | F47: Rellenar las celdas F63 y J63 con el precio a pagar y el equity a invertir.
B48: Leer las notas dentro de cada celda. | F48: Celdas amarillas significa, cuidado con el cálculo o resultados principales.
F50: Anexo 3. ABC. Cálculo de CF, Valoración, Rentabilidad y Riesgos
B52: Cálculo de CF | F52: =F31 -> 0 | G52: =G31 -> 1 | H52: =H31 -> 2 | I52: =I31 -> 3 | J52: =J31 -> 4
B53: − Variación de AN, activo neto
B54: + Variación de Deuda
B55: ± Beneficio o Variación de Equity
B56: Valor final Perpetuidad
B57: Equity invertido inicialmente
B58: CF accionista | F58: =SUM(F53:F57) -> 0 | G58: =SUM(G53:G57) -> 0 | H58: =SUM(H53:H57) -> 0 | I58: =SUM(I53:I57) -> 0 | J58: =SUM(J53:J57) -> 0
D60: Valor final con Perpetuidad y (K-g) = | E60: =J17/D62 -> 0 | H60: VF con múltiplo EBITDA | I60: 6 | J60: =I60*J10-J39 -> 0
C62: Rentabilidad exigida K= | D62: 0.15 | E62: VA = | F62: =NPV(D62,G58:J58) -> 0 | G62: VAN = | H62: =F62+F58 -> 0 | I62: TIR = | J62: =IRR(F58:J58) -> 
E63: Precio a pagar = | F63: 200 | I63: Equity a invertir = | J63: 50
B65: Valoraciones de las acciones
B66: Con DCF, todo equity. Max a pagar
B67: Con Múltiplo EBITDA = | C67: 7
B68: Con PER de | C68: 10.5 | N68: 8
B69: Valor contable | N69: =0.8 -> 0.8
B70: Valor para Vendedor, precio pedido | F70: nd | N70: =N68*N69 -> 6.4
B71: Valor para Vendedor con DCF
B73: Riesgos. Análisis de Sensibilidad
B75: Qué riesgo es mayor | C75: Base | D75: Pesim. | E75: Optim. | F75: Rango pp | H75: Worst & Best case | J75: TIR | K75: VAN
B76: g Ventas | C76: 0.1 | D76: 0.05 | E76: 0.15 | F76: =(E76-D76)*100 -> 10 | H76: Escenario Base
B77: TIR inversor | H77: Escenario Peor
B78: VAN | H78: Escenario Optimo
B79: Caída de margen% x año | C79: -0.01 | D79: -0.02 | E79: 0 | F79: =(E79-D79)*100 -> 2 | H79: Rango | J79: =J78-J77 -> 0 | K79: =K78-K77 -> 0
B80: =B77 -> TIR inversor
B81: VAN
B82: Incremento opex x año | C82: 0.02 | D82: 0.04 | E82: 0 | F82: =(E82-D82)*100 -> -4 | H82: Rentabilidad y Deuda. Precio = 200€
B83: =B80 -> TIR inversor | H83: Deuda | I83: Equity | J83: TIR | K83: VAN
B84: VAN | H84: 0% ó 0€ | I84: 200
B85: Precio de compra | C85: 200 | D85: 220 | E85: 180 | F85: =E85-D85 -> -40 | H85: 25% ó 50€ | I85: 150
B86: =B83 -> TIR inversor | H86: 50% ó 100€ | I86: 100
B87: VAN | H87: 75% ó 150€ | I87: 50
K89: =K1 -> © E.M. Abascal. Ag. 2023
B90: Valuation with FCF and with CF shareholder
B92: Companies | D92: A | F92: B
B93: NA Net assets | D93: 100 | F93: 100 | G93: Assume always constant
B94: D Debt | D94: 0 | F94: 70 | G94: Assume always constant
B95: E Equity | D95: =D93-D94 -> 100 | F95: =F93-F94 -> 30
B96: EBIT | D96: 14.286 | F96: =D96 -> 14.286
B97: Finex, financial expenses | D97: =D94*D101 -> 0 | F97: =F94*F101 -> 8.4
B98: EBT | D98: =D96-D97 -> 14.286 | F98: =F96-F97 -> 5.886
B99: Taxes | D99: =D103*D98 -> 4.2858 | F99: =F103*F98 -> 1.7658
B100: Net Income | D100: =D98-D99 -> 10.0002 | F100: =F98-F99 -> 4.1202
B101: Kd | D101: 0.05 | F101: 0.12 | G101: Not rational for A & B to have same Kd, becasue B has mor edebt
B102: Ke | D102: 0.1 | F102: 0.15 | G102: Not rational for A & B to have same Ke, becasue B has mor edebt
B103: t | D103: 0.3 | F103: 0.3
B104: WACC | D104: =D94/D93*D101*(1-D103)+D95/D93*D102 -> 0.1 | F104: =F94/F93*F101*(1-F103)+F95/F93*F102 -> 0.1038
B105: (1) FCF (1-t) = EBIT (1-t) | D105: =D96*(1-$D$103) -> 10.0002 | F105: =F96*(1-$F$103) -> 10.0002
B106: (2) Finex | D106: =D97 -> 0 | F106: =F97 -> 8.4
B107: (3) Finex x t | D107: =D106*D103 -> 0 | F107: =F106*F103 -> 2.52 | G107: Tax shield due to finex
B108: NI = (1) - (2) + (3) | D108: =D105-D106+D107 -> 10.0002 | F108: =F105-F106+F107 -> 4.1202
B109: (1) VA (FCF (1-t) | D109: =D105/D104 -> 100.002 | F109: =F105/F104 -> 96.34104046 | G109: Value of the Net Assets | I109: Using prepetuity
B110: (2) VA (Finex) | D110: =D106/D101 -> 0 | F110: =F106/F101 -> 70 | G110: Value of Debt
B111: (3) VA (Finex x t) | D111: =D107/D102 -> 0 | F111: =F107/F102 -> 16.8 | G111: Value of tax shield
B112: VA (NI) = (1) - (2) + (3) | D112: =D109-D110+D111 -> 100.002 | F112: =F109-F110+F111 -> 43.14104046 | G112: Value of Equity
B113: VA (NI) | D113: =D100/D102 -> 100.002 | F113: =F100/F102 -> 27.468
B115: Conclussions (coeteris paribus)
B116: a) VA of NA and E increases with Debt, if discounted at WACC (it doesnt make sense, VA of NA should be always the same regardeless the financial strucutre; wrong inlfuence of WACC)
B117: b) The VA of E calculated as VA NA - Debt is abnormally high
B118: c)

Sheet Preguntas (hidden)
B1: CAP 10. PREGUNTAS de AUTOEVALUACION. VALORACION DE EMPRESAS. | D1: © IESE. Abascal. 2023
B2: Contestar V o F, verdadero o falso en la Col C, a las preguntas de abajo (Col B).
B3: Cada respuesta correcta es 1 punto. Incorrecta es -1. No respuesta = 0 puntos. Deja en blanco si no lo sabes. | C3: -1
B4: Las respuestas correctas están en la Col. D. Pinchar el 2 en esquina superior izda, o pinchar el signo + encima de col. E
B5: Muchas de las preguntas técnicas, sobre la K, el CF, la TIR ya han sido formuladas en caps anteriores. Repetiré algunas.
B6: Salvo indicación en contrario, en este cuestionario, valor de empresa = valor de las acciones.
B7: Si encuentras errores por favor contactar con eabascal@iese.edu
B8: Tiempo requerido: 30 mn.
B9: Preguntas sobre Valoración de Empresas (son 40 en total) | C9: Tu respuesta | D9: Respuesta correcta | E9: Califica-ción
A10: 1 | B10: P&L y Balances pasados. Idealmente usar 7-10 años con el ciclo económico completo. | D10: V | E10: =IF(C10="",0,IF(C10=D10,1,$C$3)) -> 0 | G10: 1 | H10: =G10+1 -> 2 | I10: =H10+1 -> 3 | J10: 4 | K10: 5 | L10: 6 | M10: 7 | N10: 8 | O10: 9 | P10: 10
A11: =A10+1 -> 2 | B11: Timing. Mejor comprar después de 5 ó 6 años muy buenos, para asegurar que la empresa target gana dinero y va bien. | D11: F | E11: 0 | G11: V | H11: F | I11: V | J11: V | K11: V | L11: F | M11: V | N11: F | O11: V | P11: F
A12: =A11+1 -> 3 | B12: Tener claro qué compro, cliente, producto, competidor, activos vendibles, etc | D12: V | E12: 0 | G12: =G10+10 -> 11 | H12: =G12+1 -> 12 | I12: 13 | J12: 14 | K12: 15 | L12: 16 | M12: 17 | N12: 18 | O12: 19 | P12: 20
A13: 4 | B13: Tras la fusión con la empresa target el equity de la empresa target desaparece. Solo tendré como equity el que yo he puesto en la adquisición. | D13: V | E13: 0 | G13: V | H13: V | I13: V | J13: F | K13: V | L13: V | M13: V | N13: V | O13: F | P13: V
A14: 5 | B14: Tras la fusión se suman los activos y las deudas de las 2 empresas. | D14: V | E14: 0 | G14: =G12+10 -> 21 | H14: =G14+1 -> 22 | I14: 23 | J14: 24 | K14: 25 | L14: 26 | M14: 27 | N14: 28 | O14: 29 | P14: 30
A15: 6 | B15: El Fondo de Comercio es el valor de la cartera de clientes, o de productos, marca, etc. | D15: F | E15: 0 | G15: F | H15: V | I15: V | J15: F | K15: V | L15: F | M15: V | N15: F | O15: F | P15: F
A16: 7 | B16: No puedo hacer la previsión de P&L y Balance si no parto de una hipótesis de precio a pagar por las acciones. | D16: V | E16: 0 | G16: =G14+10 -> 31 | H16: =G16+1 -> 32 | I16: 33 | J16: 34 | K16: 35 | L16: 36 | M16: 37 | N16: 38 | O16: 39 | P16: 40
A17: 8 | B17: Con una adquisición casi siempre mejoro mi empresa, pues los Opex en % bajan. | D17: F | E17: 0 | G17: V | H17: F | I17: F | J17: V | K17: V | L17: V | M17: V | N17: V | O17: F | P17: V
A18: 9 | B18: Si no mejoro el negocio (producto, clientes, etc) no crearé valor, salvo que compre a un precio anormalmente barato. | D18: V | E18: 0
A19: 10 | B19: La reducción de Opex suele ser el principal factor de creación de valor. | D19: F | E19: 0
A20: 11 | B20: Si compras es porque tienes un plan de acción y ese plan de acción debe quedar reflejado en el forecast de P&L y Balances. | D20: V | E20: 0
A21: 12 | B21: Para el forecast, mejor situarse en el año en que estás, en el momento del ciclo económico que estás, con las posibilidades de crecimiento, margen% que tienes ahora. | D21: V | E21: 0
A22: 13 | B22: El valor de una empresa (y de cualquier cosa) es siempre subjetivo. | D22: V | E22: 0
A23: 14 | B23: El valor , es decir el precio, de una empresa se puede calcular con bastante exactitud. | D23: F | E23: 0
A24: 15 | B24: Los tres elementos de la fórmula del valor (CF, K, g) son subjetivos, pero no arbitrarios. | D24: V | E24: 0
A25: 16 | B25: La perpetuidad es una estimación del valor de la empresa en el año 5 (ó 7 ó10) o último de nuestro forecast. | D25: V | E25: 0
A26: 17 | B26: El valor de la perpetuidad puede ser muy sensible al (K-g) que utilicemos. | D26: V | E26: 0
A27: 18 | B27: La capitalización bursátil es igual al último precio de la acción en bolsa x número de acciones de la empresa. | D27: V | E27: 0
A28: 19 | B28: La capitalización bursátil refleja realmente el valor de la empresa. | D28: F | E28: 0
A29: 20 | B29: El VAN es la diferencia entre lo que vale para mi una empresa y lo que yo he pagado de mi bolsillo (equity invertido) por ella. | D29: V | E29: 0
A30: 21 | B30: Casi siempre la valoración por múltiplos da resultados similares a la valoración por descuento de cash flows. | D30: F | E30: 0
A31: 22 | B31: Un atajo (número gordo) para la valoración es VA = CF/(K-g) donde CF = beneficio sostenible sostenible de los próximos años. | D31: V | E31: 0
A32: 23 | B32: En el lenguaje financiero actual enterprise value = valor de los activos = deuda + equity. | D32: V | E32: 0
A33: 24 | B33: Enterprise value es lo mismo que valor de mercado de la empresa, es decir, de las acciones. | D33: F | E33: 0
A34: 25 | B34: En la práctica es muy difícil separarse de los múltiplos a los que actualmente se compra, aunque estos sean desproporcionadamente altos o bajos. | D34: V | E34: 0
A35: 26 | B35: El precio máximo a pagar dependerá de la financiación que obtengas vía deuda. | D35: F | E35: 0
A36: 27 | B36: El precio máximo a pagar lo define el valor actual para ti de los cash flows esperados por el accionista. | D36: V | E36: 0
A37: 28 | B37: El múltiplo EBITDA suele ser bastante estable en el tiempo dentro del mismo sector. | D37: F | E37: 0
A38: 29 | B38: En la valoración por múltiplo EBITDA, lo relevante es el tamaño del EBITDA, sea del sector que sea. Por eso el sector no afecta a la valoración. | D38: F | E38: 0
A39: 30 | B39: El valor de las acciones para el vendedor es irrelevante pues a la postre tú pagarás sólo aquel precio que sea atractivo para ti y no para el vendedor. | D39: F | E39: 0
A40: 31 | B40: Es importante saber por qué el vendedor quiere vender y qué busca. | D40: V | E40: 0
A41: 32 | B41: El VAN es lo que vale para ti la empresa que compras. | D41: F | E41: 0
A42: 33 | B42: Las palancas de creación de valor son diferentes de los factores de riesgo. Riesgo es una cosa y creación de valor otra. | D42: F | E42: 0
A43: 34 | B43: Si compro barato, aunque no mejore nada el negocio, estoy creando valor. | D43: V | E43: 0
A44: 35 | B44: Si no cotizo en bolsa ni pienso vender la empresa, el tema creación de valor no aporta mucho. | D44: V | E44: 0
A45: 36 | B45: Las palancas de creación de valor para el accionista son : mejorar el negocio de la empresa target, financiar bien la adquisición, o comprarla barata. | D45: V | E45: 0
A46: 37 | B46: Es importante tener claro qué compro (clientes, producto, tecnología, etc), y cuanto me costaría a mi conseguirlo por mi cuenta. | D46: V | E46: 0
A47: 38 | B47: En el argot financiero, crecimiento inorgánico es el conseguido vía adquisiciones y el orgánico es el crecimiento normal de la empresa. | D47: V | E47: 0
A48: 39 | B48: Si la empresa es buena, da igual el momento del ciclo económico en que compre, pues tarde o temprano la empresa dará sus frutos porque es buena. | D48: F | E48: 0
A49: 40 | B49: El precio a pagar depende mucho del momento del ciclo económico y bursátil, pues la bolsa es siempre una referencia. | D49: V | E49: 0
C51: Tu calificación | E51: =SUM(E10:E49) -> 0
C52: Máxima calificación posible | E52: 40
B54: Más Preguntas sobre Valoración de Empresas (son otras 65) | C54: Tu respuesta | D54: Respuesta correcta | E54: Califica-ción
A55: 41 | B55: Muchas adquisiciones se justifican por las sinergias (reducción de Opex%). | D55: V | E55: =IF(C55="",0,IF(C55=D55,1,$C$3)) -> 0
A56: =A55+1 -> 42 | B56: Si cotizas en bolsa, debes anticipar cual será el efecto de la adquisición en el precio bursátil. | D56: V | E56: 0
A57: 43 | B57: Pero con estos criterios es posibles que pierda muchas oportunidades de adquisición. | D57: V | E57: 0
A58: 44 | B58: Ten claro por qué compras. Reforzar fortalezas, disminuir debilidades o riesgos. | D58: V | E58: 0
A59: 45 | B59: Las razones de la compra deben quedar reflejadas en la P&L y Balances futuros. | D59: V | E59: 0
A60: 46 | B60: La principal palanca de creación de valor en una adquisición es la reducción de Opex%, o sinergias esperadas. | D60: F | E60: 0
A61: 47 | B61: Las palancas de creación/destrucción de valor son las hipótesis que has usado para el forecast de P&L y Balance y precio pagado. | D61: V | E61: 0
A62: 48 | B62: El VAN es el beneficio extra obtenido, por encima del beneficio esperado. | D62: F | E62: 0
A63: 49 | B63: El VAN es la rentabilidad extra obtenida, por encima de la rentabilidad exigida K. | D63: F | E63: 0
A64: 50 | B64: Es frecuente que la empresa valga más para ti que para el vendedor pues tú la puedes mejorar. | D64: V | E64: 0
A65: 51 | B65: El múltiplo EBITDA se obtiene a partir de transacciones similares y recientes en el sector y también de empresas cotizadas. | D65: V | E65: 0
A66: 52 | B66: Estos tres múltiplos dan valoraciones muy similares, dentro del mismo sector. | D66: F | E66: 0
A67: 53 | B67: Múltiplos que se usan en el mercado son: Precio / Ventas, PER, Múltiplo EBITDA. | D67: V | E67: 0
A68: 54 | B68: El valor creado se mide (más bien se estima) con el VAN. | D68: V | E68: 0
A69: 55 | B69: Como la valoración a veces da números muy diferentes (y nada orientativos), haz números con el precio que te parece razonable y mira si la rentabilidad del accionista es buena y el beneficio de la empresa aceptable y la deuda se puede devolver. | D69: V | E69: 0
A70: =A69+1 -> 56 | B70: La TIR es más subjetiva que el Valor actual (VA) y que el VAN (valor actual neto). | D70: F | E70: 0
A71: 57 | B71: Para el forecast mejor usar el promedio de margen y g Ventas de años buenos, malos y normales. | D71: F | E71: 0
A72: 58 | B72: Si compro un competidor, mi potencial de crecimiento aumenta. | D72: F | E72: 0
A73: 59 | B73: Timing. Mejor comprar cuando el futuro pinta mejor que el presente. | D73: V | E73: 0
A74: 60 | B74: La valoración tiene muchas triquiñuelas y por tanto, la valoración es un arte y no una técnica. | D74: F | E74: 0
A75: 61 | B75: El valor de una empresa depende exclusivamente de los flujos que promete, y por tanto es el mismo para todo el mundo. Verdadero o Falso. | D75: F | E75: =IF(C75="",0,IF(C75=D75,1,$C$3)) -> 0
A76: 62 | B76: La valoración de empresas sirve para fijar un rango de precios que sea razonable de cara a comprar/vender, y para ir bien preparados a la negociación de compra/venta. Verdadero o Falso. | D76: V | E76: 0
A77: 63 | B77: El primer paso en la valoración es calcular directamente los CF. La cuenta de resultados y el balance no hacen falta, pues ya se ven en los CF. Verdadero o Falso. | D77: F | E77: 0
A78: 64 | B78: Como flujo a descontar, utilizaremos el «cash flow» para el accionista (CFacc), es decir, la caja que el accionista se puede llevar a su casa: lo que hay en la caja más los dividendos pagados. Verdadero o Falso. | D78: V | E78: 0
A79: 65 | B79: CFacc = + Beneficio neto − Variación de activo neto AN. Verdadero o Falso. | D79: F | E79: 0
A80: 66 | B80: La perpetuidad en el año 5, 10 ó 15 se calcula como EBITDA /Ke-g. Verdadero o Falso. | D80: F | E80: 0
A81: 67 | B81: Si utilizamos como CFacc el beneficio neto, estamos asumiendo que la inversión será igual a la amortización o será financiada con deuda. Verdadero o Falso. | D81: V | E81: 0
A82: 68 | B82: Si utilizamos como CFacc el EBITDA, estamos asumiendo que la empresa no hará más inversiones. Ni pagará impuestos ni intereses. Verdadero o Falso. | D82: V | E82: 0
A83: 69 | B83: De la fórmula del descuento de flujos se deduce que el valor de una empresa depende del CF que la empresa promete al accionista el año próximo, de la rentabilidad K que el accionista quiere obtener de su inversión y del crecimiento g que se espera para los CF en los próximos años. Verdadero o Falso. | D83: V | E83: 0
A84: 70 | B84: Una vez calculados los CF del accionista y su valor actual, el proceso de valoración está completado. Verdadero o Falso. | D84: F | E84: 0
A85: 71 | B85: La empresa A promete 10 CF de 10€ y un CF final de 100. La empresa B promete 10 CF de 2€ y un valor final de 132€ en el año 10. A y B deberían tener el mismo valor pues prometen los mismos Cf, 140 en total. | D85: F | E85: 0
A86: 72 | B86: Por riesgo, entendemos la variabilidad en la rentabilidad que promete la empresa, debida a cambios en los CFacc que esperamos. Verdadero o Falso. | D86: V | E86: 0
A87: 73 | B87: Los factores de riesgo de una empresa están siempre presentes, aunque la empresa cambie de propietario, pues el riesgo depende del negocio y no del propietario. Verdadero o Falso. | D87: F | E87: 0
A88: 74 | B88: En el largo plazo una empresa con más riesgo debería dar mayor rentabilidad y por tanto debería valer más. Verdadero o Falso. | D88: F | E88: 0
A89: 75 | B89: La Ke a la que descontamos los CFacc es la rentabilidad que le pedimos a los activos que compramos. Verdadero o Falso. | D89: F | E89: 0
A90: 76 | B90: La Ke que debemos utilizar para comprar una empresa se puede calcular con exactitud utilizando la teoría moderna de carteras. Verdadero o Falso. | D90: F | E90: 0
A91: 77 | B91: Los accionistas de la empresa A piden una rentabilidad Ke del 10%. La empresa A compra la empresa B, que promete una rentabilidad también del 10% y tiene el mismo riesgo que A. Como consecuencia, las acciones de A valdrán más, pues ahora el tamaño de A es más grande y por tanto tiene menos riesgo. Verdadero o Falso. | D91: F | E91: 0
A92: 78 | B92: Los accionistas de la empresa A piden una rentabilidad Ke del 10%. La empresa A compra la empresa B, que promete una rentabilidad también del 10%, pero disminuye el riesgo conjunto de A+B. Como consecuencia, las acciones de A valdrán más, pues ahora A tiene menos riesgo que antes. Verdadero o Falso. | D92: V | E92: 0
A93: 79 | B93: Antes de comprar una empresa, conviene ver las consecuencias de la adquisición en los stakeholders de nuestra empresa. Verdadero o Falso. | D93: V | E93: 0
A94: 80 | B94: Si la empresa adquirente cotiza en bolsa, convendrá prever las consecuencias de la adquisición en el precio de mercado. Verdadero o Falso. | D94: V | E94: 0
A95: 81 | B95: El PER nos indica cuántos euros pagamos por cada euro de beneficio que la empresa promete (es la inversa de la rentabilidad de la acción). Verdadero o Falso. | D95: V | E95: 0
A96: 82 | B96: Un PER alto significa necesariamente que la rentabilidad que el accionista recibirá es baja. Verdadero o Falso. | D96: F | E96: 0
A97: 83 | B97: Cuanto mayor sean las expectativas de crecimiento de una empresa mayor será el PER de mercado a que cotice. Verdadero o Falso. | D97: V | E97: 0
A98: 84 | B98: El PER depende de una empresa depende del (Ke-g) que el mercado le aplique. Verdadero o Falso. | D98: V | E98: 0
A99: 85 | B99: La empresa A cotiza a un PER de 10. Su EBITDA es de 10€, por tanto su valor bursátil deberá ser de 10 x 10€ = 100€. Verdadero o Falso. | D99: F | E99: 0
A100: 86 | B100: El valor contable siempre nos da un precio muy bajo de la empresa y por eso no se debe utilizar en valoración. Verdadero o Falso. | D100: F | E100: 0
A101: 87 | B101: El ROE esperado de la empresa A es 10%. Su valor contable es 100€. Los accionistas de A piden una rentabilidad Ke del 10%. El valor de mercado de A deberá estar en torno a 100€. Verdadero o Falso. | D101: V | E101: 0
A102: 88 | B102: A la hora de comprar hay que ver como influirá la empresa adquirida en las expectativas de crecimiento y riesgo de la empresa adquirente. Verdadero o Falso. | D102: V | E102: 0
A103: 89 | B103: El resultados del análisis de riesgos (su cuantificación) depende de los factores de riesgo de la empresa y no de la persona que lleva a cabo el análisis. Verdadero o Falso. | D103: F | E103: 0
A104: 90 | B104: El riesgo es simétrico: si ganas un 30% en el escenario óptimo, pierdes un 30% en el pésimo. Verdadero o Falso. | D104: F | E104: 0
A105: 91 | B105: Si apalancas una adquisición con deuda puedes pagar mayor precio, ya que al haber puesto tú menos dinero, la rentabilidad del accionista seguirá siendo muy alta. Verdadero o Falso. | D105: F | E105: 0
A106: 92 | B106: El valor razonable a pagar por una empresa es el valor presente de los cash flows para el accionista, asumiendo que la adquisición se financia con deuda y capital. Verdadero o Falso. | D106: F | E106: 0
A107: 93 | B107: A veces el precio de mercado no refleja el valor de la compañía. Verdadero o Falso. | D107: V | E107: 0
A108: 94 | B108: Los mercados son eficientes porque reflejan toda la información disponible: fundamentales de la empresa, de la economía y actitud sicológica del inversor. Verdadero o Falso. | D108: V | E108: 0
A109: 95 | B109: Habitualmente las compañías en bolsa tienen más valor que sus homónimas que no cotizan. Verdadero o Falso. | D109: V | E109: 0
A110: 96 | B110: Las empresas tipo holding conglomerados) tienen menos riesgos debido a la diversificación. Por ello su precio en bolsa suele ser más elevado que el de sus competidores que no están diversificados. Verdadero o Falso. | D110: F | E110: 0
A111: 97 | B111: El enterprise value (EV) es el valor de la empresa y por tanto el valor de sus acciones. Verdadero o Falso. | D111: F | E111: 0
A112: 98 | B112: El enterprise value (EV) se calcula habitualmente con un múltiplo x EBITDA. Verdadero o Falso. | D112: V | E112: 0
A113: 99 | B113: En la cresta del ciclo económico, la empresa A tenía un EBITDA de 100€, el mejor de sus historia. Compañías similares cotizaban a un múltiplo EBITDA de 7 veces. Por tanto podemos decir que 700€ era el valor razonable de la empresa A en ese momento. Verdadero o Falso. | D113: F | E113: 0
A114: 100 | B114: La empresa B tiene un EBITDA sostenido de 10€.Su deuda es de 20€. B cotiza en bolsa a un múltiplo EBITDA de 5 veces. Por tanto podemos decir que el valor de mercado de las acciones es 30€. Verdadero o Falso. | D114: V | E114: 0
A115: 101 | B115: Inviertes 100€. Tu rentabilidad requerida es K =10%. Al cabo de un año la rentabilidad obtenida es TIR = 10%. Has ganado dinero, pero no has generado valor | D115: V | E115: 0
A116: 102 | B116: Inviertes 100€. Tu K es 10%. Al cabo de un año la rentabilidad obtenida es TIR = 5%. Has ganado dinero, pero has destruido valor | D116: V | E116: 0
A117: 103 | B117: El VAN es la rentabilidad adicional, en euros, que obtienes por encima de la tasa exigida de rentabilidad K. | D117: F | E117: 0
A118: 104 | B118: Los proyectos A y B tienen la misma TIR. La inversión inicial en A fue de 100 y en B de 1.000 . Seguro que B tiene mayor VAN | D118: F | E118: 0
A119: 105 | B119: Un proyecto añade valor a la compañía cuando la TIR del proyecto es mayor que la rentabilidad exigida K. | D119: V | E119: 0
C121: Tu calificación | E121: =SUM(E55:E119) -> 0
C122: Máxima calificación posible | E122: 65

Sheet Anx 1 PT (hidden)
D1: Anexo 1. ABC. P&L e Balanços recentes
B3: P&L (€ milhões) | D3: 2020 | E3: =D3+1 -> 2021 | F3: =E3+1 -> 2022 | G3: =F3+1 -> 2023
B4: Vendas | D4: 690 | E4: =D4*(1+E19) -> 703.8 | F4: =E4*(1+F19) -> 746.028 | G4: 798.24996
B5: CMV | D5: =D4-D6 -> 528 | E5: =E4-E6 -> 548.3895349 | F5: =F4-F6 -> 574.44156 | G5: =G4-G6 -> 614.6524692
B6: Margem bruta | D6: 162 | E6: =E4*E20 -> 155.4104651 | F6: =F4*F20 -> 171.58644 | G6: 183.5974908
B7: Salários | D7: 75 | E7: 70 | F7: 72 | G7: 71
B8: Desp. Gerais | D8: 39 | E8: 35 | F8: 42 | G8: 38
B9: Opex | D9: =D7+D8 -> 114 | E9: =E7+E8 -> 105 | F9: =F7+F8 -> 114 | G9: =G7+G8 -> 109
B10: EBITDA | D10: =D6-D9 -> 48 | E10: =E6-E9 -> 50.41046512 | F10: =F6-F9 -> 57.58644 | G10: =G6-G9 -> 74.5974908
B11: Depreciação | D11: 25 | E11: =10%*D54 -> 20 | F11: =10%*E54 -> 22 | G11: =10%*F54 -> 30
B12: EBIT | D12: =D10-D11 -> 23 | E12: =E10-E11 -> 30.41046512 | F12: =F10-F11 -> 35.58644 | G12: =G10-G11 -> 44.5974908
B13: Desp. Financeiras, líq. | D13: 4 | E13: =E27*D59 -> 6 | F13: =F27*E59 -> 14.17976047 | G13: =G27*F59 -> 19.47911992
B14: EBT | D14: =D12-D13 -> 19 | E14: =E12-E13 -> 24.41046512 | F14: =F12-F13 -> 21.40667953 | G14: =G12-G13 -> 25.11837088
B15: Impostos | D15: =30%*D14 -> 5.7 | E15: =30%*E14 -> 7.323139535 | F15: 6.42200386 | G15: 7.535511263
B16: LL, Lucro Líquido | D16: =D14-D15 -> 13.3 | E16: =E14-E15 -> 17.08732558 | F16: =F14-F15 -> 14.98467567 | G16: =G14-G15 -> 17.58285961
B18: Índices do P&L | D18: =D3 -> 2020 | E18: =E3 -> 2021 | F18: =F3 -> 2022 | G18: =G3 -> 2023 | H18: Média 3 anos
B19: Crescimento Vendas | D19: 0.15 | E19: 0.02 | F19: 0.06 | G19: 0.07 | H19: =AVERAGE(E19:G19) -> 0.05
B20: Margen bruta / Ventas | D20: =D6/D4 -> 0.2347826087 | E20: 0.2208162335 | F20: 0.23 | G20: 0.23 | H20: =AVERAGE(E20:G20) -> 0.2269387445
B21: Opex / Vendas | D21: =(D7+D8)/D4 -> 0.1652173913 | E21: =(E7+E8)/E4 -> 0.1491901108 | F21: =(F7+F8)/F4 -> 0.1528092779 | G21: =(G7+G8)/G4 -> 0.1365487071 | H21: =AVERAGE(E21:G21) -> 0.1461826986
B22: Incremento de Opex | D22: nd | E22: =(E8+E7)/(D8+D7)-1 -> -0.07894736842 | F22: =(F8+F7)/(E8+E7)-1 -> 0.08571428571 | G22: =(G8+G7)/(F8+F7)-1 -> -0.04385964912 | H22: =AVERAGE(E22:G22) -> -0.01236424394
B23: EBITDA /Vendas | D23: =D10/D4 -> 0.06956521739 | E23: =E10/E4 -> 0.07162612264 | F23: =F10/F4 -> 0.07719072206 | G23: =G10/G4 -> 0.09345129288 | H23: =AVERAGE(E23:G23) -> 0.08075604586
B24: ROS (Lucro Líq. / Vendas) | D24: =D16/D4 -> 0.01927536232 | E24: =E16/E4 -> 0.02427866664 | F24: =F16/F4 -> 0.02008594272 | G24: =G16/G4 -> 0.02202675915
B25: ROE (Lucro Líq. / Equity) | D25: nd | E25: =E16/D60 -> 0.1046376337 | F25: =F16/E60 -> 0.08306944862 | G25: =G16/F60 -> 0.08999682401 | H25: =AVERAGE(E25:G25) -> 0.09256796877
B26: RONA (Ebit / Activo Líquido) | D26: nd | E26: =E12/E55 -> 0.07358142011 | F26: =F12/F55 -> 0.06873684617 | G26: =G12/G55 -> 0.08196943091 | H26: =AVERAGE(E26:G26) -> 0.07476256573
B27: Taxa de juros efetiva | D27: =D13/D59 -> 0.02 | E27: 0.03 | F27: 0.06 | G27: 0.06
B28: EBIT / Despesas Financeiras | D28: =D12/D13 -> 5.75 | E28: =E12/E13 -> 5.068410853 | F28: =F12/F13 -> 2.509664397 | G28: =G12/G13 -> 2.289502348
B29: Inflação na Alemanha | D29: 0.0014 | E29: 0.0307 | F29: 0.0687 | G29: 0.062 | H29: =AVERAGE(D29:G29) -> 0.0407
D31: Anexo 1 cont. ABC. Balanços recentes
B33: Balanço (€ milhões) | D33: =D3 -> 2020 | E33: =E3 -> 2021 | F33: =F3 -> 2022 | G33: =G3 -> 2023 | H33: Variação
B34: Caixa | D34: 5 | E34: 3.426666667 | F34: 2.304 | G34: -0.06533333333
B35: Clientes | D35: 155 | E35: 183 | F35: 212 | G35: 245 | H35: =G35-D35 -> 90
B36: Estoques | D36: 44 | E36: 52 | F36: 57 | G36: 59 | H36: =G36-D36 -> 15
B37: Outros | D37: 4 | E37: 5.560666667 | F37: 5.128666667 | G37: 3.551333333
B38: Ativo Circulante | D38: =SUM(D34:D37) -> 208 | E38: =SUM(E34:E37) -> 243.9873333 | F38: =SUM(F34:F37) -> 276.4326667 | G38: =SUM(G34:G37) -> 307.486
B39: Ativo Fixo, Líquido | D39: 200 | E39: 220 | F39: 300 | G39: 300 | H39: =G39-D39 -> 100
B40: Ativo total | D40: =D39+D38 -> 408 | E40: =E39+E38 -> 463.9873333 | F40: =F38+F39 -> 576.4326667 | G40: =G38+G39 -> 607.486
B42: Fornecedores | D42: =D5/12 -> 44 | E42: 46 | F42: 54 | G42: 60 | H42: =G42-D42 -> 16
B43: Outros credores (não comerciais) | D43: 4 | E43: 1.270666667 | F43: 2.408666667 | G43: 3.476666667
B44: Crédito bancário | D44: =IF((D40-D42-D43-D46-D47-D48)>0,(D40-D42-D43-D46-D47-D48),0) -> 0 | E44: =IF((E40-E42-E43-E46-E47-E48)>0,(E40-E42-E43-E46-E47-E48),0) -> 34.32934109 | F44: =IF((F40-F42-F43-F46-F47-F48)>0,(F40-F42-F43-F46-F47-F48),0) -> 114.6519987 | G44: =IF((G40-G42-G43-G46-G47-G48)>0,(G40-G42-G43-G46-G47-G48),0) -> 136.0544725 | H44: =G44-D44 -> 136.0544725
B45: Passivo circulante | D45: =SUM(D42:D44) -> 48 | E45: =SUM(E42:E44) -> 81.60000775 | F45: =SUM(F42:F44) -> 171.0606654 | G45: =SUM(G42:G44) -> 199.5311391
B46: Dívida de longo prazo | D46: 200 | E46: 202 | F46: 210 | G46: 195 | H46: =G46-D46 -> -5
B47: Patrimônio Líquido | D47: 150 | E47: =D47+D48 -> 163.3 | F47: =E47+E48 -> 180.3873256 | G47: =F47+F48 -> 195.3720013 | H47: =G47-D47 -> 45.37200126
B48: Lucro do ano | D48: =D16 -> 13.3 | E48: =E16 -> 17.08732558 | F48: =F16 -> 14.98467567 | G48: =G16 -> 17.58285961 | H48: =G48-D48 -> 4.282859613
B49: Passivo + Patrim. Líquido | D49: =D45+D46+D47+D48 -> 411.3 | E49: =E45+E46+E47+E48 -> 463.9873333 | F49: =F45+F46+F47+F48 -> 576.4326667 | G49: =G45+G46+G47+G48 -> 607.486
B52: BALANÇO CURTO | D52: =D33 -> 2020 | E52: =E33 -> 2021 | F52: =F33 -> 2022 | G52: =G33 -> 2023 | H52: =H33 -> Variação
B53: NOF (com caixa mínimo = 0) | D53: =D35+D36+D37-D42-D43 -> 155 | E53: =E35+E36+E37-E42-E43 -> 193.29 | F53: =F35+F36+F37-F42-F43 -> 217.72 | G53: =G35+G36+G37-G42-G43 -> 244.0746667 | H53: =G53-D53 -> 89.07466667
B54: AF, ativo fixo líquido | D54: =D39 -> 200 | E54: =E39 -> 220 | F54: =F39 -> 300 | G54: =G39 -> 300 | H54: 100
B55: AL, ativo líquido | D55: =D53+D54 -> 355 | E55: =E53+E54 -> 413.29 | F55: =F53+F54 -> 517.72 | G55: =G53+G54 -> 544.0746667
B57: D-Curto. Linhas de crédito | D57: =D44 -> 0 | E57: =E44 -> 34.32934109 | F57: 114.6519987 | G57: 136.0544725 | H57: 136.0544725
B58: D-Longo. Empréstimos | D58: =D46 -> 200 | E58: =E46 -> 202 | F58: =F46 -> 210 | G58: 195 | H58: -5
B59: D Divida curto e lungo prazo | D59: =D57+D58 -> 200 | E59: =E57+E58 -> 236.3293411 | F59: 324.6519987 | G59: 331.0544725 | H59: 131.0544725
B60: E Equity ou PL | D60: =D47+D48 -> 163.3 | E60: =E47+E48 -> 180.3873256 | F60: =F47+F48 -> 195.3720013 | G60: =G47+G48 -> 212.9548609 | H60: 49.65486087
B61: Financiamento | D61: =D59+D60 -> 363.3 | E61: =E59+E60 -> 416.7166667 | F61: =F59+F60 -> 520.024 | G61: =G59+G60 -> 544.0093333
B62: Caixa excedente (+) | D62: =D61-D55 -> 8.3 | E62: =E61-E55 -> 3.426666667 | F62: =F61-F55 -> 2.304 | G62: =G61-G55 -> -0.06533333333 | H62: -8.365333333
B64: ÍNDICES DE BALANÇO
B65: NOF / Vendas | D65: =D53/D4 -> 0.2246376812 | E65: =E53/E4 -> 0.2746376812 | F65: =F53/F4 -> 0.2918389122 | G65: =G53/G4 -> 0.3057622034
B66: Dias de Clientes | D66: =D35/D4*365 -> 81.99275362 | E66: 94.90622336 | F66: 103.7226485 | G66: 112.0263132
B67: Dias de Estoques | D67: 30.41666667 | E67: 34.61043436 | F67: 36.21778341 | G67: 35.03605871
B68: Dias de Fornecedores | D68: =D42/D5*365 -> 30.41666667 | E68: =E42/E5*365 -> 30.6169227 | F68: =F42/F5*365 -> 34.31158428 | G68: =G42/G5*365 -> 35.62989022 | H68: Soma
B69: Capex | D69: 12 | E69: =E39-D39+E11 -> 40 | F69: =F39-E39+F11 -> 102 | G69: 30 | H69: =SUM(D69:G69) -> 184
B70: Dívida / EBITDA | D70: =D59/D10 -> 4.166666667 | E70: =E59/E10 -> 4.688100785 | F70: =F59/F10 -> 5.637646619 | G70: =G59/G10 -> 4.437876783
B71: Divida curto / NOF | D71: =D57/D53 -> 0 | E71: =E57/E53 -> 0.1776053654 | F71: =F57/F53 -> 0.5266029705 | G71: 0.5574297174
B77: Contas a Receber / Vendas | E77: =E35/E$4 -> 0.2600170503 | F77: 0.2841716397 | G77: 0.3069214059
B78: Estoques / Vendas | E78: 0.07388462631 | F78: 0.07640463897 | G78: 0.07391168551
B79: Contas a Pagar e outros / Vendas | E79: =(E42+E43)/E$4 -> 0.06716491427 | F79: =(F42+F43)/F$4 -> 0.07561199669 | G79: =(G42+G43)/G$4 -> 0.07951978684

Sheet Anx 2-3 PT (hidden)
F1: Anexo 2. ABC. P&L e Balanços futuros | K1: © E.M. Abascal. Ag. 2023
E2: Pre M&A | F2: Pós M&A | I2: Previsão
B3: P&L (€ milhões) | C3: Hipóteses | E3: 0 | F3: 0 | G3: =F3+1 -> 1 | H3: =G3+1 -> 2 | I3: =H3+1 -> 3 | J3: =I3+1 -> 4
B4: Vendas | E4: =F4 -> 798.24996 | F4: 798.24996 | G4: =F4*(1+G20) -> 878.074956 | H4: =G4*(1+H20) -> 965.8824516 | I4: =H4*(1+I20) -> 1062.470697 | J4: =I4*(1+J20) -> 1083.720111
B5: CMV | F5: 614.6524692 | G5: =(G4-G6) -> 588.3102205 | H5: =(H4-H6) -> 550.5529974 | I5: =(I4-I6) -> 499.3612275 | J5: =(J4-J6) -> 866.9760886
B6: Margem bruta | F6: =F4-F5 -> 183.5974908 | G6: =G4*G21 -> 289.7647355 | H6: =H4*H21 -> 415.3294542 | I6: =I4*I21 -> 563.1094693 | J6: =J4*J21 -> 216.7440221
B7: Salários | F7: 71 | G7: 60 | H7: =G7*(1+H23) -> 61.2 | I7: =H7*(1+I23) -> 62.424 | J7: =I7*(1+J23) -> 63.67248
B8: Desp. Gerais | F8: 38 | G8: 60 | H8: =G8*(1+H23) -> 61.2 | I8: =H8*(1+I23) -> 62.424 | J8: =I8*(1+J23) -> 63.67248
B9: Opex | F9: =F7+F8 -> 109 | G9: 120 | H9: 122.4 | I9: 124.848 | J9: 127.34496
B10: EBITDA | E10: =F10 -> 74.5974908 | F10: =F6-F9 -> 74.5974908 | G10: 169.7647355 | H10: 292.9294542 | I10: 438.2614693 | J10: 89.39906214
B11: Depreciação | C11: 0.1 | F11: 30 | G11: =$C11*F33 -> 30 | H11: =$C11*G33 -> 22 | I11: =$C11*H33 -> 22.3 | J11: =$C11*I33 -> 22.57
B12: Amort. Ágio | C12: 0.05 | G12: =$C12*$F$34 -> 0 | H12: =$C12*$F$34 -> 0 | I12: =$C12*$F$34 -> 0 | J12: =$C12*$F$34 -> 0
B13: EBIT | E13: =F13 -> 44.5974908 | F13: =F10-F11 -> 44.5974908 | G13: =G10-G11-G12 -> 139.7647355 | H13: =H10-H11-H12 -> 270.9294542 | I13: =I10-I11-I12 -> 415.9614693 | J13: =J10-J11-J12 -> 66.82906214
B14: Desp. Financeiras, líq. | C14: 0.06 | F14: 19.47911992 | G14: =$C14*F39 -> 28.86718835 | H14: =$C14*G39 -> 20.57036058 | I14: =$C14*H39 -> 11.81581357 | J14: =$C14*I39 -> 0
B15: EBT | F15: =F13-F14 -> 25.11837088 | G15: 110.8975471 | H15: 250.3590936 | I15: 404.1456557 | J15: 66.82906214
B16: Impostos | C16: 0.3 | F16: =0.3*F15 -> 7.535511263 | G16: =$C$16*G15 -> 33.26926414 | H16: =$C$16*H15 -> 75.10772808 | I16: =$C$16*I15 -> 121.2436967 | J16: =$C$16*J15 -> 20.04871864 | K16: Soma
B17: LL, Lucro Líquido | E17: =F17 -> 17.58285961 | F17: =F15-F16 -> 17.58285961 | G17: 77.62828299 | H17: 175.2513655 | I17: 282.901959 | J17: 46.7803435 | K17: =SUM(G17:J17) -> 582.561951
B19: Índices do P&L | I19: Hipóteses (em negrito e verde)
B20: Crescimento Vendas | C20: 0.1 | F20: 0.07 | G20: =C20 -> 0.1 | H20: =G20 -> 0.1 | I20: =H20 -> 0.1 | J20: 0.02
B21: Margen bruta / Ventas | C21: 0.1 | F21: =F6/F4 -> 0.23 | G21: =F21+$C21 -> 0.33 | H21: =G21+$C21 -> 0.43 | I21: =H21+$C21 -> 0.53 | J21: 0.2
B22: Opex / Vendas | C22: -0.01 | F22: =(F9)/F4 -> 0.1365487071 | G22: 0.1366625926 | H22: 0.126723495 | I22: 0.1175072408 | J22: 0.1175072408
B23: Incremento de Opex | C23: 0.02 | F23: -0.04385964912 | G23: =$C$23 -> 0.02 | H23: =G23 -> 0.02 | I23: =C23 -> 0.02 | J23: =I23 -> 0.02
B24: EBITDA /Vendas | C24: 0.02 | F24: =F10/F4 -> 0.09345129288 | G24: 0.1933374074 | H24: 0.303276505 | I24: 0.4124927592 | J24: 0.08249275921
B25: ROS (Lucro Líq. / Vendas) | F25: =F17/F4 -> 0.02202675915 | G25: 0.08840735345 | H25: 0.1814417119 | I25: 0.2662680108 | J25: 0.04316644403 | K25: Média
B26: ROE (Lucro Líq. / Equity) | F26: =F17/F40 -> 0.2792931216 | G26: =G17/F40 -> 1.233078462 | H26: =H17/G40 -> 1.246602976 | I26: =I17/H40 -> 0.8957284609 | J26: =J17/I40 -> 0.07813177578 | K26: =AVERAGE(G26:J26) -> 0.8633854186
B27: RONA (Ebit / Ativo Líquido) | F27: =F13/F35 -> 0.08196943091 | G27: 0.2891150894 | H27: 0.5283699042 | I27: 0.7640154022 | J27: 0.1207944714 | K27: =AVERAGE(G27:J27) -> 0.4255737168
B28: Dívida / EBITDA | E28: =E39/F10 -> 4.437876783 | F28: =F39/F10 -> 6.449544088 | G28: 2.019496817 | H28: 0.6722786776 | I28: 0 | J28: 0
E30: Pre M&A | F30: =F2 -> Pós M&A | I30: =I2 -> Previsão
B31: Balanço (€ milhões) | C31: =C3 -> Hipóteses | E31: =E3 -> 0 | F31: 0 | G31: 1 | H31: 2 | I31: 3 | J31: 4
B32: NOF | C32: 0.3 | E32: 244.0746667 | F32: 244.0746667 | G32: =$C32*G4 -> 263.4224868 | H32: =$C32*H4 -> 289.7647355 | I32: =$C32*I4 -> 318.741209 | J32: =$C32*J4 -> 325.1160332
B33: AF, ativo fixo líquido | E33: 300 | F33: 300 | G33: =F33-G11+G45 -> 220 | H33: =G33-H11+H45 -> 223 | I33: =H33-I11+I45 -> 225.7 | J33: =I33-J11+J45 -> 228.13
B34: Ágio | E34: 0 | F34: =IF((F63-E40)>0,(F63-E40),0) -> 0 | G34: =F34-G12 -> 0 | H34: =G34-H12 -> 0 | I34: =H34-I12 -> 0 | J34: =I34-J12 -> 0
B35: AL, ativo líquido | E35: =E32+E33+E34 -> 544.0746667 | F35: 544.0746667 | G35: 483.4224868 | H35: 512.7647355 | I35: 544.441209 | J35: 553.2460332
B37: D-Curto. Linhas de crédito | C37: 0.8 | E37: 136.0544725 | F37: =$C37*F32 -> 195.2597333 | G37: =$C37*G32 -> 210.7379894 | H37: 231.8117884 | I37: 254.9929672 | J37: 260.0928266
B38: D-Longo. Empréstimos | E38: 195 | F38: =F39-F37 -> 285.8600725 | G38: =G39-G37 -> 132.1013535 | H38: -34.88156229 | I38: -254.9929672 | J38: -260.0928266
B39: D Divida curto e longo prazo | E39: =E37+E38 -> 331.0544725 | F39: =IF(F40>F35,0,F35-F40) -> 481.1198058 | G39: =IF(G40>G35,0,G35-G40) -> 342.8393429 | H39: 196.9302261 | I39: 0 | J39: 0
B40: E Equity ou Patrimônio | E40: 212.9548609 | F40: =IF(F63>E40,0,E40-F63)+J63 -> 62.95486087 | G40: =F40+G17-G42 -> 140.5831439 | H40: =G40+H17-H42 -> 315.8345094 | I40: =H40+I17-I42 -> 598.7364684 | J40: =I40+J17-J42 -> 645.5168119
B41: Financiamento | E41: =E39+E40 -> 544.0093333 | F41: =F39+F40 -> 544.0746667 | G41: =G40+G39 -> 483.4224868 | H41: =H40+H39 -> 512.7647355 | I41: =I40+I39 -> 598.7364684 | J41: =J40+J39 -> 645.5168119
C42: Dividendos pagos | D42: 0 | F42: nd | G42: =$D42*F17 -> 0 | H42: =$D42*G17 -> 0 | I42: =$D42*H17 -> 0 | J42: =$D42*I17 -> 0
D43: Caixa excedente (+) | F43: =F41-F35 -> 0 | G43: =G41-G35 -> 0 | H43: =H41-H35 -> 0 | I43: =I41-I35 -> 54.29525936 | J43: =J41-J35 -> 92.27077868
D44: Fluxo de Caixa do acionista | F44: nd | G44: =G43-F43+G42 -> 0 | H44: =H43-G43+H42 -> 0 | I44: =I43-H43+I42 -> 54.29525936 | J44: =J43-I43+J42 -> 37.97551932
D45: Capex ou Novos investimentos em AF | F45: nd | G45: -50 | H45: 25 | I45: =H45 -> 25 | J45: =I45 -> 25
G46: -50
B47: Diretrizes. Todas as hipóteses em verde e negrito. | F47: Preencha as células F63 e J63 com o preço a pagar e o capital a investir.
B48: Leia as notas dentro de cada célula. | F48: Células amarelas significam cuidado com o cálculo ou resultados principais.
F50: Anexo 3. ABC. Cálculo do FC, Valuation, Rentabilidade e Riscos
B52: Cálculo do FC | F52: =F31 -> 0 | G52: =G31 -> 1 | H52: =H31 -> 2 | I52: =I31 -> 3 | J52: =J31 -> 4
B53: − Variação do AL, ativo líq. | G53: =F35-G35 -> 60.65217987 | H53: =G35-H35 -> -29.34224868 | I53: =H35-I35 -> -31.67647355 | J53: =I35-J35 -> -8.804824181
B54: +Variação da Dívida | G54: =G39-F39 -> -138.2804629 | H54: -145.9091168 | I54: -196.9302261 | J54: 0
B55: +Lucro ou Variação do Equity | G55: =G40-F40 -> 77.62828299 | H55: 175.2513655 | I55: 282.901959 | J55: =J40-I40 -> 46.7803435
B56: Valor final Perpetuidade | J56: =E60 -> 311.8689566
B57: Equity investido inicialmente | F57: =-J63 -> -50
B58: FC acionista | F58: =SUM(F53:F57) -> -50 | G58: =SUM(G53:G57) -> 0 | H58: =SUM(H53:H57) -> 0 | I58: =SUM(I53:I57) -> 54.29525936 | J58: =SUM(J53:J57) -> 349.844476
D60: Valor final com Perpetuidade e (K-g) = | E60: =J17/D62 -> 311.8689566 | H60: VFinal com múltiplo EBITDA | I60: 6 | J60: =I60*J10-J39 -> 536.3943728
C62: Rentabilidade exigida K= | D62: 0.15 | E62: VP = | F62: =NPV(D62,G58:J58) -> 235.724729 | G62: VPL = | H62: =F62+F58 -> 185.724729 | I62: TIR = | J62: =IRR(F58:J58) -> 0.7258084043
E63: Preço a pagar = | F63: 200 | I63: Equity a investir = | J63: 50
B65: Valuations do equity
B66: Comprador, com DFC, tudo equity | F66: 205
B67: Com Múltiplo EBITDA = | C67: 7 | F67: =C67*F10-E39 -> 191.1279631
B68: Com múltiplo P/E de | C68: 10.5 | F68: =C68*E17 -> 184.6200259
B69: Valor contábil | F69: =E40 -> 212.9548609
B70: Valor para o vendedor, preço pedido | F70: nd
B71: Valor para o vendedor con DFC | F71: 63
B73: Riscos: Análise de Sensibilidade
B75: Qual o maior risco? | C75: Base | D75: Pessim. | E75: Otim. | F75: Intervalo pp | H75: Cenário Pess. e Otim. | J75: TIR | K75: VPL
B76: g Vendas | C76: 0.1 | D76: 0.15 | E76: 0.15 | F76: =(E76-D76)*100 -> 0 | H76: Cenário Base | J76: 0.58 | K76: 129
B77: TIR investidor | C77: 0.58 | D77: 0.38 | E77: 0.74 | F77: 200 | H77: Cenário Pessimista | J77: 0.26 | K77: 23
B78: VPL | C78: 129 | D78: 54 | E78: 211 | F78: =E78-D78 -> 157 | H78: Cenário Otimista | J78: 0.79 | K78: 241
B79: Queda anual de margem | C79: -0.01 | D79: -0.02 | E79: 0 | F79: =(E79-D79)*100 -> 2 | H79: Intervalo | J79: =J78-J77 -> 0.53 | K79: =K78-K77 -> 218
B80: =B77 -> TIR investidor | C80: =C77 -> 0.58 | D80: 0.57 | E80: 0.6 | F80: =(E80-D80)*100 -> 3
B81: VPL | C81: =C78 -> 129 | D81: 122 | E81: 136 | F81: =E81-D81 -> 14
B82: Incremento anual opex | C82: 0.02 | D82: 0.04 | E82: 0 | F82: =(E82-D82)*100 -> -4 | H82: Rentabilidade e Dívida. Preço = €200
B83: =B80 -> TIR investidor | C83: =C80 -> 0.58 | D83: 0.54 | E83: 0.62 | F83: =(E83-D83)*100 -> 8 | H83: Divida | I83: Equity | J83: TIR | K83: VPL
B84: VPL | C84: =C81 -> 129 | D84: 109 | E84: 148 | F84: =E84-D84 -> 39 | H84: 0% ou €0 | I84: 200 | J84: 0.16 | K84: 6
B85: Preço de aquisição | C85: 200 | D85: 220 | E85: 180 | F85: =E85-D85 -> -40 | H85: 25% ou €50 | I85: 150 | J85: 0.23 | K85: 47
B86: =B83 -> TIR investidor | C86: =C83 -> 0.58 | D86: 0.57 | E86: 0.59 | F86: =(E86-D86)*100 -> 2 | H86: 50% ou €100 | I86: 100 | J86: 0.35 | K86: 88
B87: VPL | C87: =C84 -> 129 | D87: 123 | E87: 133 | F87: =E87-D87 -> 10 | H87: 75% ou €150 | I87: 50 | J87: 0.58 | K87: 129
K89: =K1 -> © E.M. Abascal. Ag. 2023
B90: Valuation com FCF e com o FC acionista
B92: Empresas | D92: A | F92: B
B93: AL, Ativos Líquidos | D93: 100 | F93: 100 | G93: Assuma sempre constante
B94: D Dívida | D94: 0 | F94: 70 | G94: Assuma sempre constante
B95: E Equity (PL) | D95: =D93-D94 -> 100 | F95: =F93-F94 -> 30
B96: EBIT | D96: 14.286 | F96: =D96 -> 14.286
B97: Finex, despesas financeiras | D97: =D94*D101 -> 0 | F97: =F94*F101 -> 8.4
B98: EBT | D98: =D96-D97 -> 14.286 | F98: =F96-F97 -> 5.886
B99: Impostos | D99: =D103*D98 -> 4.2858 | F99: =F103*F98 -> 1.7658
B100: Lucro Líquido | D100: =D98-D99 -> 10.0002 | F100: =F98-F99 -> 4.1202
B101: Kd | D101: 0.05 | F101: 0.12 | G101: Não é racional para A e B terem o mesmo Kd, porque B tem mais dívida
B102: Ke | D102: 0.1 | F102: 0.15 | G102: Não é racional para A e B terem o mesmo Ke, porque B tem mais dívida
B103: t | D103: 0.3 | F103: 0.3
B104: WACC | D104: =D94/D93*D101*(1-D103)+D95/D93*D102 -> 0.1 | F104: =F94/F93*F101*(1-F103)+F95/F93*F102 -> 0.1038
B105: (1) FCF (1-t) = EBIT (1-t) | D105: =D96*(1-$D$103) -> 10.0002 | F105: =F96*(1-$F$103) -> 10.0002
B106: (2) Finex | D106: =D97 -> 0 | F106: =F97 -> 8.4
B107: (3) Finex x t | D107: =D106*D103 -> 0 | F107: =F106*F103 -> 2.52 | G107: Tax shield devido ao finex
B108: LL = (1) - (2) + (3) | D108: =D105-D106+D107 -> 10.0002 | F108: =F105-F106+F107 -> 4.1202
B109: (1) VP (FCF (1-t) | D109: =D105/D104 -> 100.002 | F109: =F105/F104 -> 96.34104046 | G109: Valor dos Ativos Líquidos | I109: Usando perpetuidade
B110: (2) VP (Finex) | D110: =D106/D101 -> 0 | F110: =F106/F101 -> 70 | G110: Valor da Dívida
B111: (3) VP (Finex x t) | D111: =D107/D102 -> 0 | F111: =F107/F102 -> 16.8 | G111: Valor do tax shield
B112: VP (LL) = (1) - (2) + (3) | D112: =D109-D110+D111 -> 100.002 | F112: =F109-F110+F111 -> 43.14104046 | G112: Valor do Equity (PL)
B113: VP (LL) | D113: =D100/D102 -> 100.002 | F113: =F100/F102 -> 27.468

Sheet Anx 2-3 FAZER (hidden)
F1: Anexo 2. ABC. P&L e Balanços futuros | K1: © E.M. Abascal. Ag. 2023
E2: Pre M&A | F2: Pós M&A | I2: Previsão
B3: P&L (€ milhões) | C3: Hipóteses | E3: 0 | F3: 0 | G3: =F3+1 -> 1 | H3: =G3+1 -> 2 | I3: =H3+1 -> 3 | J3: =I3+1 -> 4
B4: Vendas | E4: =F4 -> 798.24996 | F4: 798.24996
B5: CMV | F5: 614.6524692
B6: Margem bruta | F6: =F4-F5 -> 183.5974908 | G6: =G4*G21 -> 0 | H6: =H4*H21 -> 0 | I6: =I4*I21 -> 0 | J6: =J4*J21 -> 0
B7: Salários | F7: 71 | G7: 60 | H7: =G7*(1+H23) -> 61.2 | I7: =H7*(1+I23) -> 62.424 | J7: =I7*(1+J23) -> 63.67248
B8: Desp. Gerais | F8: 38
B9: Opex | F9: =F7+F8 -> 109
B10: EBITDA | E10: =F10 -> 74.5974908 | F10: =F6-F9 -> 74.5974908 | G10: 0 | H10: 0 | I10: 0 | J10: 0
B11: Depreciação | C11: 0.1 | F11: 30
B12: Amort. Ágio | C12: 0.05
B13: EBIT | E13: =F13 -> 44.5974908 | F13: =F10-F11 -> 44.5974908 | G13: =G10-G11-G12 -> 0 | H13: =H10-H11-H12 -> 0 | I13: =I10-I11-I12 -> 0 | J13: =J10-J11-J12 -> 0
B14: Desp. Financeiras, líq. | C14: 0.06 | F14: 19.47911992
B15: EBT | F15: =F13-F14 -> 25.11837088 | G15: 0 | H15: 0 | I15: 0 | J15: 0
B16: Impostos | C16: 0.3 | F16: =0.3*F15 -> 7.535511263 | G16: =$C$16*G15 -> 0 | H16: =$C$16*H15 -> 0 | I16: =$C$16*I15 -> 0 | J16: =$C$16*J15 -> 0 | K16: Soma
B17: LL, Lucro Líquido | E17: =F17 -> 17.58285961 | F17: =F15-F16 -> 17.58285961 | G17: 0 | H17: 0 | I17: 0 | J17: 0 | K17: =SUM(G17:J17) -> 0
B19: Índices do P&L | I19: Hipóteses (em negrito e verde)
B20: Crescimento Vendas | C20: 0.1 | F20: 0.07 | G20: =C20 -> 0.1 | H20: =G20 -> 0.1 | I20: =H20 -> 0.1 | J20: 0.02
B21: Margen bruta / Ventas | C21: 0.1 | F21: =F6/F4 -> 0.23 | G21: =F21+$C21 -> 0.33 | H21: =G21+$C21 -> 0.43 | I21: =H21+$C21 -> 0.53 | J21: 0.2
B22: Opex / Vendas | C22: -0.01 | F22: =(F9)/F4 -> 0.1365487071
B23: Incremento de Opex | C23: 0.02 | F23: -0.04385964912 | G23: =$C$23 -> 0.02 | H23: =G23 -> 0.02 | I23: =C23 -> 0.02 | J23: =I23 -> 0.02
B24: EBITDA /Vendas | C24: 0.02 | F24: =F10/F4 -> 0.09345129288
B25: ROS (Lucro Líq. / Vendas) | F25: =F17/F4 -> 0.02202675915 | K25: Media
B26: ROE (Lucro Líq. / Equity) | F26: =F17/F40 -> 0.2792931216 | G26: =G17/F40 -> 0 | H26: =H17/G40 ->  | I26: =I17/H40 ->  | J26: =J17/I40 ->  | K26: =AVERAGE(G26:J26) -> 
B27: RONA (Ebit / Ativo Líquido) | F27: =F13/F35 ->  | K27: =AVERAGE(G27:J27) -> 
B28: Dívida / EBITDA | E28: =E39/F10 -> 4.437876783 | F28: =F39/F10 -> 0
E30: Pre M&A | F30: =F2 -> Pós M&A | I30: =I2 -> Previsão
B31: Balanço (€ milhões) | C31: =C3 -> Hipóteses | E31: =E3 -> 0 | F31: 0 | G31: 1 | H31: 2 | I31: 3 | J31: 4
B32: NOF | C32: 0.3 | E32: 244.0746667
B33: AF, ativo fixo líquido | E33: 300
B34: Ágio | E34: 0 | F34: =IF((F63-E40)>0,(F63-E40),0) -> 0
B35: AL, ativo líquido | E35: =E32+E33+E34 -> 544.0746667 | F35: 0 | G35: 0 | H35: 0 | I35: 0 | J35: 0
B37: D-Curto. Linhas de crédito | C37: 0.8 | E37: 136.0544725
B38: D-Longo. Empréstimos | E38: 195
B39: D Divida curto e longo prazo | E39: =E37+E38 -> 331.0544725 | F39: =IF(F40>F35,0,F35-F40) -> 0 | G39: =IF(G40>G35,0,G35-G40) -> 0 | H39: 0 | I39: 0 | J39: 0
B40: E Equity ou Patrimônio | E40: 212.9548609 | F40: =IF(F63>E40,0,E40-F63)+J63 -> 62.95486087
B41: Financiamento | E41: =E39+E40 -> 544.0093333 | F41: =F39+F40 -> 62.95486087 | G41: =G40+G39 -> 0 | H41: =H40+H39 -> 0 | I41: =I40+I39 -> 0 | J41: =J40+J39 -> 0
C42: Dividendos pagos | D42: 0 | F42: nd | G42: =$D42*F17 -> 0 | H42: =$D42*G17 -> 0 | I42: =$D42*H17 -> 0 | J42: =$D42*I17 -> 0
D43: Caixa excedente (+)
D44: Fluxo de Caixa do acionista | F44: nd
D45: Capex ou Novos investimentos em AF | F45: nd | G45: -50 | H45: 25 | I45: =H45 -> 25 | J45: =I45 -> 25
B47: Diretrizes. Todas as hipóteses em verde e negrito. | F47: Preencha as células F63 e J63 com o preço a pagar e o capital a investir.
B48: Leia as notas dentro de cada célula. | F48: Células amarelas significam cuidado com o cálculo ou resultados principais.
F50: Anexo 3. ABC. Cálculo do FC, Valuation, Rentabilidade e Riscos
B52: Cálculo do FC | F52: =F31 -> 0 | G52: =G31 -> 1 | H52: =H31 -> 2 | I52: =I31 -> 3 | J52: =J31 -> 4
B53: − Variação do AL, ativo líq.
B54: +Variação da Dívida
B55: +Lucro ou Variação do Equity
B56: Valor final Perpetuidade
B57: Equity investido inicialmente
B58: FC acionista | F58: =SUM(F53:F57) -> 0 | G58: =SUM(G53:G57) -> 0 | H58: =SUM(H53:H57) -> 0 | I58: =SUM(I53:I57) -> 0 | J58: =SUM(J53:J57) -> 0
D60: Valor final com Perpetuidade e (K-g) = | E60: =J17/D62 -> 0 | H60: VFinal com múltiplo EBITDA | I60: 6 | J60: =I60*J10-J39 -> 0
C62: Rentabilidade exigida K= | D62: 0.15 | E62: VP = | F62: =NPV(D62,G58:J58) -> 0 | G62: VPL = | H62: =F62+F58 -> 0 | I62: TIR = | J62: =IRR(F58:J58) -> 
E63: Preço a pagar = | F63: 200 | I63: Equity a investir = | J63: 50
B65: Valuations do equity
B66: Comprador, com DFC, tudo equity | F66: 205
B67: Com Múltiplo EBITDA = | C67: 7 | F67: =C67*F10-E39 -> 191.1279631
B68: Com múltiplo P/E de | C68: 10.5 | F68: =C68*E17 -> 184.6200259
B69: Valor contábil | F69: =E40 -> 212.9548609
B70: Valor para o vendedor, preço pedido | F70: nd
B71: Valor para o vendedor con DFC | F71: 63
B73: Riscos: Análise de Sensibilidade
B75: Qual o maior risco? | C75: Base | D75: Pessim. | E75: Otim. | F75: Intervalo pp | H75: Cenário Pess. e Otim. | J75: TIR | K75: VPL
B76: g Vendas | C76: 0.1 | D76: 0.05 | E76: 0.15 | F76: =(E76-D76)*100 -> 10 | H76: Cenário Base
B77: TIR investidor | H77: Cenário Pessimista
B78: VPL | H78: Cenário Otimista
B79: Queda anual de margem | C79: -0.01 | D79: -0.02 | E79: 0 | F79: =(E79-D79)*100 -> 2 | H79: Intervalo | J79: =J78-J77 -> 0 | K79: =K78-K77 -> 0
B80: =B77 -> TIR investidor
B81: VPL
B82: Incremento anual opex | C82: 0.02 | D82: 0.04 | E82: 0 | F82: =(E82-D82)*100 -> -4 | H82: Rentabilidade e Dívida. Preço = €200
B83: =B80 -> TIR investidor | H83: Divida | I83: Equity | J83: TIR | K83: VPL
B84: VPL | H84: 0% ou €0 | I84: 200
B85: Preço de aquisição | C85: 200 | D85: 220 | E85: 180 | F85: =E85-D85 -> -40 | H85: 25% ou €50 | I85: 150
B86: =B83 -> TIR investidor | H86: 50% ou €100 | I86: 100
B87: VPL | H87: 75% ou €150 | I87: 50
K89: =K1 -> © E.M. Abascal. Ag. 2023
B90: Valuation com FCF e com o FC acionista
B92: Empresas | D92: A | F92: B
B93: AL, Ativos Líquidos | D93: 100 | F93: 100 | G93: Assuma sempre constante
B94: D Dívida | D94: 0 | F94: 70 | G94: Assuma sempre constante
B95: E Equity (PL) | D95: =D93-D94 -> 100 | F95: =F93-F94 -> 30
B96: EBIT | D96: 14.286 | F96: =D96 -> 14.286
B97: Finex, despesas financeiras | D97: =D94*D101 -> 0 | F97: =F94*F101 -> 8.4
B98: EBT | D98: =D96-D97 -> 14.286 | F98: =F96-F97 -> 5.886
B99: Impostos | D99: =D103*D98 -> 4.2858 | F99: =F103*F98 -> 1.7658
B100: Lucro Líquido | D100: =D98-D99 -> 10.0002 | F100: =F98-F99 -> 4.1202
B101: Kd | D101: 0.05 | F101: 0.12 | G101: Não é racional para A e B terem o mesmo Kd, porque B tem mais dívida
B102: Ke | D102: 0.1 | F102: 0.15 | G102: Não é racional para A e B terem o mesmo Ke, porque B tem mais dívida
B103: t | D103: 0.3 | F103: 0.3
B104: WACC | D104: =D94/D93*D101*(1-D103)+D95/D93*D102 -> 0.1 | F104: =F94/F93*F101*(1-F103)+F95/F93*F102 -> 0.1038
B105: (1) FCF (1-t) = EBIT (1-t) | D105: =D96*(1-$D$103) -> 10.0002 | F105: =F96*(1-$F$103) -> 10.0002
B106: (2) Finex | D106: =D97 -> 0 | F106: =F97 -> 8.4
B107: (3) Finex x t | D107: =D106*D103 -> 0 | F107: =F106*F103 -> 2.52 | G107: Tax shield devido ao finex
B108: LL = (1) - (2) + (3) | D108: =D105-D106+D107 -> 10.0002 | F108: =F105-F106+F107 -> 4.1202
B109: (1) VP (FCF (1-t) | D109: =D105/D104 -> 100.002 | F109: =F105/F104 -> 96.34104046 | G109: Valor dos Ativos Líquidos | I109: Usando perpetuidade
B110: (2) VP (Finex) | D110: =D106/D101 -> 0 | F110: =F106/F101 -> 70 | G110: Valor da Dívida
B111: (3) VP (Finex x t) | D111: =D107/D102 -> 0 | F111: =F107/F102 -> 16.8 | G111: Valor do tax shield
B112: VP (LL) = (1) - (2) + (3) | D112: =D109-D110+D111 -> 100.002 | F112: =F109-F110+F111 -> 43.14104046 | G112: Valor do Equity (PL)
B113: VP (LL) | D113: =D100/D102 -> 100.002 | F113: =F100/F102 -> 27.468

Sheet Perguntas (hidden)
B1: CAP 10. PERGUNTAS de AUTOAVALIAÇÃO. VALORAÇÃO DE EMPRESAS. | D1: © IESE. Abascal. 2023
B2: Responda V ou F, verdadeiro ou falso na Col C, às perguntas abaixo (Col B).
B3: Cada resposta correta vale 1 ponto. Resposta incorreta vale -1. Sem resposta = 0 pontos. Deixe em branco se não souber. | C3: -1
B4: As respostas corretas estão na Col. D. Clique no "2" no canto superior esquerdo ou clique no sinal de "+" acima da Col. E.
B5: Muitas das perguntas técnicas, sobre o K, o FC, a TIR já foram formuladas em capítulos anteriores. Repetirei algumas.
B6: Salvo indicação em contrário, neste questionário, valor da empresa = valor das ações.
B7: Se encontrar erros, por favor, entre em contato com eabascal@iese.edu
B8: Tempo requerido: 30 mn.
B9: Perguntas sobre Valoração de Empresas (são 40 no total) | C9: Sua Resposta | D9: Respuesta correcta | E9: Pontuação
A10: 1 | B10: P&L e Balanços passados. Idealmente usar de 7 a 10 anos com o ciclo econômico completo. | D10: V | E10: =IF(C10="",0,IF(C10=D10,1,$C$3)) -> 0 | G10: 1 | H10: =G10+1 -> 2 | I10: =H10+1 -> 3 | J10: =I10+1 -> 4 | K10: =J10+1 -> 5 | L10: =K10+1 -> 6 | M10: =L10+1 -> 7 | N10: =M10+1 -> 8 | O10: =N10+1 -> 9 | P10: =O10+1 -> 10
A11: =A10+1 -> 2 | B11: Timing. Melhor comprar após 5 ou 6 anos muito bons, para garantir que a empresa-alvo esteja lucrando e indo bem. | D11: F | E11: =IF(C11="",0,IF(C11=D11,1,$C$3)) -> 0 | G11: V | H11: F | I11: V | J11: V | K11: V | L11: F | M11: V | N11: F | O11: V | P11: F
A12: =A11+1 -> 3 | B12: Tenha claro o que você está comprando: cliente, produto, concorrente, ativos vendáveis, etc. | D12: V | E12: =IF(C12="",0,IF(C12=D12,1,$C$3)) -> 0 | G12: =G10+10 -> 11 | H12: =G12+1 -> 12 | I12: =H12+1 -> 13 | J12: =I12+1 -> 14 | K12: =J12+1 -> 15 | L12: =K12+1 -> 16 | M12: =L12+1 -> 17 | N12: =M12+1 -> 18 | O12: =N12+1 -> 19 | P12: =O12+1 -> 20
A13: =A12+1 -> 4 | B13: Após a fusão com a empresa-alvo, o equity da empresa-alvo desaparece. Só terei como equity o que coloquei na aquisição. | D13: V | E13: =IF(C13="",0,IF(C13=D13,1,$C$3)) -> 0 | G13: V | H13: V | I13: V | J13: F | K13: V | L13: V | M13: V | N13: V | O13: F | P13: V
A14: =A13+1 -> 5 | B14: Após a fusão, somam-se os ativos e as dívidas das duas empresas. | D14: V | E14: =IF(C14="",0,IF(C14=D14,1,$C$3)) -> 0 | G14: =G12+10 -> 21 | H14: =G14+1 -> 22 | I14: =H14+1 -> 23 | J14: =I14+1 -> 24 | K14: =J14+1 -> 25 | L14: =K14+1 -> 26 | M14: =L14+1 -> 27 | N14: =M14+1 -> 28 | O14: =N14+1 -> 29 | P14: =O14+1 -> 30
A15: =A14+1 -> 6 | B15: O ágio é o valor da carteira de clientes, ou dos produtos, marca, etc. | D15: F | E15: =IF(C15="",0,IF(C15=D15,1,$C$3)) -> 0 | G15: F | H15: V | I15: V | J15: F | K15: V | L15: F | M15: V | N15: F | O15: F | P15: F
A16: =A15+1 -> 7 | B16: Não posso fazer a previsão de P&L e Balanço sem partir de uma hipótese de preço a pagar pelas ações. | D16: V | E16: =IF(C16="",0,IF(C16=D16,1,$C$3)) -> 0 | G16: =G14+10 -> 31 | H16: =G16+1 -> 32 | I16: =H16+1 -> 33 | J16: =I16+1 -> 34 | K16: =J16+1 -> 35 | L16: =K16+1 -> 36 | M16: =L16+1 -> 37 | N16: =M16+1 -> 38 | O16: =N16+1 -> 39 | P16: =O16+1 -> 40
A17: =A16+1 -> 8 | B17: Com uma aquisição, quase sempre melhoro minha empresa, pois o Opex em % diminui. | D17: F | E17: =IF(C17="",0,IF(C17=D17,1,$C$3)) -> 0 | G17: V | H17: F | I17: F | J17: V | K17: V | L17: V | M17: V | N17: V | O17: F | P17: V
A18: =A17+1 -> 9 | B18: Se eu não melhorar o negócio (produto, clientes, etc.), não criarei valor, a menos que compre a um preço anormalmente baixo. | D18: V | E18: =IF(C18="",0,IF(C18=D18,1,$C$3)) -> 0
A19: =A18+1 -> 10 | B19: A redução de Opex costuma ser o principal fator de criação de valor. | D19: F | E19: =IF(C19="",0,IF(C19=D19,1,$C$3)) -> 0
A20: =A19+1 -> 11 | B20: Se você compra, é porque tem um plano de ação, e esse plano de ação deve estar refletido na previsão de P&L e Balanços. | D20: V | E20: =IF(C20="",0,IF(C20=D20,1,$C$3)) -> 0
A21: =A20+1 -> 12 | B21: Para a previsão, é melhor situar-se no ano em que está, no momento do ciclo econômico atual, com as possibilidades de crescimento e margem% que você tem agora. | D21: V | E21: =IF(C21="",0,IF(C21=D21,1,$C$3)) -> 0
A22: =A21+1 -> 13 | B22: O valor de uma empresa (e de qualquer coisa) é sempre subjetivo. | D22: V | E22: =IF(C22="",0,IF(C22=D22,1,$C$3)) -> 0
A23: =A22+1 -> 14 | B23: O valor, ou seja, o preço, de uma empresa pode ser calculado com bastante exatidão. | D23: F | E23: =IF(C23="",0,IF(C23=D23,1,$C$3)) -> 0
A24: =A23+1 -> 15 | B24: Os três elementos da fórmula de valor (CF, K, g) são subjetivos, mas não arbitrários. | D24: V | E24: =IF(C24="",0,IF(C24=D24,1,$C$3)) -> 0
A25: =A24+1 -> 16 | B25: A perpetuidade é uma estimativa do valor da empresa no ano 5 (ou 7 ou 10) ou último de nossa previsão. | D25: V | E25: =IF(C25="",0,IF(C25=D25,1,$C$3)) -> 0
A26: =A25+1 -> 17 | B26: O valor da perpetuidade pode ser muito sensível ao (K-g) que utilizarmos. | D26: V | E26: =IF(C26="",0,IF(C26=D26,1,$C$3)) -> 0
A27: =A26+1 -> 18 | B27: O market cap (capitalização de mercado) é igual ao último preço da ação na bolsa x número de ações da empresa. | D27: V | E27: =IF(C27="",0,IF(C27=D27,1,$C$3)) -> 0
A28: =A27+1 -> 19 | B28: O market cap (capitalização de mercado) reflete de maneira real o valor da empresa. | D28: F | E28: =IF(C28="",0,IF(C28=D28,1,$C$3)) -> 0
A29: =A28+1 -> 20 | B29: O VPL é a diferença entre o que uma empresa vale para mim e o que eu paguei por ela do meu bolso (equity investido). | D29: V | E29: =IF(C29="",0,IF(C29=D29,1,$C$3)) -> 0
A30: =A29+1 -> 21 | B30: Quase sempre, a valoração por múltiplos dá resultados semelhantes à valoração por desconto de fluxos de caixa. | D30: F | E30: =IF(C30="",0,IF(C30=D30,1,$C$3)) -> 0
A31: =A30+1 -> 22 | B31: Um atalho (número aproximado) para a valoração é VP = FC / (K-g) onde FC = lucro sustentável dos próximos anos. | D31: V | E31: =IF(C31="",0,IF(C31=D31,1,$C$3)) -> 0
A32: =A31+1 -> 23 | B32: No linguajar financeiro atual, enterprise value = valor dos ativos = dívida + equity. | D32: V | E32: =IF(C32="",0,IF(C32=D32,1,$C$3)) -> 0
A33: =A32+1 -> 24 | B33: Enterprise value é o mesmo que o valor de mercado da empresa, ou seja, das ações. | D33: F | E33: =IF(C33="",0,IF(C33=D33,1,$C$3)) -> 0
A34: =A33+1 -> 25 | B34: Na prática, é muito difícil se distanciar dos múltiplos aos quais atualmente se fazem os negócios, mesmo que estejam desproporcionalmente altos ou baixos. | D34: V | E34: =IF(C34="",0,IF(C34=D34,1,$C$3)) -> 0
A35: =A34+1 -> 26 | B35: O preço máximo a pagar dependerá do financiamento que você obtiver via dívida. | D35: F | E35: =IF(C35="",0,IF(C35=D35,1,$C$3)) -> 0
A36: =A35+1 -> 27 | B36: O preço máximo a pagar é definido pelo valor presente para você dos fluxos de caixa esperados pelo acionista. | D36: V | E36: =IF(C36="",0,IF(C36=D36,1,$C$3)) -> 0
A37: =A36+1 -> 28 | B37: O múltiplo EBITDA costuma ser bastante estável ao longo do tempo dentro do mesmo setor. | D37: F | E37: =IF(C37="",0,IF(C37=D37,1,$C$3)) -> 0
A38: =A37+1 -> 29 | B38: Na valoração por múltiplo EBITDA, o relevante é o tamanho do EBITDA, seja qual for o setor. Por isso, o setor não afeta a valoração. | D38: F | E38: =IF(C38="",0,IF(C38=D38,1,$C$3)) -> 0
A39: =A38+1 -> 30 | B39: O valor das ações para o vendedor é irrelevante, pois no fim das contas você pagará apenas o preço que for atrativo para você, e não para o vendedor. | D39: F | E39: =IF(C39="",0,IF(C39=D39,1,$C$3)) -> 0
A40: =A39+1 -> 31 | B40: É importante saber por que o vendedor quer vender e o que busca. | D40: V | E40: =IF(C40="",0,IF(C40=D40,1,$C$3)) -> 0
A41: =A40+1 -> 32 | B41: O VPL é o que vale para você a empresa que está comprando. | D41: F | E41: =IF(C41="",0,IF(C41=D41,1,$C$3)) -> 0
A42: =A41+1 -> 33 | B42: As alavancas de criação de valor são diferentes dos fatores de risco. Risco é uma coisa e criação de valor é outra. | D42: F | E42: =IF(C42="",0,IF(C42=D42,1,$C$3)) -> 0
A43: =A42+1 -> 34 | B43: Se compro barato, mesmo que não melhore nada no negócio, estou criando valor. | D43: V | E43: =IF(C43="",0,IF(C43=D43,1,$C$3)) -> 0
A44: =A43+1 -> 35 | B44: Se minha empresa não é aberta e se não pretendo vendê-la, o tema da criação de valor não acrescenta muito. | D44: V | E44: =IF(C44="",0,IF(C44=D44,1,$C$3)) -> 0
A45: =A44+1 -> 36 | B45: As alavancas de criação de valor para o acionista são: melhorar o negócio da empresa-alvo, financiar bem a aquisição ou comprá-la barata. | D45: V | E45: =IF(C45="",0,IF(C45=D45,1,$C$3)) -> 0
A46: =A45+1 -> 37 | B46: É importante ter claro o que estou comprando (clientes, produto, tecnologia, etc.) e quanto me custaria conseguir isso por conta própria. | D46: V | E46: =IF(C46="",0,IF(C46=D46,1,$C$3)) -> 0
A47: =A46+1 -> 38 | B47: No jargão financeiro, crescimento inorgânico é o obtido via aquisições, e o orgânico é o crescimento normal da empresa. | D47: V | E47: =IF(C47="",0,IF(C47=D47,1,$C$3)) -> 0
A48: =A47+1 -> 39 | B48: Se a empresa é boa, não importa o momento do ciclo econômico em que a compre, pois, cedo ou tarde, a empresa dará frutos porque é boa. | D48: F | E48: =IF(C48="",0,IF(C48=D48,1,$C$3)) -> 0
A49: =A48+1 -> 40 | B49: O preço a pagar depende muito do momento do ciclo econômico e da bolsa, pois a bolsa é sempre uma referência. | D49: V | E49: =IF(C49="",0,IF(C49=D49,1,$C$3)) -> 0
C51: Sua pontuação | E51: =SUM(E10:E49) -> 0
C52: Máxima pontuação possível | E52: 40
B54: Mais Perguntas sobre Valoração de Empresas (são outras 65) | C54: =C9 -> Sua Resposta | D54: =D9 -> Respuesta correcta | E54: =E9 -> Pontuação
A55: 41 | B55: Muitas aquisições se justificam pelas sinergias (redução de Opex%). | D55: V | E55: =IF(C55="",0,IF(C55=D55,1,$C$3)) -> 0
A56: =A55+1 -> 42 | B56: Se sua empresa é listada na bolsa, você deve antecipar qual será o efeito da aquisição no preço das ações. | D56: V | E56: =IF(C56="",0,IF(C56=D56,1,$C$3)) -> 0
A57: =A56+1 -> 43 | B57: Mas com esses critérios, é possível que você perca muitas oportunidades de aquisição. | D57: V | E57: =IF(C57="",0,IF(C57=D57,1,$C$3)) -> 0
A58: =A57+1 -> 44 | B58: Tenha claro por que está comprando. Reforce as fortalezas, diminua as fraquezas ou riscos. | D58: V | E58: =IF(C58="",0,IF(C58=D58,1,$C$3)) -> 0
A59: =A58+1 -> 45 | B59: As razões da compra devem estar refletidas no P&L e Balanços futuros. | D59: V | E59: =IF(C59="",0,IF(C59=D59,1,$C$3)) -> 0
A60: =A59+1 -> 46 | B60: A principal alavanca de criação de valor em uma aquisição é a redução do Opex% ou as sinergias esperadas. | D60: F | E60: =IF(C60="",0,IF(C60=D60,1,$C$3)) -> 0
A61: =A60+1 -> 47 | B61: As alavancas de criação/destruição de valor são as hipóteses usadas para a previsão de P&L e Balanço e preço pago. | D61: V | E61: =IF(C61="",0,IF(C61=D61,1,$C$3)) -> 0
A62: =A61+1 -> 48 | B62: O VPL é o benefício extra obtido, acima do benefício esperado. | D62: F | E62: =IF(C62="",0,IF(C62=D62,1,$C$3)) -> 0
A63: =A62+1 -> 49 | B63: O VPL é o retorno extra obtido, acima da rentabilidade exigida K. | D63: F | E63: =IF(C63="",0,IF(C63=D63,1,$C$3)) -> 0
A64: =A63+1 -> 50 | B64: É comum que a empresa valha mais para você do que para o vendedor, pois você pode melhorá-la. | D64: V | E64: =IF(C64="",0,IF(C64=D64,1,$C$3)) -> 0
A65: =A64+1 -> 51 | B65: O múltiplo EBITDA é obtido a partir de transações similares e recentes no setor e também de empresas listadas. | D65: V | E65: =IF(C65="",0,IF(C65=D65,1,$C$3)) -> 0
A66: =A65+1 -> 52 | B66: Esses três múltiplos dão valorações muito similares, dentro do mesmo setor. | D66: F | E66: =IF(C66="",0,IF(C66=D66,1,$C$3)) -> 0
A67: =A66+1 -> 53 | B67: Os múltiplos usados no mercado são: Preço/Vendas, Índice P/L, Múltiplo EBITDA. | D67: V | E67: =IF(C67="",0,IF(C67=D67,1,$C$3)) -> 0
A68: =A67+1 -> 54 | B68: O valor criado é medido (mais precisamente estimado) pelo VPL. | D68: V | E68: =IF(C68="",0,IF(C68=D68,1,$C$3)) -> 0
A69: =A68+1 -> 55 | B69: Como a avaliação, às vezes, dá números muito diferentes (e dão pouca orientação), faça contas com o preço que considera razoável e veja se a rentabilidade do acionista é boa, se o lucro da empresa aceitável e se a dívida pode ser paga. | D69: V | E69: =IF(C69="",0,IF(C69=D69,1,$C$3)) -> 0
A70: =A69+1 -> 56 | B70: A TIR é mais subjetiva que o Valor Presente (VP) e o VPL (valor presente líquido). | D70: F | E70: =IF(C70="",0,IF(C70=D70,1,$C$3)) -> 0
A71: =A70+1 -> 57 | B71: Para a previsão, é melhor usar a média de margem e g (crescimento) de vendas de anos bons, ruins e normais. | D71: F | E71: =IF(C71="",0,IF(C71=D71,1,$C$3)) -> 0
A72: =A71+1 -> 58 | B72: Se eu compro um concorrente, meu potencial de crescimento aumenta. | D72: F | E72: =IF(C72="",0,IF(C72=D72,1,$C$3)) -> 0
A73: =A72+1 -> 59 | B73: Timing. Melhor comprar quando o futuro parece melhor que o presente. | D73: V | E73: =IF(C73="",0,IF(C73=D73,1,$C$3)) -> 0
A74: =A73+1 -> 60 | B74: A avaliação tem muitas sutilezas e, portanto, a avaliação é uma arte e não uma técnica. | D74: F | E74: =IF(C74="",0,IF(C74=D74,1,$C$3)) -> 0
A75: =A74+1 -> 61 | B75: O valor de uma empresa depende exclusivamente dos fluxos que promete e, portanto, é o mesmo para todos. | D75: F | E75: =IF(C75="",0,IF(C75=D75,1,$C$3)) -> 0
A76: =A75+1 -> 62 | B76: A avaliação de empresas serve para definir uma faixa de preços razoável para comprar/vender e para estar bem preparado na negociação de compra/venda. | D76: V | E76: =IF(C76="",0,IF(C76=D76,1,$C$3)) -> 0
A77: =A76+1 -> 63 | B77: O primeiro passo na avaliação é calcular diretamente os FC. O demonstrativo de resultados e o balanço não são necessários, pois já aparecem nos FC. | D77: F | E77: =IF(C77="",0,IF(C77=D77,1,$C$3)) -> 0
A78: =A77+1 -> 64 | B78: Como fluxo a descontar, utilizaremos o "fluxo de caixa" para o acionista (FCacion), ou seja, o caixa que o acionista pode levar para casa: o que há no caixa mais os dividendos pagos. | D78: V | E78: =IF(C78="",0,IF(C78=D78,1,$C$3)) -> 0
A79: =A78+1 -> 65 | B79: FCacion = + Lucro líquido – Variação de Ativo Líquido AL. | D79: F | E79: =IF(C79="",0,IF(C79=D79,1,$C$3)) -> 0
A80: =A79+1 -> 66 | B80: A perpetuidade no ano 5, 10 ou 15 é calculada como EBITDA / (Ke-g). | D80: F | E80: =IF(C80="",0,IF(C80=D80,1,$C$3)) -> 0
A81: =A80+1 -> 67 | B81: Se utilizarmos como FCacion o lucro líquido, estamos assumindo que o investimento será igual à depreciação e que sua dívida se mantém constante. | D81: V | E81: =IF(C81="",0,IF(C81=D81,1,$C$3)) -> 0
A82: =A81+1 -> 68 | B82: Se utilizarmos como FCacion o EBITDA, estamos assumindo que a empresa não fará mais investimentos, nem pagará impostos nem juros. | D82: V | E82: =IF(C82="",0,IF(C82=D82,1,$C$3)) -> 0
A83: =A82+1 -> 69 | B83: Da fórmula de desconto de fluxos deduz-se que o valor de uma empresa depende do FC que a empresa promete ao acionista no próximo ano, da rentabilidade K que o acionista deseja obter de seu investimento e do crescimento g esperado para os FC nos próximos anos. Verdadeiro ou Falso. | D83: V | E83: =IF(C83="",0,IF(C83=D83,1,$C$3)) -> 0
A84: =A83+1 -> 70 | B84: Uma vez calculados os FC do acionista e seu valor presente, o processo de avaliação está completo. | D84: F | E84: =IF(C84="",0,IF(C84=D84,1,$C$3)) -> 0
A85: =A84+1 -> 71 | B85: A empresa A promete 10 FC de €10 e um FC final de €100. A empresa B promete 10 FC de €2 e um valor final de €132 no ano 10. A e B deveriam ter o mesmo valor, pois prometem os mesmos FC, €140 no total. | D85: F | E85: =IF(C85="",0,IF(C85=D85,1,$C$3)) -> 0
A86: =A85+1 -> 72 | B86: Por risco, entendemos a variabilidade na rentabilidade que a empresa promete, devido a alterações nos FCacion que esperamos. | D86: V | E86: =IF(C86="",0,IF(C86=D86,1,$C$3)) -> 0
A87: =A86+1 -> 73 | B87: Os fatores de risco de uma empresa estão sempre presentes, mesmo que a empresa mude de proprietário, pois o risco depende do negócio e não do proprietário. | D87: F | E87: =IF(C87="",0,IF(C87=D87,1,$C$3)) -> 0
A88: =A87+1 -> 74 | B88: A longo prazo, uma empresa com mais risco deveria gerar maior rentabilidade e, portanto, deveria valer mais. | D88: F | E88: =IF(C88="",0,IF(C88=D88,1,$C$3)) -> 0
A89: =A88+1 -> 75 | B89: O Ke com o qual descontamos os FCacion é a rentabilidade que exigimos dos ativos que compramos. | D89: F | E89: =IF(C89="",0,IF(C89=D89,1,$C$3)) -> 0
A90: =A89+1 -> 76 | B90: O Ke que devemos usar para comprar uma empresa pode ser calculado com exatidão usando a teoria moderna de carteiras. | D90: F | E90: =IF(C90="",0,IF(C90=D90,1,$C$3)) -> 0
A91: =A90+1 -> 77 | B91: Os acionistas da empresa A exigem uma rentabilidade Ke de 10%. A empresa A compra a empresa B, que promete uma rentabilidade também de 10% e tem o mesmo risco que A. Como consequência, as ações de A valerão mais, pois agora o tamanho de A é maior e, portanto, tem menos risco. | D91: F | E91: =IF(C91="",0,IF(C91=D91,1,$C$3)) -> 0
A92: =A91+1 -> 78 | B92: Os acionistas da empresa A exigem uma rentabilidade Ke de 10%. A empresa A compra a empresa B, que promete uma rentabilidade também de 10%, mas a junção de A+B faz com que o risco conjunto se reduza. Como consequência, as ações de A valerão mais, pois agora A tem menos risco do que antes. | D92: V | E92: =IF(C92="",0,IF(C92=D92,1,$C$3)) -> 0
A93: =A92+1 -> 79 | B93: Antes de comprar uma empresa, é aconselhável ver as consequências da aquisição nos stakeholders de nossa empresa. | D93: V | E93: =IF(C93="",0,IF(C93=D93,1,$C$3)) -> 0
A94: =A93+1 -> 80 | B94: Se a empresa adquirente está listada na bolsa, é aconselhável prever as consequências da aquisição no preço de mercado. | D94: V | E94: =IF(C94="",0,IF(C94=D94,1,$C$3)) -> 0
A95: =A94+1 -> 81 | B95: O índice P/L nos indica quantos euros pagamos por cada euro de lucro que a empresa promete (é o inverso da rentabilidade da ação). | D95: V | E95: =IF(C95="",0,IF(C95=D95,1,$C$3)) -> 0
A96: =A95+1 -> 82 | B96: Um índice P/L alto significa, necessariamente, que a rentabilidade que o acionista receberá é baixa. | D96: F | E96: =IF(C96="",0,IF(C96=D96,1,$C$3)) -> 0
A97: =A96+1 -> 83 | B97: Quanto maiores as expectativas de crescimento de uma empresa, maior será o índice de P/L de mercado a que estará cotada. | D97: V | E97: =IF(C97="",0,IF(C97=D97,1,$C$3)) -> 0
A98: =A97+1 -> 84 | B98: O índice P/L de uma empresa depende de (Ke-g) que o mercado aplica. | D98: V | E98: =IF(C98="",0,IF(C98=D98,1,$C$3)) -> 0
A99: =A98+1 -> 85 | B99: A empresa A está cotada a um índice P/L de 10. Seu EBITDA é de €10, portanto, seu valor de mercado deverá ser 10 x €10 = €100. | D99: F | E99: =IF(C99="",0,IF(C99=D99,1,$C$3)) -> 0
A100: =A99+1 -> 86 | B100: O valor contábil sempre nos dá um preço muito baixo para a empresa e, por isso, não deve ser usado na avaliação. | D100: F | E100: =IF(C100="",0,IF(C100=D100,1,$C$3)) -> 0
A101: =A100+1 -> 87 | B101: O ROE esperado da empresa A é 10%. Seu valor contábil é €100. Os acionistas de A exigem uma rentabilidade Ke de 10%. O valor de mercado de A deverá estar em torno de €100. | D101: V | E101: =IF(C101="",0,IF(C101=D101,1,$C$3)) -> 0
A102: =A101+1 -> 88 | B102: Na hora de comprar, é importante ver como a empresa adquirida influenciará as expectativas de crescimento e risco da empresa adquirente. | D102: V | E102: =IF(C102="",0,IF(C102=D102,1,$C$3)) -> 0
A103: =A102+1 -> 89 | B103: O resultado da análise de riscos (sua quantificação) depende dos fatores de risco da empresa e não da pessoa que realiza a análise. | D103: F | E103: =IF(C103="",0,IF(C103=D103,1,$C$3)) -> 0
A104: =A103+1 -> 90 | B104: O risco é simétrico: se você ganha 30% no cenário ótimo, perde 30% no pior. | D104: F | E104: =IF(C104="",0,IF(C104=D104,1,$C$3)) -> 0
A105: =A104+1 -> 91 | B105: Se você alavanca uma aquisição com dívida, pode pagar um preço maior, pois ao colocar menos dinheiro, a rentabilidade do acionista continuará alta. | D105: F | E105: =IF(C105="",0,IF(C105=D105,1,$C$3)) -> 0
A106: =A105+1 -> 92 | B106: O valor justo a pagar por uma empresa é o valor presente dos fluxos de caixa do acionista, assumindo que a aquisição seja financiada com dívida e capital. | D106: F | E106: =IF(C106="",0,IF(C106=D106,1,$C$3)) -> 0
A107: =A106+1 -> 93 | B107: Às vezes, o preço de mercado não reflete o valor da empresa. | D107: V | E107: =IF(C107="",0,IF(C107=D107,1,$C$3)) -> 0
A108: =A107+1 -> 94 | B108: Os mercados são eficientes porque refletem toda a informação disponível: fundamentos da empresa, da economia e atitude psicológica do investidor. | D108: V | E108: =IF(C108="",0,IF(C108=D108,1,$C$3)) -> 0
A109: =A108+1 -> 95 | B109: Normalmente, as empresas listadas em bolsa têm mais valor do que suas homólogas que não são listadas. | D109: V | E109: =IF(C109="",0,IF(C109=D109,1,$C$3)) -> 0
A110: =A109+1 -> 96 | B110: As empresas tipo holding (conglomerados) têm menos riscos devido à diversificação. Por isso, seu preço na bolsa tende a ser mais alto do que o de seus concorrentes que não são diversificados. | D110: F | E110: =IF(C110="",0,IF(C110=D110,1,$C$3)) -> 0
A111: =A110+1 -> 97 | B111: O enterprise value (EV) é o valor da empresa e, portanto, o valor de suas ações. | D111: F | E111: =IF(C111="",0,IF(C111=D111,1,$C$3)) -> 0
A112: =A111+1 -> 98 | B112: O enterprise value (EV) é geralmente calculado com um múltiplo x EBITDA. | D112: V | E112: =IF(C112="",0,IF(C112=D112,1,$C$3)) -> 0
A113: =A112+1 -> 99 | B113: No auge do ciclo econômico, a empresa A tinha um EBITDA de €100, o maior de sua história. Empresas similares estavam cotadas a um múltiplo EBITDA de 7 vezes. Portanto, podemos dizer que €700 era o valor justo da empresa A naquele momento. | D113: F | E113: =IF(C113="",0,IF(C113=D113,1,$C$3)) -> 0
A114: =A113+1 -> 100 | B114: A empresa B tem um EBITDA sustentável de €10. Sua dívida é de €20. B está cotada na bolsa a um múltiplo EBITDA de 5 vezes. Portanto, podemos dizer que o valor de mercado das ações é €30. | D114: V | E114: =IF(C114="",0,IF(C114=D114,1,$C$3)) -> 0
A115: =A114+1 -> 101 | B115: Você investe €100. Sua rentabilidade requerida é K = 10%. Após um ano, a rentabilidade obtida é TIR = 10%. Você ganhou dinheiro, mas não gerou valor. | D115: V | E115: =IF(C115="",0,IF(C115=D115,1,$C$3)) -> 0
A116: =A115+1 -> 102 | B116: Você investe €100. Seu K é 10%. Após um ano, a rentabilidade obtida é TIR = 5%. Você ganhou dinheiro, mas destruiu valor. | D116: V | E116: =IF(C116="",0,IF(C116=D116,1,$C$3)) -> 0
A117: =A116+1 -> 103 | B117: O VPL é a rentabilidade adicional, em euros, que você obtém acima da taxa de retorno requerida K. | D117: F | E117: =IF(C117="",0,IF(C117=D117,1,$C$3)) -> 0
A118: =A117+1 -> 104 | B118: Os projetos A e B têm a mesma TIR. O investimento inicial em A foi de €100 e em B de €1.000. Certamente B tem um VPL maior. | D118: F | E118: =IF(C118="",0,IF(C118=D118,1,$C$3)) -> 0
A119: =A118+1 -> 105 | B119: Um projeto adiciona valor à empresa quando a TIR do projeto é maior que a rentabilidade exigida K. | D119: V | E119: =IF(C119="",0,IF(C119=D119,1,$C$3)) -> 0
C121: =C51 -> Sua pontuação | E121: =SUM(E55:E119) -> 0
C122: =C52 -> Máxima pontuação possível | E122: 65

Sheet Newco
A1: MERGERS. EXAMPLE OF TARGET CO. + NEWCO
B3: Target | F3: Price 40 | G3: Price 30 | H3: Price 20 | J3: English | K3: Line | L3: 5
B4: Target | C4: Adjusted | D4: NewCo | F4: Case A | G4: Case B | H4: Case C | J4: Español | K4: Línea | L4: 30
A5: Cash | B5: 0 | C5: 0 | D5: 40 | F5: 0 | G5: 0 | H5: 0 | J5: Português | K5: Linha | L5: 55
A6: NFO | B6: 10 | C6: 10 | D6: 0 | F6: 10 | G6: 10 | H6: 10
A7: FA | B7: 20 | C7: 25 | D7: 0 | F7: 25 | G7: 25 | H7: 25
A8: Goodwill | F8: 10 | G8: 0 | H8: 0
A9: NA | B9: =SUM(B5:B8) -> 30 | C9: =SUM(C5:C8) -> 35 | D9: 40 | F9: =SUM(F5:F8) -> 45 | G9: =SUM(G5:G8) -> 35 | H9: =SUM(H5:H8) -> 35
A11: D Debt | B11: 5 | C11: 5 | D11: 25 | F11: 30 | G11: 20 | H11: 10
A12: E Equity | B12: 25 | C12: 30 | D12: 15 | F12: 15 | G12: 15 | H12: 25
A13: D+E | B13: =SUM(B11:B12) -> 30 | C13: =SUM(C11:C12) -> 35 | D13: =SUM(D11:D12) -> 40 | F13: =SUM(F11:F12) -> 45 | G13: =SUM(G11:G12) -> 35 | H13: =SUM(H11:H12) -> 35
B15: Target | F15: =F3 -> Price 40 | G15: Price 30 | H15: Price 20
B16: =B4 -> Target | C16: =C4 -> Adjusted | D16: =D4 -> NewCo | F16: Case A | G16: Case B | H16: Case C
A17: =A6 -> NFO | B17: 10 | C17: 10 | D17: 40 | F17: 50 | G17: 50 | H17: 50
A18: =A7 -> FA | B18: 20 | C18: 25 | D18: 60 | F18: 85 | G18: 85 | H18: 85
A19: =A8 -> Goodwill | F19: 10 | G19: 0 | H19: 0
A20: =A9 -> NA | B20: 30 | C20: 35 | D20: 100 | F20: 145 | G20: 135 | H20: 135
A22: =A11 -> D Debt | B22: 5 | C22: 5 | D22: 30 | F22: 75 | G22: 65 | H22: 55
A23: =A12 -> E Equity | B23: 25 | C23: 30 | D23: 70 | F23: 70 | G23: 70 | H23: 80
A24: =A13 -> D+E | B24: 30 | C24: 35 | D24: 100 | F24: 145 | G24: 135 | H24: 135
B28: Target | F28: Precio 40 | G28: Precio 30 | H28: Precio 20
B29: Target | C29: Ajustado | D29: NewCo | F29: Caso A | G29: Caso B | H29: Caso C
A30: Caja | B30: 0 | C30: 0 | D30: 40 | F30: 0 | G30: 0 | H30: 0
A31: NOF | B31: 10 | C31: 10 | D31: 0 | F31: 10 | G31: 10 | H31: 10
A32: AF | B32: 20 | C32: 25 | D32: 0 | F32: 25 | G32: 25 | H32: 25
A33: Goodwill | F33: 10 | G33: 0 | H33: 0
A34: AN | B34: =SUM(B30:B33) -> 30 | C34: =SUM(C30:C33) -> 35 | D34: 40 | F34: =SUM(F30:F33) -> 45 | G34: =SUM(G30:G33) -> 35 | H34: =SUM(H30:H33) -> 35
A36: D Deuda | B36: 5 | C36: 5 | D36: 25 | F36: 30 | G36: 20 | H36: 10
A37: E Equity | B37: 25 | C37: 30 | D37: 15 | F37: 15 | G37: 15 | H37: 25
A38: D+E | B38: =SUM(B36:B37) -> 30 | C38: =SUM(C36:C37) -> 35 | D38: =SUM(D36:D37) -> 40 | F38: =SUM(F36:F37) -> 45 | G38: =SUM(G36:G37) -> 35 | H38: =SUM(H36:H37) -> 35
B40: Target | F40: =F28 -> Precio 40 | G40: Precio 30 | H40: Precio 20
B41: =B29 -> Target | C41: =C29 -> Ajustado | D41: =D29 -> NewCo | F41: Caso A | G41: Caso B | H41: Caso C
A42: =A31 -> NOF | B42: 10 | C42: 10 | D42: 40 | F42: 50 | G42: 50 | H42: 50
A43: =A32 -> AF | B43: 20 | C43: 25 | D43: 60 | F43: 85 | G43: 85 | H43: 85
A44: Goodwill | F44: 10 | G44: 0 | H44: 0
A45: AN | B45: 30 | C45: 35 | D45: 100 | F45: 145 | G45: 135 | H45: 135
A47: D Deuda | B47: 5 | C47: 5 | D47: 30 | F47: 75 | G47: 65 | H47: 55
A48: E Equity | B48: 25 | C48: 30 | D48: 70 | F48: 70 | G48: 70 | H48: 80
A49: D+E | B49: 30 | C49: 35 | D49: 100 | F49: 145 | G49: 135 | H49: 135
B53: Target | F53: Preço 40 | G53: Preço 30 | H53: Preço 20
B54: Target | C54: Ajustado | D54: NewCo | F54: Caso A | G54: Caso B | H54: Caso C
A55: Caixa | B55: 0 | C55: 0 | D55: 40 | F55: 0 | G55: 0 | H55: 0
A56: NOF | B56: 10 | C56: 10 | D56: 0 | F56: 10 | G56: 10 | H56: 10
A57: AF | B57: 20 | C57: 25 | D57: 0 | F57: 25 | G57: 25 | H57: 25
A58: Agio o Goodwill | F58: 10 | G58: 0 | H58: 0
A59: AL | B59: =SUM(B55:B58) -> 30 | C59: =SUM(C55:C58) -> 35 | D59: 40 | F59: =SUM(F55:F58) -> 45 | G59: =SUM(G55:G58) -> 35 | H59: =SUM(H55:H58) -> 35
A61: D Divida | B61: 5 | C61: 5 | D61: 25 | F61: 30 | G61: 20 | H61: 10
A62: E Equity | B62: 25 | C62: 30 | D62: 15 | F62: 15 | G62: 15 | H62: 25
A63: D+E | B63: =SUM(B61:B62) -> 30 | C63: =SUM(C61:C62) -> 35 | D63: =SUM(D61:D62) -> 40 | F63: =SUM(F61:F62) -> 45 | G63: =SUM(G61:G62) -> 35 | H63: =SUM(H61:H62) -> 35
B66: Target | F66: =F53 -> Preço 40 | G66: =G53 -> Preço 30 | H66: Preço 20
B67: =B54 -> Target | C67: =C54 -> Ajustado | D67: NewCo | F67: =F54 -> Caso A | G67: =G54 -> Caso B | H67: Caso C
A68: =A56 -> NOF | B68: 10 | C68: 10 | D68: 40 | F68: 50 | G68: 50 | H68: 50
A69: =A57 -> AF | B69: 20 | C69: 25 | D69: 60 | F69: 85 | G69: 85 | H69: 85
A70: Agio o Goodwill | F70: 10 | G70: 0 | H70: 0
A71: AL | B71: 30 | C71: 35 | D71: 100 | F71: 145 | G71: 135 | H71: 135
A73: D Divida | B73: 5 | C73: 5 | D73: 30 | F73: 75 | G73: 65 | H73: 55
A74: E Equity | B74: 25 | C74: 30 | D74: 70 | F74: 70 | G74: 70 | H74: 80
A75: D+E | B75: 30 | C75: 35 | D75: 100 | F75: 145 | G75: 135 | H75: 135
D78: FIN

Sheet Perpetuity
A1: Number of Cash Flows and use of the Perpetuity | J1: NOT TO BE PRINTED IN THE BOOK.
A3: Present Value of 100€ received at year n | G3: Present Value of n CF, of 100€ each, during n years
C5: Discount rate (K-g) | I5: Discount rate (K-g)
A6: Year | B6: 0.1 | C6: 0.15 | D6: 0.2 | E6: 0.25 | G6: Year | H6: 0.1 | I6: 0.15 | J6: 0.2 | K6: 0.25 | L6: <---- ASUMPTIONS IN GREEN. YOU MAY CHANGE THEM.
A7: 0 | B7: =100/(1+B$6)^$A7 -> 100 | C7: 100 | D7: 100 | E7: 100 | G7: 0 | H7: =B7 -> 100 | I7: 100 | J7: 100 | K7: 100
A8: 1 | B8: 90.90909091 | C8: 86.95652174 | D8: 83.33333333 | E8: 80 | G8: 1 | H8: 90.90909091 | I8: 86.95652174 | J8: 83.33333333 | K8: 80
A9: 2 | B9: 82.6446281 | C9: 75.61436673 | D9: 69.44444444 | E9: 64 | G9: 2 | H9: =H8+B9 -> 173.553719 | I9: =I8+C9 -> 162.5708885 | J9: =J8+D9 -> 152.7777778 | K9: =K8+E9 -> 144
A10: 3 | B10: 75.13148009 | C10: 65.75162324 | D10: 57.87037037 | E10: 51.2 | G10: 3 | H10: 248.6851991 | I10: 228.3225117 | J10: 210.6481481 | K10: 195.2
A11: 4 | B11: 68.30134554 | C11: 57.17532456 | D11: 48.22530864 | E11: 40.96 | G11: 4 | H11: 316.9865446 | I11: 285.4978363 | J11: 258.8734568 | K11: 236.16
A12: 5 | B12: 62.09213231 | C12: 49.71767353 | D12: 40.1877572 | E12: 32.768 | G12: 5 | H12: 379.0786769 | I12: 335.2155098 | J12: 299.061214 | K12: 268.928
A13: 6 | B13: 56.44739301 | C13: 43.23275959 | D13: 33.48979767 | E13: 26.2144 | G13: 6 | H13: 435.5260699 | I13: 378.4482694 | J13: 332.5510117 | K13: 295.1424
A14: 7 | B14: 51.31581182 | C14: 37.59370399 | D14: 27.90816472 | E14: 20.97152 | G14: 7 | H14: 486.8418818 | I14: 416.0419734 | J14: 360.4591764 | K14: 316.11392
A15: 8 | B15: 46.65073802 | C15: 32.69017738 | D15: 23.25680394 | E15: 16.777216 | G15: 8 | H15: 533.4926198 | I15: 448.7321508 | J15: 383.7159803 | K15: 332.891136
A16: 9 | B16: 42.40976184 | C16: 28.4262412 | D16: 19.38066995 | E16: 13.4217728 | G16: 9 | H16: 575.9023816 | I16: 477.158392 | J16: 403.0966503 | K16: 346.3129088
A17: 10 | B17: 38.55432894 | C17: 24.71847061 | D17: 16.15055829 | E17: 10.73741824 | G17: 10 | H17: 614.4567106 | I17: 501.8768626 | J17: 419.2472086 | K17: 357.050327
A18: 11 | B18: 35.04938995 | C18: 21.49432227 | D18: 13.45879857 | E18: 8.589934592 | G18: 11 | H18: 649.5061005 | I18: 523.3711849 | J18: 432.7060071 | K18: 365.6402616
A19: 12 | B19: 31.86308177 | C19: 18.69071502 | D19: 11.21566548 | E19: 6.871947674 | G19: 12 | H19: 681.3691823 | I19: 542.0618999 | J19: 443.9216726 | K19: 372.5122093
A20: 13 | B20: 28.96643797 | C20: 16.25279567 | D20: 9.346387899 | E20: 5.497558139 | G20: 13 | H20: 710.3356203 | I20: 558.3146955 | J20: 453.2680605 | K20: 378.0097674
A21: 14 | B21: 26.33312543 | C21: 14.1328658 | D21: 7.788656582 | E21: 4.398046511 | G21: 14 | H21: 736.6687457 | I21: 572.4475613 | J21: 461.0567171 | K21: 382.407814
A22: 15 | B22: 23.93920494 | C22: 12.28944852 | D22: 6.490547152 | E22: 3.518437209 | G22: 15 | H22: 760.6079506 | I22: 584.7370099 | J22: 467.5472642 | K22: 385.9262512
A23: 16 | B23: 21.76291358 | C23: 10.68647697 | D23: 5.408789293 | E23: 2.814749767 | G23: 16 | H23: 782.3708642 | I23: 595.4234868 | J23: 472.9560535 | K23: 388.7410009
A24: 17 | B24: 19.78446689 | C24: 9.292588673 | D24: 4.507324411 | E24: 2.251799814 | G24: 17 | H24: 802.1553311 | I24: 604.7160755 | J24: 477.4633779 | K24: 390.9928007
A25: 18 | B25: 17.98587899 | C25: 8.08051189 | D25: 3.756103676 | E25: 1.801439851 | G25: 18 | H25: 820.1412101 | I25: 612.7965874 | J25: 481.2194816 | K25: 392.7942406
A26: 19 | B26: 16.35079908 | C26: 7.026532078 | D26: 3.130086397 | E26: 1.441151881 | G26: 19 | H26: 836.4920092 | I26: 619.8231195 | J26: 484.349568 | K26: 394.2353925
A27: 20 | B27: 14.8643628 | C27: 6.110027894 | D27: 2.60840533 | E27: 1.152921505 | G27: 20 | H27: 851.356372 | I27: 625.9331474 | J27: 486.9579733 | K27: 395.388314
A28: 21 | B28: 13.51305709 | C28: 5.313067734 | D28: 2.173671109 | E28: 0.9223372037 | G28: 21 | H28: 864.8694291 | I28: 631.2462151 | J28: 489.1316445 | K28: 396.3106512
A29: 22 | B29: 12.28459736 | C29: 4.620058899 | D29: 1.811392591 | E29: 0.7378697629 | G29: 22 | H29: 877.1540264 | I29: 635.866274 | J29: 490.943037 | K29: 397.0485209
A30: 23 | B30: 11.16781578 | C30: 4.017442521 | D30: 1.509493825 | E30: 0.5902958104 | G30: 23 | H30: 888.3218422 | I30: 639.8837165 | J30: 492.4525309 | K30: 397.6388168
A31: 24 | B31: 10.1525598 | C31: 3.493428279 | D31: 1.257911521 | E31: 0.4722366483 | G31: 24 | H31: 898.474402 | I31: 643.3771448 | J31: 493.7104424 | K31: 398.1110534
A32: 25 | B32: 9.229599818 | C32: 3.037763721 | D32: 1.048259601 | E32: 0.3777893186 | G32: 25 | H32: 907.7040018 | I32: 646.4149085 | J32: 494.758702 | K32: 398.4888427
A34: Present Value | B34: =SUM(B8:B32) -> 907.7040018 | C34: =SUM(C8:C32) -> 646.4149085 | D34: =SUM(D8:D32) -> 494.758702 | E34: =SUM(E8:E32) -> 398.4888427
A35: Perpetuity | B35: =100/B6 -> 1000 | C35: =100/C6 -> 666.6666667 | D35: =100/D6 -> 500 | E35: =100/E6 -> 400
A36: Perpetuity / PV | B36: =B35/B34 -> 1.101680722 | C36: =C35/C34 -> 1.031329349 | D36: =D35/D34 -> 1.010593645 | E36: =E35/E34 -> 1.00379222
H37: Overvaluation using perpetuity
G38: For a (K-g) = | H38: =H6 -> 0.1 | I38: =I6 -> 0.15 | J38: =J6 -> 0.2 | K38: =K6 -> 0.25
G39: Value using Perpetuity | H39: =B35 -> 1000 | I39: =C35 -> 666.6666667 | J39: =D35 -> 500 | K39: =E35 -> 400
G40: "Real" PV for 10 year project | H40: =H17 -> 614.4567106 | I40: =I17 -> 501.8768626 | J40: =J17 -> 419.2472086 | K40: =K17 -> 357.050327
G41: Overvaluation of perpetuity vs real PV for 10 year project | H41: =H$39/H40-1 -> 0.6274539488 | I41: =I$39/I40-1 -> 0.3283470835 | J41: =J$39/J40-1 -> 0.1926137844 | K41: =K$39/K40-1 -> 0.1202902496
G42: "Real" PV for 20 year project | H42: =H27 -> 851.356372 | I42: =I27 -> 625.9331474 | J42: =J27 -> 486.9579733 | K42: =K27 -> 395.388314
G43: Overvaluation for 20 year project | H43: =H$39/H42-1 -> 0.1745962477 | I43: =I$39/I42-1 -> 0.06507646937 | J43: =J$39/J42-1 -> 0.02678265347 | K43: =K$39/K42-1 -> 0.01166368822
G45: N of years, so that the perpetuity exceeds no more than 10% the PV | H45: 25 | I45: 17 | J45: 13 | K45: 11
G46: PV that is 10% lower than the perpetuity | H46: =H39/1.1 -> 909.0909091 | I46: =I39/1.1 -> 606.0606061 | J46: =J39/1.1 -> 454.5454545 | K46: =K39/1.1 -> 363.6363636
